PublisherLabel,PublisherURI,"Body name","Body","Service area","Service division","Responsible unit","Expenses type","Date","Transaction","Amount","Supplier name"
"Bracknell Forest Council","http://opendatacommunities.org/id/unitary-authority/bracknell-forest","","","Holding Accounts in Budget Book COF","Corporate Services - Office Services","Postal Services","Postage",07/08/2018 00:00:00,"6667576",819.71,"WHISTL"
"Bracknell Forest Council","http://opendatacommunities.org/id/unitary-authority/bracknell-forest","","","Holding Accounts in Budget Book COF","Corporate Services - Office Services","Postal Services","Postage",11/09/2018 00:00:00,"6668208",746.61,"WHISTL"
"Bracknell Forest Council","http://opendatacommunities.org/id/unitary-authority/bracknell-forest","","","Holding Accounts in Budget Book COF","Corporate Services - Office Services","Postal Services","Postage",18/09/2018 00:00:00,"6668781",790.79,"WHISTL"
"Bracknell Forest Council","http://opendatacommunities.org/id/unitary-authority/bracknell-forest","","","Holding Accounts in Budget Book COF","Corporate Services - Office Services","Postal Services","Postage",26/09/2018 00:00:00,"6669166",2057.4,"WHISTL"
"Bracknell Forest Council","http://opendatacommunities.org/id/unitary-authority/bracknell-forest","","","Holding Accounts in Budget Book COF","Corporate Services - Office Services","Postal Services","Postage",31/08/2018 00:00:00,"6669358",800,"DX NETWORK SERVICES LTD"
"Bracknell Forest Council","http://opendatacommunities.org/id/unitary-authority/bracknell-forest","","","Holding Accounts in Budget Book COF","Corporate Services - Office Services","Postal Services","Postage",03/10/2018 00:00:00,"6669833",712.34,"WHISTL"
"Bracknell Forest Council","http://opendatacommunities.org/id/unitary-authority/bracknell-forest","","","Holding Accounts in Budget Book COF","Corporate Services - Office Services","Postal Services","Postage",11/10/2018 00:00:00,"6670634",695.74,"WHISTL"
"Bracknell Forest Council","http://opendatacommunities.org/id/unitary-authority/bracknell-forest","","","Holding Accounts in Budget Book COF","Corporate Services - Office Services","Postal Services","Postage",17/10/2018 00:00:00,"6670694",1304.35,"WHISTL"
"Bracknell Forest Council","http://opendatacommunities.org/id/unitary-authority/bracknell-forest","","","Holding Accounts in Budget Book COF","Corporate Services - Office Services","Postal Services","Postage",26/10/2018 00:00:00,"6670920",1995.61,"WHISTL"
"Bracknell Forest Council","http://opendatacommunities.org/id/unitary-authority/bracknell-forest","","","Holding Accounts in Budget Book COF","Corporate Services - Office Services","Postal Services","Postage",28/10/2018 00:00:00,"6671383",909.2,"WHISTL"
"Bracknell Forest Council","http://opendatacommunities.org/id/unitary-authority/bracknell-forest","","","Holding Accounts in Budget Book COF","Corporate Services - Office Services","Postal Services","Postage",06/11/2018 00:00:00,"6671594",531.82,"WHISTL"
"Bracknell Forest Council","http://opendatacommunities.org/id/unitary-authority/bracknell-forest","","","Holding Accounts in Budget Book COF","Corporate Services - Office Services","Postal Services","Postage",03/10/2018 00:00:00,"6671618",1500,"FP FRANCOTYP POSTALIA LIMITED"
"Bracknell Forest Council","http://opendatacommunities.org/id/unitary-authority/bracknell-forest","","","Holding Accounts in Budget Book COF","Corporate Services - Office Services","Postal Services","Postage",15/11/2018 00:00:00,"6672222",1529.17,"WHISTL"
"Bracknell Forest Council","http://opendatacommunities.org/id/unitary-authority/bracknell-forest","","","Holding Accounts in Budget Book COF","Corporate Services - Office Services","Postal Services","Postage",20/11/2018 00:00:00,"6672412",1002.26,"WHISTL"
"Bracknell Forest Council","http://opendatacommunities.org/id/unitary-authority/bracknell-forest","","","Holding Accounts in Budget Book COF","Corporate Services - Office Services","Postal Services","Postage",19/11/2018 00:00:00,"6672500",1500,"FP FRANCOTYP POSTALIA LIMITED"
"Bracknell Forest Council","http://opendatacommunities.org/id/unitary-authority/bracknell-forest","","","Holding Accounts in Budget Book COF","Corporate Services - Office Services","Postal Services","Postage",29/11/2018 00:00:00,"6672844",970.13,"WHISTL"
"Bracknell Forest Council","http://opendatacommunities.org/id/unitary-authority/bracknell-forest","","","Business Support","Premises Development","Easthampstead Park Centre - Catering","Cost of Goods Sold",30/08/2018 00:00:00,"30341768",453.85,"MIKO COFFEE LTD"
"Bracknell Forest Council","http://opendatacommunities.org/id/unitary-authority/bracknell-forest","","","Business Support","Premises Development","Easthampstead Park Centre - Catering","Cost of Goods Sold",30/08/2018 00:00:00,"30341768",36,"MIKO COFFEE LTD"
"Bracknell Forest Council","http://opendatacommunities.org/id/unitary-authority/bracknell-forest","","","Business Support","Premises Development","Easthampstead Park Centre - Catering","Cost of Goods Sold",30/08/2018 00:00:00,"30341768",73.05,"THE QUALITY MEAT COMPANY"
"Bracknell Forest Council","http://opendatacommunities.org/id/unitary-authority/bracknell-forest","","","Business Support","Premises Development","Easthampstead Park Centre - Catering","Cost of Goods Sold",31/08/2018 00:00:00,"30341768",81.72,"BFS GROUP LTD T/A BIDFOOD"
"Bracknell Forest Council","http://opendatacommunities.org/id/unitary-authority/bracknell-forest","","","Business Support","Premises Development","Easthampstead Park Centre - Catering","Cost of Goods Sold",31/08/2018 00:00:00,"30341768",282.12,"BRAKE BROS FOODSERVICE LTD"
"Bracknell Forest Council","http://opendatacommunities.org/id/unitary-authority/bracknell-forest","","","Business Support","Premises Development","Easthampstead Park Centre - Catering","Cost of Goods Sold",31/08/2018 00:00:00,"30341768",483.69,"THE QUALITY MEAT COMPANY"
"Bracknell Forest Council","http://opendatacommunities.org/id/unitary-authority/bracknell-forest","","","Business Support","Premises Development","Easthampstead Park Centre - Catering","Cost of Goods Sold",01/09/2018 00:00:00,"30341768",130.48,"THE QUALITY MEAT COMPANY"
"Bracknell Forest Council","http://opendatacommunities.org/id/unitary-authority/bracknell-forest","","","Business Support","Premises Development","Easthampstead Park Centre - Catering","Cost of Goods Sold",03/09/2018 00:00:00,"30341768",159.29,"THE QUALITY MEAT COMPANY"
"Bracknell Forest Council","http://opendatacommunities.org/id/unitary-authority/bracknell-forest","","","Business Support","Premises Development","Easthampstead Park Centre - Catering","Cost of Goods Sold",04/09/2018 00:00:00,"30341768",605.03,"BFS GROUP LTD T/A BIDFOOD"
"Bracknell Forest Council","http://opendatacommunities.org/id/unitary-authority/bracknell-forest","","","Business Support","Premises Development","Easthampstead Park Centre - Catering","Cost of Goods Sold",04/09/2018 00:00:00,"30341768",29.05,"BFS GROUP LTD T/A BIDFOOD"
"Bracknell Forest Council","http://opendatacommunities.org/id/unitary-authority/bracknell-forest","","","Business Support","Premises Development","Easthampstead Park Centre - Catering","Cost of Goods Sold",04/09/2018 00:00:00,"30341768",71.78,"KFF - KENT FROZEN FOODS LTD"
"Bracknell Forest Council","http://opendatacommunities.org/id/unitary-authority/bracknell-forest","","","Business Support","Premises Development","Easthampstead Park Centre - Catering","Free Milk",06/01/2018 00:00:00,"30342118",130.38,"MULLER MILK & INGREDIENT"
"Bracknell Forest Council","http://opendatacommunities.org/id/unitary-authority/bracknell-forest","","","Business Support","Premises Development","Easthampstead Park Centre - Catering","Free Milk",06/01/2018 00:00:00,"30342118",145.78,"MULLER MILK & INGREDIENT"
"Bracknell Forest Council","http://opendatacommunities.org/id/unitary-authority/bracknell-forest","","","Business Support","Premises Development","Easthampstead Park Centre - Catering","Free Milk",06/01/2018 00:00:00,"30342118",88.96,"MULLER MILK & INGREDIENT"
"Bracknell Forest Council","http://opendatacommunities.org/id/unitary-authority/bracknell-forest","","","Business Support","Premises Development","Easthampstead Park Centre - Catering","Free Milk",20/01/2018 00:00:00,"30342118",170.85,"MULLER MILK & INGREDIENT"
"Bracknell Forest Council","http://opendatacommunities.org/id/unitary-authority/bracknell-forest","","","Business Support","Premises Development","Easthampstead Park Centre - Catering","Free Milk",03/02/2018 00:00:00,"30342118",164.26,"MULLER MILK & INGREDIENT"
"Bracknell Forest Council","http://opendatacommunities.org/id/unitary-authority/bracknell-forest","","","Business Support","Premises Development","Easthampstead Park Centre - Catering","Free Milk",24/02/2018 00:00:00,"30342118",136.36,"MULLER MILK & INGREDIENT"
"Bracknell Forest Council","http://opendatacommunities.org/id/unitary-authority/bracknell-forest","","","Business Support","Premises Development","Easthampstead Park Centre - Catering","Free Milk",03/03/2018 00:00:00,"30342118",77.78,"MULLER MILK & INGREDIENT"
"Bracknell Forest Council","http://opendatacommunities.org/id/unitary-authority/bracknell-forest","","","Business Support","Premises Development","Easthampstead Park Centre - Catering","Free Milk",03/03/2018 00:00:00,"30342118",136.36,"MULLER MILK & INGREDIENT"
"Bracknell Forest Council","http://opendatacommunities.org/id/unitary-authority/bracknell-forest","","","Business Support","Premises Development","Easthampstead Park Centre - Catering","Free Milk",17/03/2018 00:00:00,"30342118",96.08,"MULLER MILK & INGREDIENT"
"Bracknell Forest Council","http://opendatacommunities.org/id/unitary-authority/bracknell-forest","","","Business Support","Premises Development","Easthampstead Park Centre - Catering","Free Milk",17/03/2018 00:00:00,"30342118",96.08,"MULLER MILK & INGREDIENT"
"Bracknell Forest Council","http://opendatacommunities.org/id/unitary-authority/bracknell-forest","","","Business Support","Premises Development","Easthampstead Park Centre - Catering","Free Milk",24/03/2018 00:00:00,"30342118",173.56,"MULLER MILK & INGREDIENT"
"Bracknell Forest Council","http://opendatacommunities.org/id/unitary-authority/bracknell-forest","","","Business Support","Premises Development","Easthampstead Park Centre - Catering","Free Milk",31/03/2018 00:00:00,"30342118",164.26,"MULLER MILK & INGREDIENT"
"Bracknell Forest Council","http://opendatacommunities.org/id/unitary-authority/bracknell-forest","","","Business Support","Premises Development","Easthampstead Park Centre - Catering","Cost of Goods Sold",04/09/2018 00:00:00,"30342118",224.5,"MIKO COFFEE LTD"
"Bracknell Forest Council","http://opendatacommunities.org/id/unitary-authority/bracknell-forest","","","Business Support","Premises Development","Easthampstead Park Centre - Catering","Cost of Goods Sold",04/09/2018 00:00:00,"30342118",129.5,"MIKO COFFEE LTD"
"Bracknell Forest Council","http://opendatacommunities.org/id/unitary-authority/bracknell-forest","","","Business Support","Premises Development","Easthampstead Park Centre - Catering","Cost of Goods Sold",04/09/2018 00:00:00,"30342118",140.4,"TOWN & COUNTRY FINE FOODS"
"Bracknell Forest Council","http://opendatacommunities.org/id/unitary-authority/bracknell-forest","","","Business Support","Premises Development","Easthampstead Park Centre - Catering","Cost of Goods Sold",05/09/2018 00:00:00,"30342118",91.32,"BRAKE BROS FOODSERVICE LTD"
"Bracknell Forest Council","http://opendatacommunities.org/id/unitary-authority/bracknell-forest","","","Business Support","Premises Development","Easthampstead Park Centre - Catering","Cost of Goods Sold",05/09/2018 00:00:00,"30342118",140.05,"BRAKE BROS FOODSERVICE LTD"
"Bracknell Forest Council","http://opendatacommunities.org/id/unitary-authority/bracknell-forest","","","Business Support","Premises Development","Easthampstead Park Centre - Catering","Cost of Goods Sold",05/09/2018 00:00:00,"30342118",45.24,"BRAKE BROS FOODSERVICE LTD"
"Bracknell Forest Council","http://opendatacommunities.org/id/unitary-authority/bracknell-forest","","","Business Support","Premises Development","Easthampstead Park Centre - Catering","Cost of Goods Sold",07/09/2018 00:00:00,"30342118",334.59,"BFS GROUP LTD T/A BIDFOOD"
"Bracknell Forest Council","http://opendatacommunities.org/id/unitary-authority/bracknell-forest","","","Business Support","Premises Development","Easthampstead Park Centre - Catering","Cost of Goods Sold",07/09/2018 00:00:00,"30342118",10.29,"BFS GROUP LTD T/A BIDFOOD"
"Bracknell Forest Council","http://opendatacommunities.org/id/unitary-authority/bracknell-forest","","","Business Support","Premises Development","Easthampstead Park Centre - Catering","Cost of Goods Sold",04/09/2018 00:00:00,"30342400",120.22,"THE QUALITY MEAT COMPANY"
"Bracknell Forest Council","http://opendatacommunities.org/id/unitary-authority/bracknell-forest","","","Business Support","Premises Development","Easthampstead Park Centre - Catering","Cost of Goods Sold",05/09/2018 00:00:00,"30342400",116.46,"THE QUALITY MEAT COMPANY"
"Bracknell Forest Council","http://opendatacommunities.org/id/unitary-authority/bracknell-forest","","","Business Support","Premises Development","Easthampstead Park Centre - Catering","Cost of Goods Sold",06/09/2018 00:00:00,"30342400",39.91,"THE QUALITY MEAT COMPANY"
"Bracknell Forest Council","http://opendatacommunities.org/id/unitary-authority/bracknell-forest","","","Business Support","Premises Development","Easthampstead Park Centre - Catering","Cost of Goods Sold",07/09/2018 00:00:00,"30342400",356.05,"THE QUALITY MEAT COMPANY"
"Bracknell Forest Council","http://opendatacommunities.org/id/unitary-authority/bracknell-forest","","","Business Support","Premises Development","Easthampstead Park Centre - Catering","Cost of Goods Sold",08/09/2018 00:00:00,"30342400",86.38,"THE QUALITY MEAT COMPANY"
"Bracknell Forest Council","http://opendatacommunities.org/id/unitary-authority/bracknell-forest","","","Business Support","Premises Development","Easthampstead Park Centre - Catering","Cost of Goods Sold",10/09/2018 00:00:00,"30342400",262.28,"BRAKE BROS FOODSERVICE LTD"
"Bracknell Forest Council","http://opendatacommunities.org/id/unitary-authority/bracknell-forest","","","Business Support","Premises Development","Easthampstead Park Centre - Catering","Cost of Goods Sold",10/09/2018 00:00:00,"30342400",281,"MIKO COFFEE LTD"
"Bracknell Forest Council","http://opendatacommunities.org/id/unitary-authority/bracknell-forest","","","Business Support","Premises Development","Easthampstead Park Centre - Catering","Cost of Goods Sold",10/09/2018 00:00:00,"30342400",108,"MIKO COFFEE LTD"
"Bracknell Forest Council","http://opendatacommunities.org/id/unitary-authority/bracknell-forest","","","Business Support","Premises Development","Easthampstead Park Centre - Catering","Cost of Goods Sold",10/09/2018 00:00:00,"30342400",131.77,"THE QUALITY MEAT COMPANY"
"Bracknell Forest Council","http://opendatacommunities.org/id/unitary-authority/bracknell-forest","","","Business Support","Premises Development","Easthampstead Park Centre - Catering","Cost of Goods Sold",11/09/2018 00:00:00,"30342400",332.75,"BFS GROUP LTD T/A BIDFOOD"
"Bracknell Forest Council","http://opendatacommunities.org/id/unitary-authority/bracknell-forest","","","Business Support","Premises Development","Easthampstead Park Centre - Catering","Cost of Goods Sold",12/09/2018 00:00:00,"30342400",388.75,"BFS GROUP LTD T/A BIDFOOD"
"Bracknell Forest Council","http://opendatacommunities.org/id/unitary-authority/bracknell-forest","","","Business Support","Premises Development","Easthampstead Park Centre - Catering","Cost of Goods Sold",12/09/2018 00:00:00,"30342400",15.64,"BFS GROUP LTD T/A BIDFOOD"
"Bracknell Forest Council","http://opendatacommunities.org/id/unitary-authority/bracknell-forest","","","Business Support","Premises Development","Easthampstead Park Centre - Catering","Cost of Goods Sold",12/09/2018 00:00:00,"30342400",233.32,"DDC FOODS LTD"
"Bracknell Forest Council","http://opendatacommunities.org/id/unitary-authority/bracknell-forest","","","Business Support","Premises Development","Easthampstead Park Centre - Catering","Cost of Goods Sold",13/09/2018 00:00:00,"30342400",123.82,"KFF - KENT FROZEN FOODS LTD"
"Bracknell Forest Council","http://opendatacommunities.org/id/unitary-authority/bracknell-forest","","","Business Support","Premises Development","Easthampstead Park Centre - Catering","Cost of Goods Sold",14/09/2018 00:00:00,"30342400",246.26,"BFS GROUP LTD T/A BIDFOOD"
"Bracknell Forest Council","http://opendatacommunities.org/id/unitary-authority/bracknell-forest","","","Business Support","Premises Development","Easthampstead Park Centre - Catering","Cost of Goods Sold",14/09/2018 00:00:00,"30342400",65.61,"BFS GROUP LTD T/A BIDFOOD"
"Bracknell Forest Council","http://opendatacommunities.org/id/unitary-authority/bracknell-forest","","","Business Support","Premises Development","Easthampstead Park Centre - Catering","Cost of Goods Sold",14/09/2018 00:00:00,"30342400",296.07,"BRAKE BROS FOODSERVICE LTD"
"Bracknell Forest Council","http://opendatacommunities.org/id/unitary-authority/bracknell-forest","","","Business Support","Premises Development","Easthampstead Park Centre - Catering","Cost of Goods Sold",14/09/2018 00:00:00,"30342400",8.39,"BRAKE BROS FOODSERVICE LTD"
"Bracknell Forest Council","http://opendatacommunities.org/id/unitary-authority/bracknell-forest","","","Business Support","Premises Development","Easthampstead Park Centre - Catering","Cost of Goods Sold",15/09/2018 00:00:00,"30342400",43.23,"M & J SEAFOOD"
"Bracknell Forest Council","http://opendatacommunities.org/id/unitary-authority/bracknell-forest","","","Business Support","Premises Development","Easthampstead Park Centre - Catering","Cost of Goods Sold",18/09/2018 00:00:00,"30342400",1025.83,"BFS GROUP LTD T/A BIDFOOD"
"Bracknell Forest Council","http://opendatacommunities.org/id/unitary-authority/bracknell-forest","","","Business Support","Premises Development","Easthampstead Park Centre - Catering","Cost of Goods Sold",18/09/2018 00:00:00,"30342400",299.57,"BFS GROUP LTD T/A BIDFOOD"
"Bracknell Forest Council","http://opendatacommunities.org/id/unitary-authority/bracknell-forest","","","Secondary Schools","Delegated Primary School Budgets","Cranbourne - Primary","Gas",10/10/2018 00:00:00,"30344300",236.54,"CORONA GAS"
"Bracknell Forest Council","http://opendatacommunities.org/id/unitary-authority/bracknell-forest","","","Secondary Schools","Delegated Primary School Budgets","Cranbourne - Primary","Gas",10/10/2018 00:00:00,"30344300",215.76,"CORONA GAS"
"Bracknell Forest Council","http://opendatacommunities.org/id/unitary-authority/bracknell-forest","","","Secondary Schools","Delegated Primary School Budgets","Cranbourne - Primary","Gas",10/10/2018 00:00:00,"30344300",234.07,"CORONA GAS"
"Bracknell Forest Council","http://opendatacommunities.org/id/unitary-authority/bracknell-forest","","","Secondary Schools","Delegated Primary School Budgets","Cranbourne - Primary","Gas",10/10/2018 00:00:00,"30344300",260.2,"CORONA GAS"
"Bracknell Forest Council","http://opendatacommunities.org/id/unitary-authority/bracknell-forest","","","Secondary Schools","Delegated Primary School Budgets","Cranbourne - Primary","Gas",10/10/2018 00:00:00,"30344300",157.24,"CORONA GAS"
"Bracknell Forest Council","http://opendatacommunities.org/id/unitary-authority/bracknell-forest","","","Secondary Schools","Delegated Primary School Budgets","Cranbourne - Primary","Gas",10/10/2018 00:00:00,"30344300",-389,"CORONA GAS"
"Bracknell Forest Council","http://opendatacommunities.org/id/unitary-authority/bracknell-forest","","","Secondary Schools","Delegated Primary School Budgets","Cranbourne - Primary","Gas",10/10/2018 00:00:00,"30344300",-348.36,"CORONA GAS"
"Bracknell Forest Council","http://opendatacommunities.org/id/unitary-authority/bracknell-forest","","","Secondary Schools","Delegated Primary School Budgets","Cranbourne - Primary","Gas",10/10/2018 00:00:00,"30344300",182.32,"CORONA GAS"
"Bracknell Forest Council","http://opendatacommunities.org/id/unitary-authority/bracknell-forest","","","Secondary Schools","Delegated Primary School Budgets","Cranbourne - Primary","Gas",10/10/2018 00:00:00,"30344300",-365.47,"CORONA GAS"
"Bracknell Forest Council","http://opendatacommunities.org/id/unitary-authority/bracknell-forest","","","Secondary Schools","Delegated Primary School Budgets","Cranbourne - Primary","Gas",10/10/2018 00:00:00,"30344300",219.65,"CORONA GAS"
"Bracknell Forest Council","http://opendatacommunities.org/id/unitary-authority/bracknell-forest","","","Secondary Schools","Delegated Primary School Budgets","Cranbourne - Primary","Gas",10/10/2018 00:00:00,"30344300",159.15,"CORONA GAS"
"Bracknell Forest Council","http://opendatacommunities.org/id/unitary-authority/bracknell-forest","","","Secondary Schools","Delegated Primary School Budgets","Cranbourne - Primary","Gas",10/10/2018 00:00:00,"30344300",-253.38,"CORONA GAS"
"Bracknell Forest Council","http://opendatacommunities.org/id/unitary-authority/bracknell-forest","","","Secondary Schools","Delegated Primary School Budgets","Cranbourne - Primary","Gas",10/10/2018 00:00:00,"30344300",246.57,"CORONA GAS"
"Bracknell Forest Council","http://opendatacommunities.org/id/unitary-authority/bracknell-forest","","","Secondary Schools","Delegated Primary School Budgets","Cranbourne - Primary","Gas",10/10/2018 00:00:00,"30344300",-287.64,"CORONA GAS"
"Bracknell Forest Council","http://opendatacommunities.org/id/unitary-authority/bracknell-forest","","","Secondary Schools","Delegated Primary School Budgets","Cranbourne - Primary","Electricity",12/11/2018 00:00:00,"30346303",71.85,"BRITISH GAS TRADING"
"Bracknell Forest Council","http://opendatacommunities.org/id/unitary-authority/bracknell-forest","","","Secondary Schools","Delegated Primary School Budgets","Cranbourne - Primary","Electricity",12/11/2018 00:00:00,"30346303",612.9,"BRITISH GAS TRADING"
"Bracknell Forest Council","http://opendatacommunities.org/id/unitary-authority/bracknell-forest","","","Management and Support Services - CYPL","Holding Codes - net nil","Crown Wood Academy","Electricity",10/08/2018 00:00:00,"30340683",970.58,"BRITISH GAS TRADING"
"Bracknell Forest Council","http://opendatacommunities.org/id/unitary-authority/bracknell-forest","","","Management and Support Services - CYPL","Holding Codes - net nil","Crown Wood Academy","Gas",10/08/2018 00:00:00,"30341042",450.1,"CORONA GAS"
"Bracknell Forest Council","http://opendatacommunities.org/id/unitary-authority/bracknell-forest","","","Management and Support Services - CYPL","Holding Codes - net nil","Crown Wood Academy","Electricity",10/09/2018 00:00:00,"30342617",744.71,"BRITISH GAS TRADING"
"Bracknell Forest Council","http://opendatacommunities.org/id/unitary-authority/bracknell-forest","","","Management and Support Services - CYPL","Holding Codes - net nil","Crown Wood Academy","Gas",10/09/2018 00:00:00,"30342800",444.45,"CORONA GAS"
"Bracknell Forest Council","http://opendatacommunities.org/id/unitary-authority/bracknell-forest","","","Business Support","Premises Development","Easthampstead Park Centre - Catering","Cost of Goods Sold",18/01/2017 00:00:00,"30342799",-19.22,"Redact Personal Info"
"Bracknell Forest Council","http://opendatacommunities.org/id/unitary-authority/bracknell-forest","","","Business Support","Premises Development","Easthampstead Park Centre - Catering","Cost of Goods Sold",05/09/2018 00:00:00,"30342799",160.31,"THE QUALITY MEAT COMPANY"
"Bracknell Forest Council","http://opendatacommunities.org/id/unitary-authority/bracknell-forest","","","Business Support","Premises Development","Easthampstead Park Centre - Catering","Cost of Goods Sold",08/09/2018 00:00:00,"30342799",51.33,"THE QUALITY MEAT COMPANY"
"Bracknell Forest Council","http://opendatacommunities.org/id/unitary-authority/bracknell-forest","","","Business Support","Premises Development","Easthampstead Park Centre - Catering","Cost of Goods Sold",13/09/2018 00:00:00,"30342799",95.57,"THE QUALITY MEAT COMPANY"
"Bracknell Forest Council","http://opendatacommunities.org/id/unitary-authority/bracknell-forest","","","Business Support","Premises Development","Easthampstead Park Centre - Catering","Cost of Goods Sold",13/09/2018 00:00:00,"30342799",328.75,"THE QUALITY MEAT COMPANY"
"Bracknell Forest Council","http://opendatacommunities.org/id/unitary-authority/bracknell-forest","","","Business Support","Premises Development","Easthampstead Park Centre - Catering","Cost of Goods Sold",14/09/2018 00:00:00,"30342799",11.73,"THE QUALITY MEAT COMPANY"
"Bracknell Forest Council","http://opendatacommunities.org/id/unitary-authority/bracknell-forest","","","Business Support","Premises Development","Easthampstead Park Centre - Catering","Cost of Goods Sold",14/09/2018 00:00:00,"30342799",281.45,"THE QUALITY MEAT COMPANY"
"Bracknell Forest Council","http://opendatacommunities.org/id/unitary-authority/bracknell-forest","","","Business Support","Premises Development","Easthampstead Park Centre - Catering","Cost of Goods Sold",15/09/2018 00:00:00,"30342799",430.28,"THE QUALITY MEAT COMPANY"
"Bracknell Forest Council","http://opendatacommunities.org/id/unitary-authority/bracknell-forest","","","Business Support","Premises Development","Easthampstead Park Centre - Catering","Cost of Goods Sold",17/09/2018 00:00:00,"30342799",424.92,"BRAKE BROS FOODSERVICE LTD"
"Bracknell Forest Council","http://opendatacommunities.org/id/unitary-authority/bracknell-forest","","","Business Support","Premises Development","Easthampstead Park Centre - Catering","Cost of Goods Sold",17/09/2018 00:00:00,"30342799",51.02,"BRAKE BROS FOODSERVICE LTD"
"Bracknell Forest Council","http://opendatacommunities.org/id/unitary-authority/bracknell-forest","","","Business Support","Premises Development","Easthampstead Park Centre - Catering","Cost of Goods Sold",17/09/2018 00:00:00,"30342799",49.3,"BRAKE BROS FOODSERVICE LTD"
"Bracknell Forest Council","http://opendatacommunities.org/id/unitary-authority/bracknell-forest","","","Business Support","Premises Development","Easthampstead Park Centre - Catering","Cost of Goods Sold",17/09/2018 00:00:00,"30342799",216.83,"THE QUALITY MEAT COMPANY"
"Bracknell Forest Council","http://opendatacommunities.org/id/unitary-authority/bracknell-forest","","","Business Support","Premises Development","Easthampstead Park Centre - Catering","Cost of Goods Sold",17/09/2018 00:00:00,"30342799",22.5,"THE QUALITY MEAT COMPANY"
"Bracknell Forest Council","http://opendatacommunities.org/id/unitary-authority/bracknell-forest","","","Business Support","Premises Development","Easthampstead Park Centre - Catering","Cost of Goods Sold",18/09/2018 00:00:00,"30342799",203.94,"THE QUALITY MEAT COMPANY"
"Bracknell Forest Council","http://opendatacommunities.org/id/unitary-authority/bracknell-forest","","","Business Support","Premises Development","Easthampstead Park Centre - Catering","Cost of Goods Sold",18/09/2018 00:00:00,"30342799",506.19,"THE QUALITY MEAT COMPANY"
"Bracknell Forest Council","http://opendatacommunities.org/id/unitary-authority/bracknell-forest","","","Business Support","Premises Development","Easthampstead Park Centre - Catering","Cost of Goods Sold",18/09/2018 00:00:00,"30342799",67.95,"TOWN & COUNTRY FINE FOODS"
"Bracknell Forest Council","http://opendatacommunities.org/id/unitary-authority/bracknell-forest","","","Business Support","Premises Development","Easthampstead Park Centre - Catering","Cost of Goods Sold",18/09/2018 00:00:00,"30342799",9.93,"TOWN & COUNTRY FINE FOODS"
"Bracknell Forest Council","http://opendatacommunities.org/id/unitary-authority/bracknell-forest","","","Business Support","Premises Development","Easthampstead Park Centre - Catering","Cost of Goods Sold",19/09/2018 00:00:00,"30342799",18.68,"BRAKE BROS FOODSERVICE LTD"
"Bracknell Forest Council","http://opendatacommunities.org/id/unitary-authority/bracknell-forest","","","Business Support","Premises Development","Easthampstead Park Centre - Catering","Cost of Goods Sold",19/09/2018 00:00:00,"30342799",4.06,"BRAKE BROS FOODSERVICE LTD"
"Bracknell Forest Council","http://opendatacommunities.org/id/unitary-authority/bracknell-forest","","","Business Support","Premises Development","Easthampstead Park Centre - Catering","Cost of Goods Sold",19/09/2018 00:00:00,"30342799",139.01,"M & J SEAFOOD"
"Bracknell Forest Council","http://opendatacommunities.org/id/unitary-authority/bracknell-forest","","","Business Support","Premises Development","Easthampstead Park Centre - Catering","Cost of Goods Sold",19/09/2018 00:00:00,"30342799",61.86,"THE QUALITY MEAT COMPANY"
"Bracknell Forest Council","http://opendatacommunities.org/id/unitary-authority/bracknell-forest","","","Business Support","Premises Development","Easthampstead Park Centre - Catering","Cost of Goods Sold",19/09/2018 00:00:00,"30342799",245.58,"THE QUALITY MEAT COMPANY"
"Bracknell Forest Council","http://opendatacommunities.org/id/unitary-authority/bracknell-forest","","","Business Support","Premises Development","Easthampstead Park Centre - Catering","Cost of Goods Sold",20/09/2018 00:00:00,"30342799",498.1,"BFS GROUP LTD T/A BIDFOOD"
"Bracknell Forest Council","http://opendatacommunities.org/id/unitary-authority/bracknell-forest","","","Business Support","Premises Development","Easthampstead Park Centre - Catering","Cost of Goods Sold",20/09/2018 00:00:00,"30342799",39.63,"BFS GROUP LTD T/A BIDFOOD"
"Bracknell Forest Council","http://opendatacommunities.org/id/unitary-authority/bracknell-forest","","","Business Support","Premises Development","Easthampstead Park Centre - Catering","Cost of Goods Sold",20/09/2018 00:00:00,"30342799",115.97,"THE QUALITY MEAT COMPANY"
"Bracknell Forest Council","http://opendatacommunities.org/id/unitary-authority/bracknell-forest","","","Business Support","Premises Development","Easthampstead Park Centre - Catering","Cost of Goods Sold",21/09/2018 00:00:00,"30342799",22.62,"BRAKE BROS FOODSERVICE LTD"
"Bracknell Forest Council","http://opendatacommunities.org/id/unitary-authority/bracknell-forest","","","Business Support","Premises Development","Easthampstead Park Centre - Catering","Cost of Goods Sold",21/09/2018 00:00:00,"30342799",82.5,"THE QUALITY MEAT COMPANY"
"Bracknell Forest Council","http://opendatacommunities.org/id/unitary-authority/bracknell-forest","","","Business Support","Premises Development","Easthampstead Park Centre - Catering","Cost of Goods Sold",22/09/2018 00:00:00,"30342799",95.59,"THE QUALITY MEAT COMPANY"
"Bracknell Forest Council","http://opendatacommunities.org/id/unitary-authority/bracknell-forest","","","Business Support","Premises Development","Easthampstead Park Centre - Catering","Cost of Goods Sold",22/09/2018 00:00:00,"30342799",71.9,"THE QUALITY MEAT COMPANY"
"Bracknell Forest Council","http://opendatacommunities.org/id/unitary-authority/bracknell-forest","","","Business Support","Premises Development","Easthampstead Park Centre - Catering","Cost of Goods Sold",24/09/2018 00:00:00,"30342799",10.69,"THE QUALITY MEAT COMPANY"
"Bracknell Forest Council","http://opendatacommunities.org/id/unitary-authority/bracknell-forest","","","Corporate Management COF","Dir of Corporate Services Support & Admin","EXECUTIVE DIRECTOR DELIVERY","Consultants Fees",15/06/2018 00:00:00,"6666594",600,"REED BUSINESS INFORMATION LTD"
"Bracknell Forest Council","http://opendatacommunities.org/id/unitary-authority/bracknell-forest","","","Corporate Management COF","Dir of Corporate Services Support & Admin","EXECUTIVE DIRECTOR DELIVERY","Consultants Fees",15/10/2018 00:00:00,"6670479",1256.3,"STANGER CONSULTING LTD"
"Bracknell Forest Council","http://opendatacommunities.org/id/unitary-authority/bracknell-forest","","","Corporate Management COF","Dir of Corporate Services Support & Admin","EXECUTIVE DIRECTOR DELIVERY","Office Stationery",22/08/2018 00:00:00,"30341721",17.34,"COMMERCIAL LTD"
"Bracknell Forest Council","http://opendatacommunities.org/id/unitary-authority/bracknell-forest","","","Corporate Management COF","Dir of Corporate Services Support & Admin","EXECUTIVE DIRECTOR DELIVERY","Office Stationery",22/08/2018 00:00:00,"30341721",39.56,"COMMERCIAL LTD"
"Bracknell Forest Council","http://opendatacommunities.org/id/unitary-authority/bracknell-forest","","","Corporate Management COF","Dir of Corporate Services Support & Admin","EXECUTIVE DIRECTOR DELIVERY","Office Stationery",22/08/2018 00:00:00,"30341721",6.52,"COMMERCIAL LTD"
"Bracknell Forest Council","http://opendatacommunities.org/id/unitary-authority/bracknell-forest","","","Corporate Management COF","Dir of Corporate Services Support & Admin","EXECUTIVE DIRECTOR DELIVERY","Office Stationery",22/08/2018 00:00:00,"30341721",66,"COMMERCIAL LTD"
"Bracknell Forest Council","http://opendatacommunities.org/id/unitary-authority/bracknell-forest","","","Corporate Management COF","Dir of Corporate Services Support & Admin","EXECUTIVE DIRECTOR DELIVERY","Office Stationery",22/08/2018 00:00:00,"30341721",5.52,"COMMERCIAL LTD"
"Bracknell Forest Council","http://opendatacommunities.org/id/unitary-authority/bracknell-forest","","","Corporate Management COF","Dir of Corporate Services Support & Admin","EXECUTIVE DIRECTOR DELIVERY","Office Stationery",22/08/2018 00:00:00,"30341721",0.39,"COMMERCIAL LTD"
"Bracknell Forest Council","http://opendatacommunities.org/id/unitary-authority/bracknell-forest","","","Corporate Management COF","Dir of Corporate Services Support & Admin","EXECUTIVE DIRECTOR DELIVERY","Office Stationery",22/08/2018 00:00:00,"30341721",77,"COMMERCIAL LTD"
"Bracknell Forest Council","http://opendatacommunities.org/id/unitary-authority/bracknell-forest","","","Corporate Management COF","Dir of Corporate Services Support & Admin","EXECUTIVE DIRECTOR DELIVERY","Office Stationery",22/10/2018 00:00:00,"30345767",86.46,"COMMERCIAL LTD"
"Bracknell Forest Council","http://opendatacommunities.org/id/unitary-authority/bracknell-forest","","","Corporate Management COF","Dir of Corporate Services Support & Admin","EXECUTIVE DIRECTOR DELIVERY","Office Stationery",22/10/2018 00:00:00,"30345767",5.76,"COMMERCIAL LTD"
"Bracknell Forest Council","http://opendatacommunities.org/id/unitary-authority/bracknell-forest","","","Corporate Management COF","Dir of Corporate Services Support & Admin","EXECUTIVE DIRECTOR DELIVERY","Office Stationery",22/10/2018 00:00:00,"30345767",39.56,"COMMERCIAL LTD"
"Bracknell Forest Council","http://opendatacommunities.org/id/unitary-authority/bracknell-forest","","","Corporate Management COF","Dir of Corporate Services Support & Admin","EXECUTIVE DIRECTOR DELIVERY","Office Stationery",22/10/2018 00:00:00,"30345767",1.92,"COMMERCIAL LTD"
"Bracknell Forest Council","http://opendatacommunities.org/id/unitary-authority/bracknell-forest","","","Corporate Management COF","Dir of Corporate Services Support & Admin","EXECUTIVE DIRECTOR DELIVERY","Office Stationery",22/10/2018 00:00:00,"30345767",2.4,"COMMERCIAL LTD"
"Bracknell Forest Council","http://opendatacommunities.org/id/unitary-authority/bracknell-forest","","","Corporate Management COF","Dir of Corporate Services Support & Admin","EXECUTIVE DIRECTOR DELIVERY","Office Stationery",22/10/2018 00:00:00,"30345767",16.64,"COMMERCIAL LTD"
"Bracknell Forest Council","http://opendatacommunities.org/id/unitary-authority/bracknell-forest","","","Recreation, Sports and Leisure","Community Centres","Community Centres Support","R&M - Reactive",05/10/2018 00:00:00,"6670850",1043.86,"SOUTHERN ELECTRIC CONTRACTING"
"Bracknell Forest Council","http://opendatacommunities.org/id/unitary-authority/bracknell-forest","","","Recreation, Sports and Leisure","Community Centres","Community Centres Support","R&M - Reactive",19/11/2018 00:00:00,"6672660",3300,"CONTROL MATTERS LTD"
"Bracknell Forest Council","http://opendatacommunities.org/id/unitary-authority/bracknell-forest","","","Recreation, Sports and Leisure","Community Centres","Community Centres Support","R&M - Reactive",21/11/2018 00:00:00,"6673027",600,"SOUTHERN ELECTRIC CONTRACTING"
"Bracknell Forest Council","http://opendatacommunities.org/id/unitary-authority/bracknell-forest","","","Holding Accounts in Budget Book COF","Corporate Services - Office Services","Courier Service","Operating Lease Charge",16/11/2018 00:00:00,"6672922",3054.96,"LEX AUTOLEASE LTD"
"Bracknell Forest Council","http://opendatacommunities.org/id/unitary-authority/bracknell-forest","","","Holding Accounts in Budget Book COF","Corporate Services - Office Services","Central Photocopying","Photocopying",28/09/2018 00:00:00,"6669785",7296.33,"KONICA MINOLTA BUSINESS SOLUTIONS (UK) LTD"
"Bracknell Forest Council","http://opendatacommunities.org/id/unitary-authority/bracknell-forest","","","Holding Accounts in Budget Book COF","Corporate Services - Office Services","Central Photocopying","Photocopying",23/10/2018 00:00:00,"6671786",2218.96,"RICOH UK LTD"
"Bracknell Forest Council","http://opendatacommunities.org/id/unitary-authority/bracknell-forest","","","Holding Accounts in Budget Book COF","Corporate Services - Office Services","Postal Services","Postage",31/07/2018 00:00:00,"6666061",1061.23,"WHISTL"
"Bracknell Forest Council","http://opendatacommunities.org/id/unitary-authority/bracknell-forest","","","Holding Accounts in Budget Book COF","Corporate Services - Office Services","Postal Services","Postage",16/08/2018 00:00:00,"6666910",1500,"FP FRANCOTYP POSTALIA LIMITED"
"Bracknell Forest Council","http://opendatacommunities.org/id/unitary-authority/bracknell-forest","","","Holding Accounts in Budget Book COF","Corporate Services - Office Services","Postal Services","Postage",12/08/2018 00:00:00,"6667139",804.63,"WHISTL"
"Bracknell Forest Council","http://opendatacommunities.org/id/unitary-authority/bracknell-forest","","","Holding Accounts in Budget Book COF","Corporate Services - Office Services","Postal Services","Postage",21/08/2018 00:00:00,"6667338",883.21,"WHISTL"
"Bracknell Forest Council","http://opendatacommunities.org/id/unitary-authority/bracknell-forest","","","Holding Accounts in Budget Book COF","Corporate Services - Office Services","Postal Services","Postage",29/08/2018 00:00:00,"6667548",902.76,"WHISTL"
"Bracknell Forest Council","http://opendatacommunities.org/id/unitary-authority/bracknell-forest","","","Holding Accounts in Budget Book COF","Corporate Services - Office Services","Postal Services","Postage",30/08/2018 00:00:00,"60014542",-1677.62,"WHISTL"
"Bracknell Forest Council","http://opendatacommunities.org/id/unitary-authority/bracknell-forest","","","Holding Accounts in Budget Book COF","Corporate Services - Office Services","Postal Services","Postage",30/08/2018 00:00:00,"60014543",-636.83,"WHISTL"
"Bracknell Forest Council","http://opendatacommunities.org/id/unitary-authority/bracknell-forest","","","Holding Accounts in Budget Book COF","Corporate Services - Office Services","Office Services - General Expenses","Other Fees for Bought-in Services",19/11/2018 00:00:00,"6672560",1425,"SHORTS ELECTRICAL LTD"
"Bracknell Forest Council","http://opendatacommunities.org/id/unitary-authority/bracknell-forest","","","Holding Accounts in Budget Book COF","Corporate Services - Office Services","Office Services - General Expenses","Office Stationery",22/08/2018 00:00:00,"30341721",30,"COMMERCIAL LTD"
"Bracknell Forest Council","http://opendatacommunities.org/id/unitary-authority/bracknell-forest","","","Holding Accounts in Budget Book COF","Corporate Services - Office Services","Office Services - General Expenses","Office Stationery",22/08/2018 00:00:00,"30341721",30,"COMMERCIAL LTD"
"Bracknell Forest Council","http://opendatacommunities.org/id/unitary-authority/bracknell-forest","","","Holding Accounts in Budget Book COF","Corporate Services - Office Services","Shredding","Refuse Collection",31/01/2018 00:00:00,"6669352",4006.6,"SHRED-IT"
"Bracknell Forest Council","http://opendatacommunities.org/id/unitary-authority/bracknell-forest","","","Holding Accounts in Budget Book COF","Corporate Services - Office Services","Shredding","Refuse Collection",30/09/2018 00:00:00,"6669474",769.5,"SHRED-ON-SITE LIMITED"
"Bracknell Forest Council","http://opendatacommunities.org/id/unitary-authority/bracknell-forest","","","Holding Accounts in Budget Book COF","Corporate Services - Office Services","Shredding","Refuse Collection",30/09/2017 00:00:00,"6671692",1737.68,"SHRED-IT"
"Bracknell Forest Council","http://opendatacommunities.org/id/unitary-authority/bracknell-forest","","","Holding Accounts in Budget Book COF","Corporate Serv - Reprographics & Printing","Graphic Design","Computer Maintenance",19/09/2018 00:00:00,"6669178",771,"DEJAC ASSOCIATES LTD"
"Bracknell Forest Council","http://opendatacommunities.org/id/unitary-authority/bracknell-forest","","","Central Support Services - COF","Information Technology","Information Technology - Management","Computer Software",31/07/2018 00:00:00,"6667288",2381,"FRESHWORKS INC"
"Bracknell Forest Council","http://opendatacommunities.org/id/unitary-authority/bracknell-forest","","","Central Support Services - COF","Information Technology","Information Technology - Management","Agency",24/10/2018 00:00:00,"30344487",1417.6,"MATRIX SCM LTD"
"Bracknell Forest Council","http://opendatacommunities.org/id/unitary-authority/bracknell-forest","","","Central Support Services - COF","Information Technology","Information Technology - Management","Agency",31/10/2018 00:00:00,"30344810",3544,"MATRIX SCM LTD"
"Bracknell Forest Council","http://opendatacommunities.org/id/unitary-authority/bracknell-forest","","","Central Support Services - COF","Information Technology","Information Technology - Management","Agency",14/11/2018 00:00:00,"30345674",3544,"MATRIX SCM LTD"
"Bracknell Forest Council","http://opendatacommunities.org/id/unitary-authority/bracknell-forest","","","Central Support Services - COF","Information Technology","Information Technology - Management","Agency",14/11/2018 00:00:00,"30345674",3544,"MATRIX SCM LTD"
"Bracknell Forest Council","http://opendatacommunities.org/id/unitary-authority/bracknell-forest","","","Central Support Services - COF","Information Technology","Information Technology - Management","Office Stationery",22/10/2018 00:00:00,"30345767",6.74,"COMMERCIAL LTD"
"Bracknell Forest Council","http://opendatacommunities.org/id/unitary-authority/bracknell-forest","","","Central Support Services - COF","Information Technology","Information Technology - Management","Office Stationery",22/10/2018 00:00:00,"30345767",2.82,"COMMERCIAL LTD"
"Bracknell Forest Council","http://opendatacommunities.org/id/unitary-authority/bracknell-forest","","","Central Support Services - COF","Information Technology","Web Team","Licences",01/07/2018 00:00:00,"6666075",2055.13,"INVOTRA LIMITED"
"Bracknell Forest Council","http://opendatacommunities.org/id/unitary-authority/bracknell-forest","","","Central Support Services - COF","Information Technology","Web Team","Licences",01/08/2018 00:00:00,"6666142",2055.13,"INVOTRA LIMITED"
"Bracknell Forest Council","http://opendatacommunities.org/id/unitary-authority/bracknell-forest","","","Central Support Services - COF","Information Technology","Web Team","Licences",02/08/2018 00:00:00,"6666154",3500,"CLUDO"
"Bracknell Forest Council","http://opendatacommunities.org/id/unitary-authority/bracknell-forest","","","Central Support Services - COF","Information Technology","Web Team","Licences",30/07/2018 00:00:00,"6667136",1023,"FIRMSTEP"
"Bracknell Forest Council","http://opendatacommunities.org/id/unitary-authority/bracknell-forest","","","Central Support Services - COF","Information Technology","Web Team","Licences",30/07/2018 00:00:00,"6667136",9172,"FIRMSTEP"
"Bracknell Forest Council","http://opendatacommunities.org/id/unitary-authority/bracknell-forest","","","Central Support Services - COF","Information Technology","Web Team","Licences",30/07/2018 00:00:00,"6667136",2560,"FIRMSTEP"
"Bracknell Forest Council","http://opendatacommunities.org/id/unitary-authority/bracknell-forest","","","Central Support Services - COF","Information Technology","Web Team","Licences",10/08/2018 00:00:00,"6667216",9400,"PLATFORM.SH. LIMITED"
"Bracknell Forest Council","http://opendatacommunities.org/id/unitary-authority/bracknell-forest","","","Central Support Services - COF","Information Technology","Web Team","Licences",25/07/2018 00:00:00,"6667496",5400,"MICROSERVE IT SERVICES LTD"
"Bracknell Forest Council","http://opendatacommunities.org/id/unitary-authority/bracknell-forest","","","Central Support Services - COF","Information Technology","Web Team","Licences",18/07/2018 00:00:00,"6667742",2850,"SHAW TRUST LTD"
"Bracknell Forest Council","http://opendatacommunities.org/id/unitary-authority/bracknell-forest","","","Central Support Services - COF","Information Technology","Web Team","Licences",01/09/2018 00:00:00,"6669440",1027.57,"INVOTRA LIMITED"
"Bracknell Forest Council","http://opendatacommunities.org/id/unitary-authority/bracknell-forest","","","Management and Support Services - CYPL","Holding Codes - net nil","Crown Wood Academy","Electricity",10/10/2018 00:00:00,"30344074",1207.83,"BRITISH GAS TRADING"
"Bracknell Forest Council","http://opendatacommunities.org/id/unitary-authority/bracknell-forest","","","Management and Support Services - CYPL","Holding Codes - net nil","Crown Wood Academy","Gas",10/10/2018 00:00:00,"30344300",469.71,"CORONA GAS"
"Bracknell Forest Council","http://opendatacommunities.org/id/unitary-authority/bracknell-forest","","","Management and Support Services - CYPL","Holding Codes - net nil","Crown Wood Academy","Electricity",12/11/2018 00:00:00,"30346303",1321.21,"BRITISH GAS TRADING"
"Bracknell Forest Council","http://opendatacommunities.org/id/unitary-authority/bracknell-forest","","","Secondary Schools","Delegated Primary School Budgets","Crowthorne - Primary","Electricity",10/08/2018 00:00:00,"30340683",486.21,"BRITISH GAS TRADING"
"Bracknell Forest Council","http://opendatacommunities.org/id/unitary-authority/bracknell-forest","","","Secondary Schools","Delegated Primary School Budgets","Crowthorne - Primary","Electricity",10/08/2018 00:00:00,"30340683",12.59,"BRITISH GAS TRADING"
"Bracknell Forest Council","http://opendatacommunities.org/id/unitary-authority/bracknell-forest","","","Secondary Schools","Delegated Primary School Budgets","Crowthorne - Primary","Gas",10/08/2018 00:00:00,"30341042",199.33,"CORONA GAS"
"Bracknell Forest Council","http://opendatacommunities.org/id/unitary-authority/bracknell-forest","","","Secondary Schools","Delegated Primary School Budgets","Crowthorne - Primary","Gas",10/08/2018 00:00:00,"30341042",52.39,"CORONA GAS"
"Bracknell Forest Council","http://opendatacommunities.org/id/unitary-authority/bracknell-forest","","","Secondary Schools","Delegated Primary School Budgets","Crowthorne - Primary","Electricity",10/09/2018 00:00:00,"30342617",11.3,"BRITISH GAS TRADING"
"Bracknell Forest Council","http://opendatacommunities.org/id/unitary-authority/bracknell-forest","","","Secondary Schools","Delegated Primary School Budgets","Crowthorne - Primary","Electricity",10/09/2018 00:00:00,"30342617",462.27,"BRITISH GAS TRADING"
"Bracknell Forest Council","http://opendatacommunities.org/id/unitary-authority/bracknell-forest","","","Secondary Schools","Delegated Primary School Budgets","Crowthorne - Primary","Gas",10/09/2018 00:00:00,"30342800",160.79,"CORONA GAS"
"Bracknell Forest Council","http://opendatacommunities.org/id/unitary-authority/bracknell-forest","","","Secondary Schools","Delegated Primary School Budgets","Crowthorne - Primary","Gas",10/09/2018 00:00:00,"30342800",49.13,"CORONA GAS"
"Bracknell Forest Council","http://opendatacommunities.org/id/unitary-authority/bracknell-forest","","","Secondary Schools","Delegated Primary School Budgets","Crowthorne - Primary","Electricity",10/10/2018 00:00:00,"30344074",284.27,"BRITISH GAS TRADING"
"Bracknell Forest Council","http://opendatacommunities.org/id/unitary-authority/bracknell-forest","","","Secondary Schools","Delegated Primary School Budgets","Crowthorne - Primary","Electricity",10/10/2018 00:00:00,"30344074",11.06,"BRITISH GAS TRADING"
"Bracknell Forest Council","http://opendatacommunities.org/id/unitary-authority/bracknell-forest","","","Secondary Schools","Delegated Primary School Budgets","Crowthorne - Primary","Gas",10/10/2018 00:00:00,"30344300",225.49,"CORONA GAS"
"Bracknell Forest Council","http://opendatacommunities.org/id/unitary-authority/bracknell-forest","","","Secondary Schools","Delegated Primary School Budgets","Crowthorne - Primary","Gas",10/10/2018 00:00:00,"30344300",52.86,"CORONA GAS"
"Bracknell Forest Council","http://opendatacommunities.org/id/unitary-authority/bracknell-forest","","","Secondary Schools","Delegated Primary School Budgets","Crowthorne - Primary","Electricity",12/11/2018 00:00:00,"30346303",13.09,"BRITISH GAS TRADING"
"Bracknell Forest Council","http://opendatacommunities.org/id/unitary-authority/bracknell-forest","","","Secondary Schools","Delegated Primary School Budgets","Crowthorne - Primary","Electricity",12/11/2018 00:00:00,"30346303",417.61,"BRITISH GAS TRADING"
"Bracknell Forest Council","http://opendatacommunities.org/id/unitary-authority/bracknell-forest","","","Secondary Schools","Delegated Primary School Budgets","Fox Hill - Primary","Electricity",10/08/2018 00:00:00,"30340683",683.28,"BRITISH GAS TRADING"
"Bracknell Forest Council","http://opendatacommunities.org/id/unitary-authority/bracknell-forest","","","Secondary Schools","Delegated Primary School Budgets","Fox Hill - Primary","Electricity",10/09/2018 00:00:00,"30342617",410.84,"BRITISH GAS TRADING"
"Bracknell Forest Council","http://opendatacommunities.org/id/unitary-authority/bracknell-forest","","","Secondary Schools","Delegated Primary School Budgets","Fox Hill - Primary","Electricity",10/10/2018 00:00:00,"30344074",686.99,"BRITISH GAS TRADING"
"Bracknell Forest Council","http://opendatacommunities.org/id/unitary-authority/bracknell-forest","","","Secondary Schools","Delegated Primary School Budgets","Fox Hill - Primary","Electricity",12/11/2018 00:00:00,"30346303",671.25,"BRITISH GAS TRADING"
"Bracknell Forest Council","http://opendatacommunities.org/id/unitary-authority/bracknell-forest","","","Management and Support Services - CYPL","Holding Codes - net nil","Great Hollands Academy","Electricity",10/08/2018 00:00:00,"30340683",691.09,"BRITISH GAS TRADING"
"Bracknell Forest Council","http://opendatacommunities.org/id/unitary-authority/bracknell-forest","","","Management and Support Services - CYPL","Holding Codes - net nil","Great Hollands Academy","Electricity",10/08/2018 00:00:00,"30340683",507.45,"BRITISH GAS TRADING"
"Bracknell Forest Council","http://opendatacommunities.org/id/unitary-authority/bracknell-forest","","","Management and Support Services - CYPL","Holding Codes - net nil","Great Hollands Academy","Electricity",10/08/2018 00:00:00,"30340683",29.72,"BRITISH GAS TRADING"
"Bracknell Forest Council","http://opendatacommunities.org/id/unitary-authority/bracknell-forest","","","Management and Support Services - CYPL","Holding Codes - net nil","Great Hollands Academy","Gas",10/08/2018 00:00:00,"30341042",566.88,"CORONA GAS"
"Bracknell Forest Council","http://opendatacommunities.org/id/unitary-authority/bracknell-forest","","","Management and Support Services - CYPL","Holding Codes - net nil","Great Hollands Academy","Electricity",10/09/2018 00:00:00,"30342617",417.74,"BRITISH GAS TRADING"
"Bracknell Forest Council","http://opendatacommunities.org/id/unitary-authority/bracknell-forest","","","Management and Support Services - CYPL","Holding Codes - net nil","Great Hollands Academy","Electricity",10/09/2018 00:00:00,"30342617",341.73,"BRITISH GAS TRADING"
"Bracknell Forest Council","http://opendatacommunities.org/id/unitary-authority/bracknell-forest","","","Management and Support Services - CYPL","Holding Codes - net nil","Great Hollands Academy","Electricity",10/09/2018 00:00:00,"30342617",26.19,"BRITISH GAS TRADING"
"Bracknell Forest Council","http://opendatacommunities.org/id/unitary-authority/bracknell-forest","","","Management and Support Services - CYPL","Holding Codes - net nil","Great Hollands Academy","Gas",10/09/2018 00:00:00,"30342800",559.27,"CORONA GAS"
"Bracknell Forest Council","http://opendatacommunities.org/id/unitary-authority/bracknell-forest","","","Management and Support Services - CYPL","Holding Codes - net nil","Great Hollands Academy","Electricity",10/10/2018 00:00:00,"30344074",851.82,"BRITISH GAS TRADING"
"Bracknell Forest Council","http://opendatacommunities.org/id/unitary-authority/bracknell-forest","","","Management and Support Services - CYPL","Holding Codes - net nil","Great Hollands Academy","Electricity",10/10/2018 00:00:00,"30344074",537.13,"BRITISH GAS TRADING"
"Bracknell Forest Council","http://opendatacommunities.org/id/unitary-authority/bracknell-forest","","","Management and Support Services - CYPL","Holding Codes - net nil","Great Hollands Academy","Electricity",10/10/2018 00:00:00,"30344074",33.03,"BRITISH GAS TRADING"
"Bracknell Forest Council","http://opendatacommunities.org/id/unitary-authority/bracknell-forest","","","Management and Support Services - CYPL","Holding Codes - net nil","Great Hollands Academy","Gas",10/10/2018 00:00:00,"30344300",609.77,"CORONA GAS"
"Bracknell Forest Council","http://opendatacommunities.org/id/unitary-authority/bracknell-forest","","","Management and Support Services - CYPL","Holding Codes - net nil","Great Hollands Academy","Electricity",12/11/2018 00:00:00,"30346303",1074.74,"BRITISH GAS TRADING"
"Bracknell Forest Council","http://opendatacommunities.org/id/unitary-authority/bracknell-forest","","","Management and Support Services - CYPL","Holding Codes - net nil","Great Hollands Academy","Electricity",12/11/2018 00:00:00,"30346303",571.56,"BRITISH GAS TRADING"
"Bracknell Forest Council","http://opendatacommunities.org/id/unitary-authority/bracknell-forest","","","Management and Support Services - CYPL","Holding Codes - net nil","Great Hollands Academy","Electricity",12/11/2018 00:00:00,"30346303",34.11,"BRITISH GAS TRADING"
"Bracknell Forest Council","http://opendatacommunities.org/id/unitary-authority/bracknell-forest","","","Secondary Schools","Delegated Primary School Budgets","Harmans Water - Primary","Electricity",10/08/2018 00:00:00,"30340683",239.87,"BRITISH GAS TRADING"
"Bracknell Forest Council","http://opendatacommunities.org/id/unitary-authority/bracknell-forest","","","Secondary Schools","Delegated Primary School Budgets","Harmans Water - Primary","Electricity",10/08/2018 00:00:00,"30340683",1012.68,"BRITISH GAS TRADING"
"Bracknell Forest Council","http://opendatacommunities.org/id/unitary-authority/bracknell-forest","","","Secondary Schools","Delegated Primary School Budgets","Harmans Water - Primary","Gas",10/08/2018 00:00:00,"30341042",106.58,"CORONA GAS"
"Bracknell Forest Council","http://opendatacommunities.org/id/unitary-authority/bracknell-forest","","","Secondary Schools","Delegated Primary School Budgets","Harmans Water - Primary","Electricity",10/09/2018 00:00:00,"30342617",217.73,"BRITISH GAS TRADING"
"Bracknell Forest Council","http://opendatacommunities.org/id/unitary-authority/bracknell-forest","","","Secondary Schools","Delegated Primary School Budgets","Harmans Water - Primary","Electricity",10/09/2018 00:00:00,"30342617",561.46,"BRITISH GAS TRADING"
"Bracknell Forest Council","http://opendatacommunities.org/id/unitary-authority/bracknell-forest","","","Secondary Schools","Delegated Primary School Budgets","Harmans Water - Primary","Gas",10/09/2018 00:00:00,"30342800",105.35,"CORONA GAS"
"Bracknell Forest Council","http://opendatacommunities.org/id/unitary-authority/bracknell-forest","","","Secondary Schools","Delegated Primary School Budgets","Harmans Water - Primary","Electricity",10/10/2018 00:00:00,"30344074",982.85,"BRITISH GAS TRADING"
"Bracknell Forest Council","http://opendatacommunities.org/id/unitary-authority/bracknell-forest","","","Secondary Schools","Delegated Primary School Budgets","Harmans Water - Primary","Electricity",10/10/2018 00:00:00,"30344074",1304.7,"BRITISH GAS TRADING"
"Bracknell Forest Council","http://opendatacommunities.org/id/unitary-authority/bracknell-forest","","","Secondary Schools","Delegated Primary School Budgets","Harmans Water - Primary","Gas",10/10/2018 00:00:00,"30344300",114.04,"CORONA GAS"
"Bracknell Forest Council","http://opendatacommunities.org/id/unitary-authority/bracknell-forest","","","Secondary Schools","Delegated Primary School Budgets","Harmans Water - Primary","Electricity",12/11/2018 00:00:00,"30346303",335.22,"BRITISH GAS TRADING"
"Bracknell Forest Council","http://opendatacommunities.org/id/unitary-authority/bracknell-forest","","","Secondary Schools","Delegated Primary School Budgets","Harmans Water - Primary","Electricity",12/11/2018 00:00:00,"30346303",1421.67,"BRITISH GAS TRADING"
"Bracknell Forest Council","http://opendatacommunities.org/id/unitary-authority/bracknell-forest","","","Secondary Schools","Delegated Primary School Budgets","Holly Spring - Infant & Nursery","Electricity",06/08/2018 00:00:00,"30341689",1783.01,"EDF ENERY"
"Bracknell Forest Council","http://opendatacommunities.org/id/unitary-authority/bracknell-forest","","","Secondary Schools","Delegated Primary School Budgets","Holly Spring - Infant & Nursery","Electricity",05/09/2018 00:00:00,"30342945",865.35,"EDF ENERY"
"Bracknell Forest Council","http://opendatacommunities.org/id/unitary-authority/bracknell-forest","","","Secondary Schools","Delegated Primary School Budgets","Holly Spring - Infant & Nursery","Electricity",08/10/2018 00:00:00,"30344789",1914.16,"EDF ENERY"
"Bracknell Forest Council","http://opendatacommunities.org/id/unitary-authority/bracknell-forest","","","Secondary Schools","Delegated Primary School Budgets","Holly Spring - Infant & Nursery","Electricity",05/11/2018 00:00:00,"30346317",2109.49,"EDF ENERY"
"Bracknell Forest Council","http://opendatacommunities.org/id/unitary-authority/bracknell-forest","","","Secondary Schools","Delegated Primary School Budgets","Holly Spring - Junior","Gas",10/08/2018 00:00:00,"30341042",273.75,"CORONA GAS"
"Bracknell Forest Council","http://opendatacommunities.org/id/unitary-authority/bracknell-forest","","","Secondary Schools","Delegated Primary School Budgets","Holly Spring - Junior","Gas",10/08/2018 00:00:00,"30341042",30.84,"CORONA GAS"
"Bracknell Forest Council","http://opendatacommunities.org/id/unitary-authority/bracknell-forest","","","Secondary Schools","Delegated Primary School Budgets","Holly Spring - Junior","Gas",10/09/2018 00:00:00,"30342800",205.71,"CORONA GAS"
"Bracknell Forest Council","http://opendatacommunities.org/id/unitary-authority/bracknell-forest","","","Secondary Schools","Delegated Primary School Budgets","Holly Spring - Junior","Gas",10/09/2018 00:00:00,"30342800",30.64,"CORONA GAS"
"Bracknell Forest Council","http://opendatacommunities.org/id/unitary-authority/bracknell-forest","","","Secondary Schools","Delegated Primary School Budgets","Holly Spring - Junior","Gas",10/10/2018 00:00:00,"30344300",304.31,"CORONA GAS"
"Bracknell Forest Council","http://opendatacommunities.org/id/unitary-authority/bracknell-forest","","","Secondary Schools","Delegated Primary School Budgets","Holly Spring - Junior","Gas",10/10/2018 00:00:00,"30344300",31.75,"CORONA GAS"
"Bracknell Forest Council","http://opendatacommunities.org/id/unitary-authority/bracknell-forest","","","Secondary Schools","Delegated Primary School Budgets","Meadow Vale - Primary","Electricity",10/08/2018 00:00:00,"30340683",1030.59,"BRITISH GAS TRADING"
"Bracknell Forest Council","http://opendatacommunities.org/id/unitary-authority/bracknell-forest","","","Secondary Schools","Delegated Primary School Budgets","Meadow Vale - Primary","Gas",10/08/2018 00:00:00,"30341042",170.63,"CORONA GAS"
"Bracknell Forest Council","http://opendatacommunities.org/id/unitary-authority/bracknell-forest","","","Secondary Schools","Delegated Primary School Budgets","Meadow Vale - Primary","Gas",10/08/2018 00:00:00,"30341042",170.5,"CORONA GAS"
"Bracknell Forest Council","http://opendatacommunities.org/id/unitary-authority/bracknell-forest","","","Secondary Schools","Delegated Primary School Budgets","Meadow Vale - Primary","Electricity",10/09/2018 00:00:00,"30342617",615.07,"BRITISH GAS TRADING"
"Bracknell Forest Council","http://opendatacommunities.org/id/unitary-authority/bracknell-forest","","","Secondary Schools","Delegated Primary School Budgets","Meadow Vale - Primary","Gas",10/09/2018 00:00:00,"30342800",184.02,"CORONA GAS"
"Bracknell Forest Council","http://opendatacommunities.org/id/unitary-authority/bracknell-forest","","","Secondary Schools","Delegated Primary School Budgets","Meadow Vale - Primary","Gas",10/09/2018 00:00:00,"30342800",176.31,"CORONA GAS"
"Bracknell Forest Council","http://opendatacommunities.org/id/unitary-authority/bracknell-forest","","","Secondary Schools","Delegated Primary School Budgets","Meadow Vale - Primary","Electricity",10/10/2018 00:00:00,"30344074",1171.23,"BRITISH GAS TRADING"
"Bracknell Forest Council","http://opendatacommunities.org/id/unitary-authority/bracknell-forest","","","Secondary Schools","Delegated Primary School Budgets","Meadow Vale - Primary","Gas",10/10/2018 00:00:00,"30344300",209.07,"CORONA GAS"
"Bracknell Forest Council","http://opendatacommunities.org/id/unitary-authority/bracknell-forest","","","Secondary Schools","Delegated Primary School Budgets","Meadow Vale - Primary","Gas",10/10/2018 00:00:00,"30344300",167.6,"CORONA GAS"
"Bracknell Forest Council","http://opendatacommunities.org/id/unitary-authority/bracknell-forest","","","Secondary Schools","Delegated Primary School Budgets","Meadow Vale - Primary","Electricity",12/11/2018 00:00:00,"30346303",1230.35,"BRITISH GAS TRADING"
"Bracknell Forest Council","http://opendatacommunities.org/id/unitary-authority/bracknell-forest","","","Secondary Schools","Delegated Primary School Budgets","New Scotland Hill - Primary","Electricity",10/08/2018 00:00:00,"30340683",971.33,"BRITISH GAS TRADING"
"Bracknell Forest Council","http://opendatacommunities.org/id/unitary-authority/bracknell-forest","","","Secondary Schools","Delegated Primary School Budgets","New Scotland Hill - Primary","Electricity",10/08/2018 00:00:00,"30340683",6.33,"BRITISH GAS TRADING"
"Bracknell Forest Council","http://opendatacommunities.org/id/unitary-authority/bracknell-forest","","","Secondary Schools","Delegated Primary School Budgets","New Scotland Hill - Primary","Gas",10/08/2018 00:00:00,"30341042",53.19,"CORONA GAS"
"Bracknell Forest Council","http://opendatacommunities.org/id/unitary-authority/bracknell-forest","","","Secondary Schools","Delegated Primary School Budgets","New Scotland Hill - Primary","Electricity",10/09/2018 00:00:00,"30342617",503.24,"BRITISH GAS TRADING"
"Bracknell Forest Council","http://opendatacommunities.org/id/unitary-authority/bracknell-forest","","","Secondary Schools","Delegated Primary School Budgets","New Scotland Hill - Primary","Electricity",10/09/2018 00:00:00,"30342617",7.18,"BRITISH GAS TRADING"
"Bracknell Forest Council","http://opendatacommunities.org/id/unitary-authority/bracknell-forest","","","Secondary Schools","Delegated Primary School Budgets","New Scotland Hill - Primary","Gas",10/09/2018 00:00:00,"30342800",51.68,"CORONA GAS"
"Bracknell Forest Council","http://opendatacommunities.org/id/unitary-authority/bracknell-forest","","","Secondary Schools","Delegated Primary School Budgets","New Scotland Hill - Primary","Electricity",10/10/2018 00:00:00,"30344074",833.39,"BRITISH GAS TRADING"
"Bracknell Forest Council","http://opendatacommunities.org/id/unitary-authority/bracknell-forest","","","Secondary Schools","Delegated Primary School Budgets","New Scotland Hill - Primary","Electricity",10/10/2018 00:00:00,"30344074",5.28,"BRITISH GAS TRADING"
"Bracknell Forest Council","http://opendatacommunities.org/id/unitary-authority/bracknell-forest","","","Secondary Schools","Delegated Primary School Budgets","New Scotland Hill - Primary","Gas",10/10/2018 00:00:00,"30344300",52.86,"CORONA GAS"
"Bracknell Forest Council","http://opendatacommunities.org/id/unitary-authority/bracknell-forest","","","Secondary Schools","Delegated Primary School Budgets","New Scotland Hill - Primary","Electricity",12/11/2018 00:00:00,"30346303",865,"BRITISH GAS TRADING"
"Bracknell Forest Council","http://opendatacommunities.org/id/unitary-authority/bracknell-forest","","","Secondary Schools","Delegated Primary School Budgets","New Scotland Hill - Primary","Electricity",12/11/2018 00:00:00,"30346303",8.23,"BRITISH GAS TRADING"
"Bracknell Forest Council","http://opendatacommunities.org/id/unitary-authority/bracknell-forest","","","Secondary Schools","Delegated Primary School Budgets","Owlsmoor - Primary","Electricity",10/08/2018 00:00:00,"30340683",813.82,"BRITISH GAS TRADING"
"Bracknell Forest Council","http://opendatacommunities.org/id/unitary-authority/bracknell-forest","","","Secondary Schools","Delegated Primary School Budgets","Owlsmoor - Primary","Gas",10/08/2018 00:00:00,"30341042",227.86,"CORONA GAS"
"Bracknell Forest Council","http://opendatacommunities.org/id/unitary-authority/bracknell-forest","","","Secondary Schools","Delegated Primary School Budgets","Owlsmoor - Primary","Electricity",10/09/2018 00:00:00,"30342617",446.16,"BRITISH GAS TRADING"
"Bracknell Forest Council","http://opendatacommunities.org/id/unitary-authority/bracknell-forest","","","Secondary Schools","Delegated Primary School Budgets","Owlsmoor - Primary","Gas",10/09/2018 00:00:00,"30342800",227.86,"CORONA GAS"
"Bracknell Forest Council","http://opendatacommunities.org/id/unitary-authority/bracknell-forest","","","Secondary Schools","Delegated Primary School Budgets","Owlsmoor - Primary","Electricity",10/10/2018 00:00:00,"30344074",1025.98,"BRITISH GAS TRADING"
"Bracknell Forest Council","http://opendatacommunities.org/id/unitary-authority/bracknell-forest","","","Secondary Schools","Delegated Primary School Budgets","Owlsmoor - Primary","Gas",10/10/2018 00:00:00,"30344300",220.51,"CORONA GAS"
"Bracknell Forest Council","http://opendatacommunities.org/id/unitary-authority/bracknell-forest","","","Secondary Schools","Delegated Primary School Budgets","Owlsmoor - Primary","Electricity",12/11/2018 00:00:00,"30346303",1137.45,"BRITISH GAS TRADING"
"Bracknell Forest Council","http://opendatacommunities.org/id/unitary-authority/bracknell-forest","","","Secondary Schools","Delegated Primary School Budgets","The Pines School","Electricity",10/08/2018 00:00:00,"30340683",867.3,"BRITISH GAS TRADING"
"Bracknell Forest Council","http://opendatacommunities.org/id/unitary-authority/bracknell-forest","","","Secondary Schools","Delegated Primary School Budgets","The Pines School","Electricity",10/08/2018 00:00:00,"30340683",313.96,"BRITISH GAS TRADING"
"Bracknell Forest Council","http://opendatacommunities.org/id/unitary-authority/bracknell-forest","","","Secondary Schools","Delegated Primary School Budgets","The Pines School","Gas",10/08/2018 00:00:00,"30341042",232.43,"CORONA GAS"
"Bracknell Forest Council","http://opendatacommunities.org/id/unitary-authority/bracknell-forest","","","Secondary Schools","Delegated Primary School Budgets","The Pines School","Electricity",10/09/2018 00:00:00,"30342617",457.16,"BRITISH GAS TRADING"
"Bracknell Forest Council","http://opendatacommunities.org/id/unitary-authority/bracknell-forest","","","Secondary Schools","Delegated Primary School Budgets","The Pines School","Electricity",10/09/2018 00:00:00,"30342617",169.87,"BRITISH GAS TRADING"
"Bracknell Forest Council","http://opendatacommunities.org/id/unitary-authority/bracknell-forest","","","Secondary Schools","Delegated Primary School Budgets","The Pines School","Gas",10/09/2018 00:00:00,"30342800",208.22,"CORONA GAS"
"Bracknell Forest Council","http://opendatacommunities.org/id/unitary-authority/bracknell-forest","","","Secondary Schools","Delegated Primary School Budgets","The Pines School","Electricity",10/10/2018 00:00:00,"30344074",402.38,"BRITISH GAS TRADING"
"Bracknell Forest Council","http://opendatacommunities.org/id/unitary-authority/bracknell-forest","","","Secondary Schools","Delegated Primary School Budgets","The Pines School","Electricity",10/10/2018 00:00:00,"30344074",935.89,"BRITISH GAS TRADING"
"Bracknell Forest Council","http://opendatacommunities.org/id/unitary-authority/bracknell-forest","","","Secondary Schools","Delegated Primary School Budgets","The Pines School","Gas",10/10/2018 00:00:00,"30344300",367.76,"CORONA GAS"
"Bracknell Forest Council","http://opendatacommunities.org/id/unitary-authority/bracknell-forest","","","Secondary Schools","Delegated Primary School Budgets","The Pines School","Electricity",12/11/2018 00:00:00,"30346303",466.76,"BRITISH GAS TRADING"
"Bracknell Forest Council","http://opendatacommunities.org/id/unitary-authority/bracknell-forest","","","Secondary Schools","Delegated Primary School Budgets","The Pines School","Electricity",12/11/2018 00:00:00,"30346303",993.23,"BRITISH GAS TRADING"
"Bracknell Forest Council","http://opendatacommunities.org/id/unitary-authority/bracknell-forest","","","Secondary Schools","Delegated Primary School Budgets","Sandy Lane Primary School","Electricity",10/08/2018 00:00:00,"30340683",1113.39,"BRITISH GAS TRADING"
"Bracknell Forest Council","http://opendatacommunities.org/id/unitary-authority/bracknell-forest","","","Secondary Schools","Delegated Primary School Budgets","Sandy Lane Primary School","Gas",10/08/2018 00:00:00,"30341042",410.81,"CORONA GAS"
"Bracknell Forest Council","http://opendatacommunities.org/id/unitary-authority/bracknell-forest","","","Secondary Schools","Delegated Primary School Budgets","Sandy Lane Primary School","Gas",10/08/2018 00:00:00,"30341042",19.85,"CORONA GAS"
"Bracknell Forest Council","http://opendatacommunities.org/id/unitary-authority/bracknell-forest","","","Secondary Schools","Delegated Primary School Budgets","Sandy Lane Primary School","Electricity",10/09/2018 00:00:00,"30342617",660.76,"BRITISH GAS TRADING"
"Bracknell Forest Council","http://opendatacommunities.org/id/unitary-authority/bracknell-forest","","","Secondary Schools","Delegated Primary School Budgets","Sandy Lane Primary School","Gas",10/09/2018 00:00:00,"30342800",19.64,"CORONA GAS"
"Bracknell Forest Council","http://opendatacommunities.org/id/unitary-authority/bracknell-forest","","","Secondary Schools","Delegated Primary School Budgets","Sandy Lane Primary School","Gas",10/09/2018 00:00:00,"30342800",381.76,"CORONA GAS"
"Bracknell Forest Council","http://opendatacommunities.org/id/unitary-authority/bracknell-forest","","","Secondary Schools","Delegated Primary School Budgets","Sandy Lane Primary School","Electricity",10/10/2018 00:00:00,"30344074",1310.72,"BRITISH GAS TRADING"
"Bracknell Forest Council","http://opendatacommunities.org/id/unitary-authority/bracknell-forest","","","Secondary Schools","Delegated Primary School Budgets","Sandy Lane Primary School","Gas",10/10/2018 00:00:00,"30344300",20.16,"CORONA GAS"
"Bracknell Forest Council","http://opendatacommunities.org/id/unitary-authority/bracknell-forest","","","Secondary Schools","Delegated Primary School Budgets","Sandy Lane Primary School","Gas",10/10/2018 00:00:00,"30344300",448.39,"CORONA GAS"
"Bracknell Forest Council","http://opendatacommunities.org/id/unitary-authority/bracknell-forest","","","Secondary Schools","Delegated Primary School Budgets","Sandy Lane Primary School","Electricity",12/11/2018 00:00:00,"30346303",1378.16,"BRITISH GAS TRADING"
"Bracknell Forest Council","http://opendatacommunities.org/id/unitary-authority/bracknell-forest","","","Secondary Schools","Delegated Primary School Budgets","St Joseph's - Catholic Primary","Electricity",10/08/2018 00:00:00,"30340683",561.2,"BRITISH GAS TRADING"
"Bracknell Forest Council","http://opendatacommunities.org/id/unitary-authority/bracknell-forest","","","Secondary Schools","Delegated Primary School Budgets","St Joseph's - Catholic Primary","Electricity",10/09/2018 00:00:00,"30342617",533.69,"BRITISH GAS TRADING"
"Bracknell Forest Council","http://opendatacommunities.org/id/unitary-authority/bracknell-forest","","","Secondary Schools","Delegated Primary School Budgets","St Joseph's - Catholic Primary","Electricity",10/10/2018 00:00:00,"30344074",347.62,"BRITISH GAS TRADING"
"Bracknell Forest Council","http://opendatacommunities.org/id/unitary-authority/bracknell-forest","","","Secondary Schools","Delegated Primary School Budgets","St Joseph's - Catholic Primary","Electricity",12/11/2018 00:00:00,"30346303",735.62,"BRITISH GAS TRADING"
"Bracknell Forest Council","http://opendatacommunities.org/id/unitary-authority/bracknell-forest","","","Management and Support Services - CYPL","Holding Codes - net nil","St Margaret Clitherow Academy","Electricity",10/08/2018 00:00:00,"30340683",6.97,"BRITISH GAS TRADING"
"Bracknell Forest Council","http://opendatacommunities.org/id/unitary-authority/bracknell-forest","","","Management and Support Services - CYPL","Holding Codes - net nil","St Margaret Clitherow Academy","Electricity",10/08/2018 00:00:00,"30340683",518.54,"BRITISH GAS TRADING"
"Bracknell Forest Council","http://opendatacommunities.org/id/unitary-authority/bracknell-forest","","","Management and Support Services - CYPL","Holding Codes - net nil","St Margaret Clitherow Academy","Gas",10/08/2018 00:00:00,"30341042",23.55,"CORONA GAS"
"Bracknell Forest Council","http://opendatacommunities.org/id/unitary-authority/bracknell-forest","","","Management and Support Services - CYPL","Holding Codes - net nil","St Margaret Clitherow Academy","Gas",10/08/2018 00:00:00,"30341042",118.02,"CORONA GAS"
"Bracknell Forest Council","http://opendatacommunities.org/id/unitary-authority/bracknell-forest","","","Management and Support Services - CYPL","Holding Codes - net nil","St Margaret Clitherow Academy","Electricity",10/09/2018 00:00:00,"30342617",6.76,"BRITISH GAS TRADING"
"Bracknell Forest Council","http://opendatacommunities.org/id/unitary-authority/bracknell-forest","","","Management and Support Services - CYPL","Holding Codes - net nil","St Margaret Clitherow Academy","Electricity",10/09/2018 00:00:00,"30342617",224.91,"BRITISH GAS TRADING"
"Bracknell Forest Council","http://opendatacommunities.org/id/unitary-authority/bracknell-forest","","","Management and Support Services - CYPL","Holding Codes - net nil","St Margaret Clitherow Academy","Gas",10/09/2018 00:00:00,"30342800",98.49,"CORONA GAS"
"Bracknell Forest Council","http://opendatacommunities.org/id/unitary-authority/bracknell-forest","","","Management and Support Services - CYPL","Holding Codes - net nil","St Margaret Clitherow Academy","Gas",10/09/2018 00:00:00,"30342800",23.55,"CORONA GAS"
"Bracknell Forest Council","http://opendatacommunities.org/id/unitary-authority/bracknell-forest","","","Management and Support Services - CYPL","Holding Codes - net nil","St Margaret Clitherow Academy","Electricity",10/10/2018 00:00:00,"30344074",5.7,"BRITISH GAS TRADING"
"Bracknell Forest Council","http://opendatacommunities.org/id/unitary-authority/bracknell-forest","","","Management and Support Services - CYPL","Holding Codes - net nil","St Margaret Clitherow Academy","Electricity",10/10/2018 00:00:00,"30344074",688.9,"BRITISH GAS TRADING"
"Bracknell Forest Council","http://opendatacommunities.org/id/unitary-authority/bracknell-forest","","","Management and Support Services - CYPL","Holding Codes - net nil","St Margaret Clitherow Academy","Gas",10/10/2018 00:00:00,"30344300",23.47,"CORONA GAS"
"Bracknell Forest Council","http://opendatacommunities.org/id/unitary-authority/bracknell-forest","","","Management and Support Services - CYPL","Holding Codes - net nil","St Margaret Clitherow Academy","Gas",10/10/2018 00:00:00,"30344300",112.63,"CORONA GAS"
"Bracknell Forest Council","http://opendatacommunities.org/id/unitary-authority/bracknell-forest","","","Management and Support Services - CYPL","Holding Codes - net nil","St Margaret Clitherow Academy","Electricity",12/11/2018 00:00:00,"30346303",7.18,"BRITISH GAS TRADING"
"Bracknell Forest Council","http://opendatacommunities.org/id/unitary-authority/bracknell-forest","","","Management and Support Services - CYPL","Holding Codes - net nil","St Margaret Clitherow Academy","Electricity",12/11/2018 00:00:00,"30346303",743.64,"BRITISH GAS TRADING"
"Bracknell Forest Council","http://opendatacommunities.org/id/unitary-authority/bracknell-forest","","","Secondary Schools","Delegated Primary School Budgets","Winkfield St Mary's - Primary","Electricity",10/08/2018 00:00:00,"30340683",427.47,"BRITISH GAS TRADING"
"Bracknell Forest Council","http://opendatacommunities.org/id/unitary-authority/bracknell-forest","","","Secondary Schools","Delegated Primary School Budgets","Winkfield St Mary's - Primary","Gas",10/08/2018 00:00:00,"30341042",230.61,"CORONA GAS"
"Bracknell Forest Council","http://opendatacommunities.org/id/unitary-authority/bracknell-forest","","","Secondary Schools","Delegated Primary School Budgets","Winkfield St Mary's - Primary","Electricity",10/09/2018 00:00:00,"30342617",291.31,"BRITISH GAS TRADING"
"Bracknell Forest Council","http://opendatacommunities.org/id/unitary-authority/bracknell-forest","","","Secondary Schools","Delegated Primary School Budgets","Winkfield St Mary's - Primary","Gas",10/09/2018 00:00:00,"30342800",290.66,"CORONA GAS"
"Bracknell Forest Council","http://opendatacommunities.org/id/unitary-authority/bracknell-forest","","","Secondary Schools","Delegated Primary School Budgets","Winkfield St Mary's - Primary","Electricity",10/10/2018 00:00:00,"30344074",431.44,"BRITISH GAS TRADING"
"Bracknell Forest Council","http://opendatacommunities.org/id/unitary-authority/bracknell-forest","","","Secondary Schools","Delegated Primary School Budgets","Winkfield St Mary's - Primary","Gas",10/10/2018 00:00:00,"30344300",165.87,"CORONA GAS"
"Bracknell Forest Council","http://opendatacommunities.org/id/unitary-authority/bracknell-forest","","","Secondary Schools","Delegated Primary School Budgets","Winkfield St Mary's - Primary","Electricity",12/11/2018 00:00:00,"30346303",488.13,"BRITISH GAS TRADING"
"Bracknell Forest Council","http://opendatacommunities.org/id/unitary-authority/bracknell-forest","","","Secondary Schools","Delegated Primary School Budgets","St Michael's (Easthampstead) - Primary","Electricity",10/08/2018 00:00:00,"30340683",429.74,"BRITISH GAS TRADING"
"Bracknell Forest Council","http://opendatacommunities.org/id/unitary-authority/bracknell-forest","","","Secondary Schools","Delegated Primary School Budgets","St Michael's (Easthampstead) - Primary","Electricity",10/08/2018 00:00:00,"30340683",49.26,"BRITISH GAS TRADING"
"Bracknell Forest Council","http://opendatacommunities.org/id/unitary-authority/bracknell-forest","","","Secondary Schools","Delegated Primary School Budgets","St Michael's (Easthampstead) - Primary","Electricity",10/08/2018 00:00:00,"30340683",262.88,"BRITISH GAS TRADING"
"Bracknell Forest Council","http://opendatacommunities.org/id/unitary-authority/bracknell-forest","","","Secondary Schools","Delegated Primary School Budgets","St Michael's (Easthampstead) - Primary","Gas",10/08/2018 00:00:00,"30341042",124.67,"CORONA GAS"
"Bracknell Forest Council","http://opendatacommunities.org/id/unitary-authority/bracknell-forest","","","Secondary Schools","Delegated Primary School Budgets","St Michael's (Easthampstead) - Primary","Gas",10/08/2018 00:00:00,"30341042",12.4,"CORONA GAS"
"Bracknell Forest Council","http://opendatacommunities.org/id/unitary-authority/bracknell-forest","","","Secondary Schools","Delegated Primary School Budgets","St Michael's (Easthampstead) - Primary","Electricity",10/09/2018 00:00:00,"30342617",61.49,"BRITISH GAS TRADING"
"Bracknell Forest Council","http://opendatacommunities.org/id/unitary-authority/bracknell-forest","","","Secondary Schools","Delegated Primary School Budgets","St Michael's (Easthampstead) - Primary","Electricity",10/09/2018 00:00:00,"30342617",282.68,"BRITISH GAS TRADING"
"Bracknell Forest Council","http://opendatacommunities.org/id/unitary-authority/bracknell-forest","","","Secondary Schools","Delegated Primary School Budgets","St Michael's (Easthampstead) - Primary","Electricity",10/09/2018 00:00:00,"30342617",46.59,"BRITISH GAS TRADING"
"Bracknell Forest Council","http://opendatacommunities.org/id/unitary-authority/bracknell-forest","","","Secondary Schools","Delegated Primary School Budgets","St Michael's (Easthampstead) - Primary","Gas",10/09/2018 00:00:00,"30342800",12.4,"CORONA GAS"
"Bracknell Forest Council","http://opendatacommunities.org/id/unitary-authority/bracknell-forest","","","Secondary Schools","Delegated Primary School Budgets","St Michael's (Easthampstead) - Primary","Gas",10/09/2018 00:00:00,"30342800",121.71,"CORONA GAS"
"Bracknell Forest Council","http://opendatacommunities.org/id/unitary-authority/bracknell-forest","","","Secondary Schools","Delegated Primary School Budgets","St Michael's (Easthampstead) - Primary","Electricity",10/10/2018 00:00:00,"30344074",462.09,"BRITISH GAS TRADING"
"Bracknell Forest Council","http://opendatacommunities.org/id/unitary-authority/bracknell-forest","","","Secondary Schools","Delegated Primary School Budgets","St Michael's (Easthampstead) - Primary","Electricity",10/10/2018 00:00:00,"30344074",174.59,"BRITISH GAS TRADING"
"Bracknell Forest Council","http://opendatacommunities.org/id/unitary-authority/bracknell-forest","","","Secondary Schools","Delegated Primary School Budgets","St Michael's (Easthampstead) - Primary","Electricity",10/10/2018 00:00:00,"30344074",65.27,"BRITISH GAS TRADING"
"Bracknell Forest Council","http://opendatacommunities.org/id/unitary-authority/bracknell-forest","","","Secondary Schools","Delegated Primary School Budgets","St Michael's (Easthampstead) - Primary","Gas",10/10/2018 00:00:00,"30344300",129.03,"CORONA GAS"
"Bracknell Forest Council","http://opendatacommunities.org/id/unitary-authority/bracknell-forest","","","Secondary Schools","Delegated Primary School Budgets","St Michael's (Easthampstead) - Primary","Gas",10/10/2018 00:00:00,"30344300",12,"CORONA GAS"
"Bracknell Forest Council","http://opendatacommunities.org/id/unitary-authority/bracknell-forest","","","Secondary Schools","Delegated Primary School Budgets","St Michael's (Easthampstead) - Primary","Electricity",12/11/2018 00:00:00,"30346303",512.18,"BRITISH GAS TRADING"
"Bracknell Forest Council","http://opendatacommunities.org/id/unitary-authority/bracknell-forest","","","Secondary Schools","Delegated Primary School Budgets","St Michael's (Easthampstead) - Primary","Electricity",12/11/2018 00:00:00,"30346303",101.41,"BRITISH GAS TRADING"
"Bracknell Forest Council","http://opendatacommunities.org/id/unitary-authority/bracknell-forest","","","Secondary Schools","Delegated Primary School Budgets","St Michael's (Easthampstead) - Primary","Electricity",12/11/2018 00:00:00,"30346303",152.34,"BRITISH GAS TRADING"
"Bracknell Forest Council","http://opendatacommunities.org/id/unitary-authority/bracknell-forest","","","Secondary Schools","Delegated Primary School Budgets","St Michael's (Sandhurst) - Primary","Electricity",10/08/2018 00:00:00,"30340683",456,"BRITISH GAS TRADING"
"Bracknell Forest Council","http://opendatacommunities.org/id/unitary-authority/bracknell-forest","","","Secondary Schools","Delegated Primary School Budgets","St Michael's (Sandhurst) - Primary","Gas",10/08/2018 00:00:00,"30341042",146.09,"CORONA GAS"
"Bracknell Forest Council","http://opendatacommunities.org/id/unitary-authority/bracknell-forest","","","Secondary Schools","Delegated Primary School Budgets","St Michael's (Sandhurst) - Primary","Electricity",10/09/2018 00:00:00,"30342617",318.47,"BRITISH GAS TRADING"
"Bracknell Forest Council","http://opendatacommunities.org/id/unitary-authority/bracknell-forest","","","Secondary Schools","Delegated Primary School Budgets","St Michael's (Sandhurst) - Primary","Gas",10/09/2018 00:00:00,"30342800",109.23,"CORONA GAS"
"Bracknell Forest Council","http://opendatacommunities.org/id/unitary-authority/bracknell-forest","","","Secondary Schools","Delegated Primary School Budgets","St Michael's (Sandhurst) - Primary","Electricity",10/10/2018 00:00:00,"30344074",493.36,"BRITISH GAS TRADING"
"Bracknell Forest Council","http://opendatacommunities.org/id/unitary-authority/bracknell-forest","","","Secondary Schools","Delegated Primary School Budgets","St Michael's (Sandhurst) - Primary","Gas",10/10/2018 00:00:00,"30344300",172.93,"CORONA GAS"
"Bracknell Forest Council","http://opendatacommunities.org/id/unitary-authority/bracknell-forest","","","Secondary Schools","Delegated Primary School Budgets","St Michael's (Sandhurst) - Primary","Electricity",12/11/2018 00:00:00,"30346303",542.6,"BRITISH GAS TRADING"
"Bracknell Forest Council","http://opendatacommunities.org/id/unitary-authority/bracknell-forest","","","Secondary Schools","Delegated Primary School Budgets","Uplands - Primary","Electricity",10/08/2018 00:00:00,"30340683",511.03,"BRITISH GAS TRADING"
"Bracknell Forest Council","http://opendatacommunities.org/id/unitary-authority/bracknell-forest","","","Secondary Schools","Delegated Primary School Budgets","Uplands - Primary","Gas",10/08/2018 00:00:00,"30341042",149.96,"CORONA GAS"
"Bracknell Forest Council","http://opendatacommunities.org/id/unitary-authority/bracknell-forest","","","Secondary Schools","Delegated Primary School Budgets","Uplands - Primary","Electricity",10/09/2018 00:00:00,"30342617",298.09,"BRITISH GAS TRADING"
"Bracknell Forest Council","http://opendatacommunities.org/id/unitary-authority/bracknell-forest","","","Secondary Schools","Delegated Primary School Budgets","Uplands - Primary","Gas",10/09/2018 00:00:00,"30342800",147.37,"CORONA GAS"
"Bracknell Forest Council","http://opendatacommunities.org/id/unitary-authority/bracknell-forest","","","Secondary Schools","Delegated Primary School Budgets","Uplands - Primary","Electricity",10/10/2018 00:00:00,"30344074",610.98,"BRITISH GAS TRADING"
"Bracknell Forest Council","http://opendatacommunities.org/id/unitary-authority/bracknell-forest","","","Secondary Schools","Delegated Primary School Budgets","Uplands - Primary","Gas",10/10/2018 00:00:00,"30344300",213.86,"CORONA GAS"
"Bracknell Forest Council","http://opendatacommunities.org/id/unitary-authority/bracknell-forest","","","Secondary Schools","Delegated Primary School Budgets","Uplands - Primary","Electricity",12/11/2018 00:00:00,"30346303",644.64,"BRITISH GAS TRADING"
"Bracknell Forest Council","http://opendatacommunities.org/id/unitary-authority/bracknell-forest","","","Secondary Schools","Delegated Primary School Budgets","Warfield CE - Primary","Gas",10/08/2018 00:00:00,"30341042",176.3,"CORONA GAS"
"Bracknell Forest Council","http://opendatacommunities.org/id/unitary-authority/bracknell-forest","","","Secondary Schools","Delegated Primary School Budgets","Warfield CE - Primary","Electricity",06/08/2018 00:00:00,"30341689",3124,"EDF ENERY"
"Bracknell Forest Council","http://opendatacommunities.org/id/unitary-authority/bracknell-forest","","","Secondary Schools","Delegated Primary School Budgets","Warfield CE - Primary","Electricity",06/08/2018 00:00:00,"30341689",809.33,"EDF ENERY"
"Bracknell Forest Council","http://opendatacommunities.org/id/unitary-authority/bracknell-forest","","","Secondary Schools","Delegated Primary School Budgets","Warfield CE - Primary","Gas",10/09/2018 00:00:00,"30342800",150.36,"CORONA GAS"
"Bracknell Forest Council","http://opendatacommunities.org/id/unitary-authority/bracknell-forest","","","Secondary Schools","Delegated Primary School Budgets","Warfield CE - Primary","Electricity",05/09/2018 00:00:00,"30342945",518.03,"EDF ENERY"
"Bracknell Forest Council","http://opendatacommunities.org/id/unitary-authority/bracknell-forest","","","Secondary Schools","Delegated Primary School Budgets","Warfield CE - Primary","Gas",10/10/2018 00:00:00,"30344300",266.6,"CORONA GAS"
"Bracknell Forest Council","http://opendatacommunities.org/id/unitary-authority/bracknell-forest","","","Secondary Schools","Delegated Primary School Budgets","Warfield CE - Primary","Electricity",08/10/2018 00:00:00,"30344789",-24646.14,"EDF ENERY"
"Bracknell Forest Council","http://opendatacommunities.org/id/unitary-authority/bracknell-forest","","","Secondary Schools","Delegated Primary School Budgets","Warfield CE - Primary","Electricity",08/10/2018 00:00:00,"30344789",-3245.62,"EDF ENERY"
"Bracknell Forest Council","http://opendatacommunities.org/id/unitary-authority/bracknell-forest","","","Secondary Schools","Delegated Primary School Budgets","Warfield CE - Primary","Electricity",08/10/2018 00:00:00,"30344789",-3503.9,"EDF ENERY"
"Bracknell Forest Council","http://opendatacommunities.org/id/unitary-authority/bracknell-forest","","","Secondary Schools","Delegated Primary School Budgets","Warfield CE - Primary","Electricity",08/10/2018 00:00:00,"30344789",-3172.27,"EDF ENERY"
"Bracknell Forest Council","http://opendatacommunities.org/id/unitary-authority/bracknell-forest","","","Secondary Schools","Delegated Primary School Budgets","Warfield CE - Primary","Electricity",08/10/2018 00:00:00,"30344789",-3124,"EDF ENERY"
"Bracknell Forest Council","http://opendatacommunities.org/id/unitary-authority/bracknell-forest","","","Secondary Schools","Delegated Primary School Budgets","Warfield CE - Primary","Electricity",08/10/2018 00:00:00,"30344789",878.97,"EDF ENERY"
"Bracknell Forest Council","http://opendatacommunities.org/id/unitary-authority/bracknell-forest","","","Secondary Schools","Delegated Primary School Budgets","Warfield CE - Primary","Electricity",05/11/2018 00:00:00,"30346317",1000.89,"EDF ENERY"
"Bracknell Forest Council","http://opendatacommunities.org/id/unitary-authority/bracknell-forest","","","Secondary Schools","Delegated Primary School Budgets","Whitegrove - Primary","Gas",10/08/2018 00:00:00,"30341042",329.1,"CORONA GAS"
"Bracknell Forest Council","http://opendatacommunities.org/id/unitary-authority/bracknell-forest","","","Secondary Schools","Delegated Primary School Budgets","Whitegrove - Primary","Electricity",06/08/2018 00:00:00,"30341689",1070.05,"EDF ENERY"
"Bracknell Forest Council","http://opendatacommunities.org/id/unitary-authority/bracknell-forest","","","Secondary Schools","Delegated Primary School Budgets","Whitegrove - Primary","Gas",10/09/2018 00:00:00,"30342800",248.5,"CORONA GAS"
"Bracknell Forest Council","http://opendatacommunities.org/id/unitary-authority/bracknell-forest","","","Secondary Schools","Delegated Primary School Budgets","Whitegrove - Primary","Electricity",05/09/2018 00:00:00,"30342945",535.54,"EDF ENERY"
"Bracknell Forest Council","http://opendatacommunities.org/id/unitary-authority/bracknell-forest","","","Secondary Schools","Delegated Primary School Budgets","Whitegrove - Primary","Gas",10/10/2018 00:00:00,"30344300",330.11,"CORONA GAS"
"Bracknell Forest Council","http://opendatacommunities.org/id/unitary-authority/bracknell-forest","","","Secondary Schools","Delegated Primary School Budgets","Whitegrove - Primary","Electricity",08/10/2018 00:00:00,"30344789",1095.49,"EDF ENERY"
"Bracknell Forest Council","http://opendatacommunities.org/id/unitary-authority/bracknell-forest","","","Secondary Schools","Delegated Primary School Budgets","Whitegrove - Primary","Electricity",05/11/2018 00:00:00,"30346317",1226.31,"EDF ENERY"
"Bracknell Forest Council","http://opendatacommunities.org/id/unitary-authority/bracknell-forest","","","Secondary Schools","Delegated Primary School Budgets","Wildridings - Primary","Electricity",10/08/2018 00:00:00,"30340683",474.82,"BRITISH GAS TRADING"
"Bracknell Forest Council","http://opendatacommunities.org/id/unitary-authority/bracknell-forest","","","Secondary Schools","Delegated Primary School Budgets","Wildridings - Primary","Electricity",10/08/2018 00:00:00,"30340683",470.09,"BRITISH GAS TRADING"
"Bracknell Forest Council","http://opendatacommunities.org/id/unitary-authority/bracknell-forest","","","Secondary Schools","Delegated Primary School Budgets","Wildridings - Primary","Electricity",10/08/2018 00:00:00,"30340683",70.01,"BRITISH GAS TRADING"
"Bracknell Forest Council","http://opendatacommunities.org/id/unitary-authority/bracknell-forest","","","Secondary Schools","Delegated Primary School Budgets","Wildridings - Primary","Gas",10/08/2018 00:00:00,"30341042",14.26,"CORONA GAS"
"Bracknell Forest Council","http://opendatacommunities.org/id/unitary-authority/bracknell-forest","","","Secondary Schools","Delegated Primary School Budgets","Wildridings - Primary","Gas",10/08/2018 00:00:00,"30341042",99.71,"CORONA GAS"
"Bracknell Forest Council","http://opendatacommunities.org/id/unitary-authority/bracknell-forest","","","Secondary Schools","Delegated Primary School Budgets","Wildridings - Primary","Electricity",10/09/2018 00:00:00,"30342617",286.96,"BRITISH GAS TRADING"
"Bracknell Forest Council","http://opendatacommunities.org/id/unitary-authority/bracknell-forest","","","Secondary Schools","Delegated Primary School Budgets","Wildridings - Primary","Electricity",10/09/2018 00:00:00,"30342617",74.95,"BRITISH GAS TRADING"
"Bracknell Forest Council","http://opendatacommunities.org/id/unitary-authority/bracknell-forest","","","Secondary Schools","Delegated Primary School Budgets","Wildridings - Primary","Electricity",10/09/2018 00:00:00,"30342617",196.87,"BRITISH GAS TRADING"
"Bracknell Forest Council","http://opendatacommunities.org/id/unitary-authority/bracknell-forest","","","Secondary Schools","Delegated Primary School Budgets","Wildridings - Primary","Gas",10/09/2018 00:00:00,"30342800",98.54,"CORONA GAS"
"Bracknell Forest Council","http://opendatacommunities.org/id/unitary-authority/bracknell-forest","","","Secondary Schools","Delegated Primary School Budgets","Wildridings - Primary","Gas",10/09/2018 00:00:00,"30342800",14.26,"CORONA GAS"
"Bracknell Forest Council","http://opendatacommunities.org/id/unitary-authority/bracknell-forest","","","Secondary Schools","Delegated Primary School Budgets","Wildridings - Primary","Electricity",10/10/2018 00:00:00,"30344074",670.23,"BRITISH GAS TRADING"
"Bracknell Forest Council","http://opendatacommunities.org/id/unitary-authority/bracknell-forest","","","Secondary Schools","Delegated Primary School Budgets","Wildridings - Primary","Electricity",10/10/2018 00:00:00,"30344074",648.09,"BRITISH GAS TRADING"
"Bracknell Forest Council","http://opendatacommunities.org/id/unitary-authority/bracknell-forest","","","Secondary Schools","Delegated Primary School Budgets","Wildridings - Primary","Electricity",10/10/2018 00:00:00,"30344074",544.43,"BRITISH GAS TRADING"
"Bracknell Forest Council","http://opendatacommunities.org/id/unitary-authority/bracknell-forest","","","Secondary Schools","Delegated Primary School Budgets","Wildridings - Primary","Gas",10/10/2018 00:00:00,"30344300",13.8,"CORONA GAS"
"Bracknell Forest Council","http://opendatacommunities.org/id/unitary-authority/bracknell-forest","","","Secondary Schools","Delegated Primary School Budgets","Wildridings - Primary","Gas",10/10/2018 00:00:00,"30344300",107.17,"CORONA GAS"
"Bracknell Forest Council","http://opendatacommunities.org/id/unitary-authority/bracknell-forest","","","Secondary Schools","Delegated Primary School Budgets","Wildridings - Primary","Electricity",12/11/2018 00:00:00,"30346303",669.59,"BRITISH GAS TRADING"
"Bracknell Forest Council","http://opendatacommunities.org/id/unitary-authority/bracknell-forest","","","Secondary Schools","Delegated Primary School Budgets","Wildridings - Primary","Electricity",12/11/2018 00:00:00,"30346303",558.53,"BRITISH GAS TRADING"
"Bracknell Forest Council","http://opendatacommunities.org/id/unitary-authority/bracknell-forest","","","Secondary Schools","Delegated Primary School Budgets","Wildridings - Primary","Electricity",12/11/2018 00:00:00,"30346303",657.31,"BRITISH GAS TRADING"
"Bracknell Forest Council","http://opendatacommunities.org/id/unitary-authority/bracknell-forest","","","Secondary Schools","Delegated Primary School Budgets","Wooden Hill - Primary","Electricity",10/08/2018 00:00:00,"30340683",157.33,"BRITISH GAS TRADING"
"Bracknell Forest Council","http://opendatacommunities.org/id/unitary-authority/bracknell-forest","","","Secondary Schools","Delegated Primary School Budgets","Wooden Hill - Primary","Electricity",10/08/2018 00:00:00,"30340683",558.13,"BRITISH GAS TRADING"
"Bracknell Forest Council","http://opendatacommunities.org/id/unitary-authority/bracknell-forest","","","Secondary Schools","Delegated Primary School Budgets","Wooden Hill - Primary","Gas",10/08/2018 00:00:00,"30341042",170.18,"CORONA GAS"
"Bracknell Forest Council","http://opendatacommunities.org/id/unitary-authority/bracknell-forest","","","Secondary Schools","Delegated Primary School Budgets","Wooden Hill - Primary","Gas",10/08/2018 00:00:00,"30341042",38.26,"CORONA GAS"
"Bracknell Forest Council","http://opendatacommunities.org/id/unitary-authority/bracknell-forest","","","Secondary Schools","Delegated Primary School Budgets","Wooden Hill - Primary","Electricity",10/09/2018 00:00:00,"30342617",316.27,"BRITISH GAS TRADING"
"Bracknell Forest Council","http://opendatacommunities.org/id/unitary-authority/bracknell-forest","","","Secondary Schools","Delegated Primary School Budgets","Wooden Hill - Primary","Electricity",10/09/2018 00:00:00,"30342617",53.28,"BRITISH GAS TRADING"
"Bracknell Forest Council","http://opendatacommunities.org/id/unitary-authority/bracknell-forest","","","Secondary Schools","Delegated Primary School Budgets","Wooden Hill - Primary","Gas",10/09/2018 00:00:00,"30342800",38.05,"CORONA GAS"
"Bracknell Forest Council","http://opendatacommunities.org/id/unitary-authority/bracknell-forest","","","Secondary Schools","Delegated Primary School Budgets","Wooden Hill - Primary","Gas",10/09/2018 00:00:00,"30342800",154.34,"CORONA GAS"
"Bracknell Forest Council","http://opendatacommunities.org/id/unitary-authority/bracknell-forest","","","Secondary Schools","Delegated Primary School Budgets","Wooden Hill - Primary","Electricity",10/10/2018 00:00:00,"30344074",138.39,"BRITISH GAS TRADING"
"Bracknell Forest Council","http://opendatacommunities.org/id/unitary-authority/bracknell-forest","","","Secondary Schools","Delegated Primary School Budgets","Wooden Hill - Primary","Electricity",10/10/2018 00:00:00,"30344074",666.77,"BRITISH GAS TRADING"
"Bracknell Forest Council","http://opendatacommunities.org/id/unitary-authority/bracknell-forest","","","Secondary Schools","Delegated Primary School Budgets","Wooden Hill - Primary","Gas",10/10/2018 00:00:00,"30344300",39.63,"CORONA GAS"
"Bracknell Forest Council","http://opendatacommunities.org/id/unitary-authority/bracknell-forest","","","Secondary Schools","Delegated Primary School Budgets","Wooden Hill - Primary","Gas",10/10/2018 00:00:00,"30344300",209.8,"CORONA GAS"
"Bracknell Forest Council","http://opendatacommunities.org/id/unitary-authority/bracknell-forest","","","Secondary Schools","Delegated Primary School Budgets","Wooden Hill - Primary","Electricity",12/11/2018 00:00:00,"30346303",151.7,"BRITISH GAS TRADING"
"Bracknell Forest Council","http://opendatacommunities.org/id/unitary-authority/bracknell-forest","","","Secondary Schools","Delegated Primary School Budgets","Wooden Hill - Primary","Electricity",12/11/2018 00:00:00,"30346303",833.52,"BRITISH GAS TRADING"
"Bracknell Forest Council","http://opendatacommunities.org/id/unitary-authority/bracknell-forest","","","Management and Support Services - CYPL","Holding Codes - net nil","Jennets Park Academy","Insurance Refunds - Staff",30/07/2018 00:00:00,"6665759",1400,"JENNETTS PARK ACADEMY"
"Bracknell Forest Council","http://opendatacommunities.org/id/unitary-authority/bracknell-forest","","","Management and Support Services - CYPL","Holding Codes - net nil","Jennets Park Academy","Sale of Goods",30/07/2018 00:00:00,"6665759",2229.77,"JENNETTS PARK ACADEMY"
"Bracknell Forest Council","http://opendatacommunities.org/id/unitary-authority/bracknell-forest","","","Management and Support Services - CYPL","Holding Codes - net nil","Jennets Park Academy","Sale of Goods",27/09/2018 00:00:00,"6669024",1590.38,"JENNETTS PARK ACADEMY"
"Bracknell Forest Council","http://opendatacommunities.org/id/unitary-authority/bracknell-forest","","","Management and Support Services - CYPL","Holding Codes - net nil","Jennets Park Academy","Insurance Refunds - Staff",30/11/2018 00:00:00,"6672754",2590,"JENNETTS PARK ACADEMY"
"Bracknell Forest Council","http://opendatacommunities.org/id/unitary-authority/bracknell-forest","","","Management and Support Services - CYPL","Holding Codes - net nil","Jennets Park Academy","Electricity",10/08/2018 00:00:00,"30340683",756.66,"BRITISH GAS TRADING"
"Bracknell Forest Council","http://opendatacommunities.org/id/unitary-authority/bracknell-forest","","","Management and Support Services - CYPL","Holding Codes - net nil","Jennets Park Academy","Electricity",10/08/2018 00:00:00,"30340683",992.45,"BRITISH GAS TRADING"
"Bracknell Forest Council","http://opendatacommunities.org/id/unitary-authority/bracknell-forest","","","Management and Support Services - CYPL","Holding Codes - net nil","Jennets Park Academy","Gas",10/08/2018 00:00:00,"30341042",338.59,"CORONA GAS"
"Bracknell Forest Council","http://opendatacommunities.org/id/unitary-authority/bracknell-forest","","","Management and Support Services - CYPL","Holding Codes - net nil","Jennets Park Academy","Electricity",10/09/2018 00:00:00,"30342617",788.22,"BRITISH GAS TRADING"
"Bracknell Forest Council","http://opendatacommunities.org/id/unitary-authority/bracknell-forest","","","Management and Support Services - CYPL","Holding Codes - net nil","Jennets Park Academy","Electricity",10/09/2018 00:00:00,"30342617",991.72,"BRITISH GAS TRADING"
"Bracknell Forest Council","http://opendatacommunities.org/id/unitary-authority/bracknell-forest","","","Management and Support Services - CYPL","Holding Codes - net nil","Jennets Park Academy","Electricity",10/09/2018 00:00:00,"30342617",974.51,"BRITISH GAS TRADING"
"Bracknell Forest Council","http://opendatacommunities.org/id/unitary-authority/bracknell-forest","","","Management and Support Services - CYPL","Holding Codes - net nil","Jennets Park Academy","Electricity",10/09/2018 00:00:00,"30342617",864.2,"BRITISH GAS TRADING"
"Bracknell Forest Council","http://opendatacommunities.org/id/unitary-authority/bracknell-forest","","","Management and Support Services - CYPL","Holding Codes - net nil","Jennets Park Academy","Electricity",10/09/2018 00:00:00,"30342617",495.31,"BRITISH GAS TRADING"
"Bracknell Forest Council","http://opendatacommunities.org/id/unitary-authority/bracknell-forest","","","Management and Support Services - CYPL","Holding Codes - net nil","Jennets Park Academy","Gas",10/09/2018 00:00:00,"30342800",323.76,"CORONA GAS"
"Bracknell Forest Council","http://opendatacommunities.org/id/unitary-authority/bracknell-forest","","","Management and Support Services - CYPL","Holding Codes - net nil","Jennets Park Academy","Electricity",10/10/2018 00:00:00,"30344074",993.07,"BRITISH GAS TRADING"
"Bracknell Forest Council","http://opendatacommunities.org/id/unitary-authority/bracknell-forest","","","Management and Support Services - CYPL","Holding Codes - net nil","Jennets Park Academy","Gas",10/10/2018 00:00:00,"30344300",352.28,"CORONA GAS"
"Bracknell Forest Council","http://opendatacommunities.org/id/unitary-authority/bracknell-forest","","","Management and Support Services - CYPL","Holding Codes - net nil","Jennets Park Academy","Electricity",12/11/2018 00:00:00,"30346303",1058.47,"BRITISH GAS TRADING"
"Bracknell Forest Council","http://opendatacommunities.org/id/unitary-authority/bracknell-forest","","","Management and Support Services - CYPL","Holding Codes - net nil","The Brakenhale Academy","Electricity",10/08/2018 00:00:00,"30340683",586.53,"BRITISH GAS TRADING"
"Bracknell Forest Council","http://opendatacommunities.org/id/unitary-authority/bracknell-forest","","","Management and Support Services - CYPL","Holding Codes - net nil","The Brakenhale Academy","Electricity",10/08/2018 00:00:00,"30340683",80.54,"BRITISH GAS TRADING"
"Bracknell Forest Council","http://opendatacommunities.org/id/unitary-authority/bracknell-forest","","","Management and Support Services - CYPL","Holding Codes - net nil","The Brakenhale Academy","Gas",10/08/2018 00:00:00,"30341042",72.77,"CORONA GAS"
"Bracknell Forest Council","http://opendatacommunities.org/id/unitary-authority/bracknell-forest","","","Management and Support Services - CYPL","Holding Codes - net nil","The Brakenhale Academy","Gas",10/08/2018 00:00:00,"30341042",64.84,"CORONA GAS"
"Bracknell Forest Council","http://opendatacommunities.org/id/unitary-authority/bracknell-forest","","","Management and Support Services - CYPL","Holding Codes - net nil","The Brakenhale Academy","Gas",10/08/2018 00:00:00,"30341042",34.19,"CORONA GAS"
"Bracknell Forest Council","http://opendatacommunities.org/id/unitary-authority/bracknell-forest","","","Management and Support Services - CYPL","Holding Codes - net nil","The Brakenhale Academy","Electricity",06/08/2018 00:00:00,"30341689",79.94,"EDF ENERY"
"Bracknell Forest Council","http://opendatacommunities.org/id/unitary-authority/bracknell-forest","","","Management and Support Services - CYPL","Holding Codes - net nil","The Brakenhale Academy","Electricity",06/08/2018 00:00:00,"30341689",4052.05,"EDF ENERY"
"Bracknell Forest Council","http://opendatacommunities.org/id/unitary-authority/bracknell-forest","","","Management and Support Services - CYPL","Holding Codes - net nil","The Brakenhale Academy","Electricity",10/09/2018 00:00:00,"30342617",190.59,"BRITISH GAS TRADING"
"Bracknell Forest Council","http://opendatacommunities.org/id/unitary-authority/bracknell-forest","","","Management and Support Services - CYPL","Holding Codes - net nil","The Brakenhale Academy","Electricity",10/09/2018 00:00:00,"30342617",51.72,"BRITISH GAS TRADING"
"Bracknell Forest Council","http://opendatacommunities.org/id/unitary-authority/bracknell-forest","","","Management and Support Services - CYPL","Holding Codes - net nil","The Brakenhale Academy","Gas",10/09/2018 00:00:00,"30342800",64.21,"CORONA GAS"
"Bracknell Forest Council","http://opendatacommunities.org/id/unitary-authority/bracknell-forest","","","Management and Support Services - CYPL","Holding Codes - net nil","The Brakenhale Academy","Gas",10/09/2018 00:00:00,"30342800",72.16,"CORONA GAS"
"Bracknell Forest Council","http://opendatacommunities.org/id/unitary-authority/bracknell-forest","","","Management and Support Services - CYPL","Holding Codes - net nil","The Brakenhale Academy","Gas",10/09/2018 00:00:00,"30342800",34,"CORONA GAS"
"Bracknell Forest Council","http://opendatacommunities.org/id/unitary-authority/bracknell-forest","","","Management and Support Services - CYPL","Holding Codes - net nil","The Brakenhale Academy","Electricity",05/09/2018 00:00:00,"30342945",79.94,"EDF ENERY"
"Bracknell Forest Council","http://opendatacommunities.org/id/unitary-authority/bracknell-forest","","","Management and Support Services - CYPL","Holding Codes - net nil","The Brakenhale Academy","Electricity",05/09/2018 00:00:00,"30342945",2181.17,"EDF ENERY"
"Bracknell Forest Council","http://opendatacommunities.org/id/unitary-authority/bracknell-forest","","","Management and Support Services - CYPL","Holding Codes - net nil","The Brakenhale Academy","Electricity",10/10/2018 00:00:00,"30344074",723.46,"BRITISH GAS TRADING"
"Bracknell Forest Council","http://opendatacommunities.org/id/unitary-authority/bracknell-forest","","","Management and Support Services - CYPL","Holding Codes - net nil","The Brakenhale Academy","Electricity",10/10/2018 00:00:00,"30344074",140.43,"BRITISH GAS TRADING"
"Bracknell Forest Council","http://opendatacommunities.org/id/unitary-authority/bracknell-forest","","","Management and Support Services - CYPL","Holding Codes - net nil","The Brakenhale Academy","Gas",10/10/2018 00:00:00,"30344300",68.67,"CORONA GAS"
"Bracknell Forest Council","http://opendatacommunities.org/id/unitary-authority/bracknell-forest","","","Management and Support Services - CYPL","Holding Codes - net nil","The Brakenhale Academy","Gas",10/10/2018 00:00:00,"30344300",77.28,"CORONA GAS"
"Bracknell Forest Council","http://opendatacommunities.org/id/unitary-authority/bracknell-forest","","","Management and Support Services - CYPL","Holding Codes - net nil","The Brakenhale Academy","Gas",10/10/2018 00:00:00,"30344300",35.45,"CORONA GAS"
"Bracknell Forest Council","http://opendatacommunities.org/id/unitary-authority/bracknell-forest","","","Management and Support Services - CYPL","Holding Codes - net nil","The Brakenhale Academy","Electricity",08/10/2018 00:00:00,"30344789",177.96,"EDF ENERY"
"Bracknell Forest Council","http://opendatacommunities.org/id/unitary-authority/bracknell-forest","","","Management and Support Services - CYPL","Holding Codes - net nil","The Brakenhale Academy","Electricity",08/10/2018 00:00:00,"30344789",4409.76,"EDF ENERY"
"Bracknell Forest Council","http://opendatacommunities.org/id/unitary-authority/bracknell-forest","","","Management and Support Services - CYPL","Holding Codes - net nil","The Brakenhale Academy","Electricity",12/11/2018 00:00:00,"30346303",735.36,"BRITISH GAS TRADING"
"Bracknell Forest Council","http://opendatacommunities.org/id/unitary-authority/bracknell-forest","","","Management and Support Services - CYPL","Holding Codes - net nil","The Brakenhale Academy","Electricity",12/11/2018 00:00:00,"30346303",154,"BRITISH GAS TRADING"
"Bracknell Forest Council","http://opendatacommunities.org/id/unitary-authority/bracknell-forest","","","Management and Support Services - CYPL","Holding Codes - net nil","The Brakenhale Academy","Electricity",05/11/2018 00:00:00,"30346317",414.62,"EDF ENERY"
"Bracknell Forest Council","http://opendatacommunities.org/id/unitary-authority/bracknell-forest","","","Management and Support Services - CYPL","Holding Codes - net nil","The Brakenhale Academy","Electricity",05/11/2018 00:00:00,"30346317",5319.12,"EDF ENERY"
"Bracknell Forest Council","http://opendatacommunities.org/id/unitary-authority/bracknell-forest","","","Special Schools","Delegated Secondary Schools Budgets","Easthampstead Park Community - Secondary","Gas",10/08/2018 00:00:00,"30341042",859.41,"CORONA GAS"
"Bracknell Forest Council","http://opendatacommunities.org/id/unitary-authority/bracknell-forest","","","Special Schools","Delegated Secondary Schools Budgets","Easthampstead Park Community - Secondary","Electricity",06/08/2018 00:00:00,"30341689",4689.65,"EDF ENERY"
"Bracknell Forest Council","http://opendatacommunities.org/id/unitary-authority/bracknell-forest","","","Special Schools","Delegated Secondary Schools Budgets","Easthampstead Park Community - Secondary","Electricity",05/09/2018 00:00:00,"30342945",2823.94,"EDF ENERY"
"Bracknell Forest Council","http://opendatacommunities.org/id/unitary-authority/bracknell-forest","","","Special Schools","Delegated Secondary Schools Budgets","Easthampstead Park Community - Secondary","Gas",10/10/2018 00:00:00,"30344300",1114.22,"CORONA GAS"
"Bracknell Forest Council","http://opendatacommunities.org/id/unitary-authority/bracknell-forest","","","Special Schools","Delegated Secondary Schools Budgets","Easthampstead Park Community - Secondary","Electricity",08/10/2018 00:00:00,"30344789",5726.85,"EDF ENERY"
"Bracknell Forest Council","http://opendatacommunities.org/id/unitary-authority/bracknell-forest","","","Special Schools","Delegated Secondary Schools Budgets","Easthampstead Park Community - Secondary","Electricity",05/11/2018 00:00:00,"30346317",6425.01,"EDF ENERY"
"Bracknell Forest Council","http://opendatacommunities.org/id/unitary-authority/bracknell-forest","","","Management and Support Services - CYPL","Holding Codes - net nil","Edgbarrow Academy","Electricity",10/08/2018 00:00:00,"30340683",824.69,"BRITISH GAS TRADING"
"Bracknell Forest Council","http://opendatacommunities.org/id/unitary-authority/bracknell-forest","","","Management and Support Services - CYPL","Holding Codes - net nil","Edgbarrow Academy","Electricity",10/08/2018 00:00:00,"30340683",247.68,"BRITISH GAS TRADING"
"Bracknell Forest Council","http://opendatacommunities.org/id/unitary-authority/bracknell-forest","","","Management and Support Services - CYPL","Holding Codes - net nil","Edgbarrow Academy","Electricity",10/08/2018 00:00:00,"30340683",209.53,"BRITISH GAS TRADING"
"Bracknell Forest Council","http://opendatacommunities.org/id/unitary-authority/bracknell-forest","","","Management and Support Services - CYPL","Holding Codes - net nil","Edgbarrow Academy","Electricity",10/08/2018 00:00:00,"30340683",81.87,"BRITISH GAS TRADING"
"Bracknell Forest Council","http://opendatacommunities.org/id/unitary-authority/bracknell-forest","","","Management and Support Services - CYPL","Holding Codes - net nil","Edgbarrow Academy","Gas",10/08/2018 00:00:00,"30341042",629.9,"CORONA GAS"
"Bracknell Forest Council","http://opendatacommunities.org/id/unitary-authority/bracknell-forest","","","Management and Support Services - CYPL","Holding Codes - net nil","Edgbarrow Academy","Gas",10/08/2018 00:00:00,"30341042",585.49,"CORONA GAS"
"Bracknell Forest Council","http://opendatacommunities.org/id/unitary-authority/bracknell-forest","","","Management and Support Services - CYPL","Holding Codes - net nil","Edgbarrow Academy","Gas",10/08/2018 00:00:00,"30341042",70.31,"CORONA GAS"
"Bracknell Forest Council","http://opendatacommunities.org/id/unitary-authority/bracknell-forest","","","Management and Support Services - CYPL","Holding Codes - net nil","Edgbarrow Academy","Electricity",06/08/2018 00:00:00,"30341689",3788.38,"EDF ENERY"
"Bracknell Forest Council","http://opendatacommunities.org/id/unitary-authority/bracknell-forest","","","Central Support Services - COF","Information Technology","Web Team","Licences",30/09/2018 00:00:00,"6670038",1027.57,"INVOTRA LIMITED"
"Bracknell Forest Council","http://opendatacommunities.org/id/unitary-authority/bracknell-forest","","","Central Support Services - COF","Information Technology","Web Team","Licences",01/10/2018 00:00:00,"6670070",2055.13,"INVOTRA LIMITED"
"Bracknell Forest Council","http://opendatacommunities.org/id/unitary-authority/bracknell-forest","","","Central Support Services - COF","Information Technology","Web Team","Licences",01/11/2018 00:00:00,"6671360",2055.13,"INVOTRA LIMITED"
"Bracknell Forest Council","http://opendatacommunities.org/id/unitary-authority/bracknell-forest","","","Central Support Services - COF","Information Technology","Web Team","Licences",05/10/2018 00:00:00,"6671524",18000,"MICROSERVE IT SERVICES LTD"
"Bracknell Forest Council","http://opendatacommunities.org/id/unitary-authority/bracknell-forest","","","Central Support Services - COF","Information Technology","Web Team","Licences",07/11/2018 00:00:00,"6671831",550,"RAPIDSPIKE LTD"
"Bracknell Forest Council","http://opendatacommunities.org/id/unitary-authority/bracknell-forest","","","Central Support Services - COF","Information Technology","Web Team","Licences",01/12/2018 00:00:00,"6673008",2055.13,"INVOTRA LIMITED"
"Bracknell Forest Council","http://opendatacommunities.org/id/unitary-authority/bracknell-forest","","","Central Support Services - COF","Information Technology","Technical  Services","Equipment - R&M",17/08/2018 00:00:00,"6666838",29581,"FUTURE-TECH SCI LTD"
"Bracknell Forest Council","http://opendatacommunities.org/id/unitary-authority/bracknell-forest","","","Central Support Services - COF","Information Technology","Technical  Services","Licences",31/08/2018 00:00:00,"6667840",3532,"SATISNET"
"Bracknell Forest Council","http://opendatacommunities.org/id/unitary-authority/bracknell-forest","","","Central Support Services - COF","Information Technology","Technical  Services","Contracted Services",01/09/2018 00:00:00,"6669797",15243,"CENTERPRISE INTERNATIONAL LTD"
"Bracknell Forest Council","http://opendatacommunities.org/id/unitary-authority/bracknell-forest","","","Central Support Services - COF","Information Technology","Technical  Services","Contracted Services",26/09/2018 00:00:00,"6669995",720,"M SCIENCE LIMITED"
"Bracknell Forest Council","http://opendatacommunities.org/id/unitary-authority/bracknell-forest","","","Central Support Services - COF","Information Technology","Technical  Services","Licences",28/09/2018 00:00:00,"6670073",41652.77,"COMPAREX"
"Bracknell Forest Council","http://opendatacommunities.org/id/unitary-authority/bracknell-forest","","","Central Support Services - COF","Information Technology","Technical  Services","Contracted Services",01/10/2018 00:00:00,"6670105",2642.61,"VODAFONE LIMITED"
"Bracknell Forest Council","http://opendatacommunities.org/id/unitary-authority/bracknell-forest","","","Central Support Services - COF","Information Technology","Technical  Services","Equipment - R&M",17/10/2018 00:00:00,"6670276",6656,"AIT LTD"
"Bracknell Forest Council","http://opendatacommunities.org/id/unitary-authority/bracknell-forest","","","Central Support Services - COF","Information Technology","Technical  Services","Equipment - R&M",17/09/2018 00:00:00,"6671362",503,"EXCLAIMER LTD"
"Bracknell Forest Council","http://opendatacommunities.org/id/unitary-authority/bracknell-forest","","","Central Support Services - COF","Information Technology","Technical  Services","Computer Software",09/11/2018 00:00:00,"6671928",5950,"SURECLOUD LIMITED"
"Bracknell Forest Council","http://opendatacommunities.org/id/unitary-authority/bracknell-forest","","","Central Support Services - COF","Information Technology","Technical  Services","Computer Software",09/11/2018 00:00:00,"6671928",4250,"SURECLOUD LIMITED"
"Bracknell Forest Council","http://opendatacommunities.org/id/unitary-authority/bracknell-forest","","","Central Support Services - COF","Information Technology","Technical  Services","Licences",22/11/2018 00:00:00,"6672456",26248,"AVR INTERNATIONAL LIMITED"
"Bracknell Forest Council","http://opendatacommunities.org/id/unitary-authority/bracknell-forest","","","Central Support Services - COF","Information Technology","Technical  Services","Licences",22/11/2018 00:00:00,"6672458",5965.05,"ULTIMA BUSINESS SOLUTIONS"
"Bracknell Forest Council","http://opendatacommunities.org/id/unitary-authority/bracknell-forest","","","Central Support Services - COF","Information Technology","Communications","Equipment - R&M",16/03/2018 00:00:00,"6663617",598.69,"TENEO LTD"
"Bracknell Forest Council","http://opendatacommunities.org/id/unitary-authority/bracknell-forest","","","Central Support Services - COF","Information Technology","Communications","Equipment - Rental",14/08/2018 00:00:00,"6667254",2708.98,"VODAFONE LIMITED"
"Bracknell Forest Council","http://opendatacommunities.org/id/unitary-authority/bracknell-forest","","","Central Support Services - COF","Information Technology","Communications","Equipment - Rental",22/08/2018 00:00:00,"6667463",3900.07,"BT GLOBAL SERVICES"
"Bracknell Forest Council","http://opendatacommunities.org/id/unitary-authority/bracknell-forest","","","Central Support Services - COF","Information Technology","Communications","Equipment - Rental",09/09/2018 00:00:00,"6668411",12027.39,"BRITISH TELECOM"
"Bracknell Forest Council","http://opendatacommunities.org/id/unitary-authority/bracknell-forest","","","Central Support Services - COF","Information Technology","Communications","Equipment - Rental",01/09/2018 00:00:00,"6668544",3820,"KCOM"
"Bracknell Forest Council","http://opendatacommunities.org/id/unitary-authority/bracknell-forest","","","Central Support Services - COF","Information Technology","Communications","Equipment - R&M",28/09/2018 00:00:00,"6669249",29281.39,"MAINTEL EUROPE LTD"
"Bracknell Forest Council","http://opendatacommunities.org/id/unitary-authority/bracknell-forest","","","Central Support Services - COF","Information Technology","Communications","Equipment - R&M",17/08/2018 00:00:00,"6669287",880,"SOLARWINDS SOFTWARE EUROPE LTD"
"Bracknell Forest Council","http://opendatacommunities.org/id/unitary-authority/bracknell-forest","","","Central Support Services - COF","Information Technology","Communications","Equipment - R&M",28/09/2018 00:00:00,"6669301",12738.31,"MAINTEL EUROPE LTD"
"Bracknell Forest Council","http://opendatacommunities.org/id/unitary-authority/bracknell-forest","","","Central Support Services - COF","Information Technology","Communications","Equipment - Rental",24/09/2018 00:00:00,"6670006",1167.47,"BRITISH TELECOM"
"Bracknell Forest Council","http://opendatacommunities.org/id/unitary-authority/bracknell-forest","","","Central Support Services - COF","Information Technology","Communications","Equipment - Rental",17/09/2018 00:00:00,"6670007",2708.98,"VODAFONE CORPORATE"
"Bracknell Forest Council","http://opendatacommunities.org/id/unitary-authority/bracknell-forest","","","Central Support Services - COF","Information Technology","Communications","Equipment - Rental",22/10/2018 00:00:00,"6670453",1129.81,"BRITISH TELECOM"
"Bracknell Forest Council","http://opendatacommunities.org/id/unitary-authority/bracknell-forest","","","Central Support Services - COF","Information Technology","Communications","Equipment - Rental",17/09/2018 00:00:00,"6671203",2708.98,"VODAFONE LIMITED"
"Bracknell Forest Council","http://opendatacommunities.org/id/unitary-authority/bracknell-forest","","","Central Support Services - COF","Information Technology","Communications","Equipment - Rental",14/06/2018 00:00:00,"6671319",2708.98,"VODAFONE LIMITED"
"Bracknell Forest Council","http://opendatacommunities.org/id/unitary-authority/bracknell-forest","","","Central Support Services - COF","Information Technology","Communications","Equipment - Rental",15/02/2018 00:00:00,"6671320",2708.98,"VODAFONE LIMITED"
"Bracknell Forest Council","http://opendatacommunities.org/id/unitary-authority/bracknell-forest","","","Central Support Services - COF","Information Technology","Communications","Equipment - Rental",18/10/2018 00:00:00,"6671370",2708.98,"VODAFONE LIMITED"
"Bracknell Forest Council","http://opendatacommunities.org/id/unitary-authority/bracknell-forest","","","Central Support Services - COF","Information Technology","Communications","Equipment - R&M",28/11/2018 00:00:00,"6672779",26999,"NETCALL TELECOM LIMITED"
"Bracknell Forest Council","http://opendatacommunities.org/id/unitary-authority/bracknell-forest","","","Central Support Services - COF","Information Technology","Communications","Equipment - Rental",26/11/2018 00:00:00,"6672914",1167.47,"BT GLOBAL SERVICES"
"Bracknell Forest Council","http://opendatacommunities.org/id/unitary-authority/bracknell-forest","","","Central Support Services - COF","Information Technology","ICT Telephony","Mobile Telephones",25/08/2018 00:00:00,"6667457",1033.13,"VODAFONE CORPORATE"
"Bracknell Forest Council","http://opendatacommunities.org/id/unitary-authority/bracknell-forest","","","Central Support Services - COF","Information Technology","ICT Telephony","Mobile Telephones",25/08/2018 00:00:00,"6667458",1055.07,"VODAFONE CORPORATE"
"Bracknell Forest Council","http://opendatacommunities.org/id/unitary-authority/bracknell-forest","","","Central Support Services - COF","Information Technology","ICT Telephony","Mobile Telephones",25/08/2018 00:00:00,"6667459",528.77,"VODAFONE CORPORATE"
"Bracknell Forest Council","http://opendatacommunities.org/id/unitary-authority/bracknell-forest","","","Central Support Services - COF","Information Technology","ICT Telephony","Mobile Telephones",25/08/2018 00:00:00,"6667461",5447.46,"VODAFONE CORPORATE"
"Bracknell Forest Council","http://opendatacommunities.org/id/unitary-authority/bracknell-forest","","","Central Support Services - COF","Information Technology","ICT Telephony","Mobile Telephones",31/07/2018 00:00:00,"6667490",1188.38,"VODAFONE CORPORATE"
"Bracknell Forest Council","http://opendatacommunities.org/id/unitary-authority/bracknell-forest","","","Central Support Services - COF","Information Technology","ICT Telephony","Mobile Telephones",31/08/2018 00:00:00,"6668277",1633.52,"VODAFONE CORPORATE"
"Bracknell Forest Council","http://opendatacommunities.org/id/unitary-authority/bracknell-forest","","","Central Support Services - COF","Information Technology","ICT Telephony","Mobile Telephones",30/07/2018 00:00:00,"6668611",-9998.91,"VODAFONE CORPORATE"
"Bracknell Forest Council","http://opendatacommunities.org/id/unitary-authority/bracknell-forest","","","Central Support Services - COF","Information Technology","ICT Telephony","Mobile Telephones",12/10/2018 00:00:00,"6670064",-15245,"VODAFONE CORPORATE"
"Bracknell Forest Council","http://opendatacommunities.org/id/unitary-authority/bracknell-forest","","","Central Support Services - COF","Information Technology","ICT Telephony","Mobile Telephones",12/10/2018 00:00:00,"6670065",7820,"VODAFONE CORPORATE"
"Bracknell Forest Council","http://opendatacommunities.org/id/unitary-authority/bracknell-forest","","","Central Support Services - COF","Information Technology","ICT Telephony","Mobile Telephones",25/09/2018 00:00:00,"6670078",1032.53,"VODAFONE CORPORATE"
"Bracknell Forest Council","http://opendatacommunities.org/id/unitary-authority/bracknell-forest","","","Central Support Services - COF","Information Technology","ICT Telephony","Mobile Telephones",25/09/2018 00:00:00,"6670079",529.29,"VODAFONE CORPORATE"
"Bracknell Forest Council","http://opendatacommunities.org/id/unitary-authority/bracknell-forest","","","Central Support Services - COF","Information Technology","ICT Telephony","Mobile Telephones",25/09/2018 00:00:00,"6670080",3982.74,"VODAFONE CORPORATE"
"Bracknell Forest Council","http://opendatacommunities.org/id/unitary-authority/bracknell-forest","","","Central Support Services - COF","Information Technology","ICT Telephony","Mobile Telephones",25/09/2018 00:00:00,"6670081",1059.23,"VODAFONE CORPORATE"
"Bracknell Forest Council","http://opendatacommunities.org/id/unitary-authority/bracknell-forest","","","Central Support Services - COF","Information Technology","ICT Telephony","Mobile Telephones",30/09/2018 00:00:00,"6670109",1641.9,"VODAFONE CORPORATE"
"Bracknell Forest Council","http://opendatacommunities.org/id/unitary-authority/bracknell-forest","","","Central Support Services - COF","Information Technology","ICT Telephony","Mobile Telephones",15/10/2018 00:00:00,"6670542",-2470,"VODAFONE CORPORATE"
"Bracknell Forest Council","http://opendatacommunities.org/id/unitary-authority/bracknell-forest","","","Central Support Services - COF","Information Technology","ICT Telephony","Mobile Telephones",15/10/2018 00:00:00,"6670544",-35020,"VODAFONE CORPORATE"
"Bracknell Forest Council","http://opendatacommunities.org/id/unitary-authority/bracknell-forest","","","Central Support Services - COF","Information Technology","ICT Telephony","Mobile Telephones",15/10/2018 00:00:00,"6670777",19570,"VODAFONE CORPORATE"
"Bracknell Forest Council","http://opendatacommunities.org/id/unitary-authority/bracknell-forest","","","Central Support Services - COF","Information Technology","ICT Telephony","Mobile Telephones",15/10/2018 00:00:00,"6670779",1045,"VODAFONE CORPORATE"
"Bracknell Forest Council","http://opendatacommunities.org/id/unitary-authority/bracknell-forest","","","Central Support Services - COF","Information Technology","ICT Telephony","Mobile Telephones",23/10/2018 00:00:00,"6671368",720,"VODAFONE CORPORATE"
"Bracknell Forest Council","http://opendatacommunities.org/id/unitary-authority/bracknell-forest","","","Central Support Services - COF","Information Technology","ICT Telephony","Mobile Telephones",12/10/2018 00:00:00,"6671369",645,"VODAFONE CORPORATE"
"Bracknell Forest Council","http://opendatacommunities.org/id/unitary-authority/bracknell-forest","","","Central Support Services - COF","Information Technology","ICT Telephony","Mobile Telephones",12/10/2018 00:00:00,"6671372",-1500,"VODAFONE CORPORATE"
"Bracknell Forest Council","http://opendatacommunities.org/id/unitary-authority/bracknell-forest","","","Central Support Services - COF","Information Technology","ICT Telephony","Mobile Telephones",23/10/2018 00:00:00,"6671374",-5125,"VODAFONE CORPORATE"
"Bracknell Forest Council","http://opendatacommunities.org/id/unitary-authority/bracknell-forest","","","Central Support Services - COF","Information Technology","ICT Telephony","Mobile Telephones",23/10/2018 00:00:00,"6671375",-1320,"VODAFONE CORPORATE"
"Bracknell Forest Council","http://opendatacommunities.org/id/unitary-authority/bracknell-forest","","","Central Support Services - COF","Information Technology","ICT Telephony","Mobile Telephones",15/10/2018 00:00:00,"6671376",-11605,"VODAFONE CORPORATE"
"Bracknell Forest Council","http://opendatacommunities.org/id/unitary-authority/bracknell-forest","","","Central Support Services - COF","Information Technology","ICT Telephony","Mobile Telephones",15/10/2018 00:00:00,"6671377",5705,"VODAFONE CORPORATE"
"Bracknell Forest Council","http://opendatacommunities.org/id/unitary-authority/bracknell-forest","","","Central Support Services - COF","Information Technology","ICT Telephony","Mobile Telephones",23/10/2018 00:00:00,"6671378",2950,"VODAFONE CORPORATE"
"Bracknell Forest Council","http://opendatacommunities.org/id/unitary-authority/bracknell-forest","","","Central Support Services - COF","Information Technology","ICT Telephony","Mobile Telephones",31/10/2018 00:00:00,"6671553",1374,"VODAFONE CORPORATE"
"Bracknell Forest Council","http://opendatacommunities.org/id/unitary-authority/bracknell-forest","","","Central Support Services - COF","Information Technology","ICT Telephony","Mobile Telephones",27/10/2018 00:00:00,"6671605",2862.82,"VODAFONE CORPORATE"
"Bracknell Forest Council","http://opendatacommunities.org/id/unitary-authority/bracknell-forest","","","Central Support Services - COF","Information Technology","ICT Telephony","Mobile Telephones",20/11/2018 00:00:00,"6672643",5155,"VODAFONE CORPORATE"
"Bracknell Forest Council","http://opendatacommunities.org/id/unitary-authority/bracknell-forest","","","Central Support Services - COF","Information Technology","ICT Telephony","Mobile Telephones",20/11/2018 00:00:00,"6672678",-5705,"VODAFONE CORPORATE"
"Bracknell Forest Council","http://opendatacommunities.org/id/unitary-authority/bracknell-forest","","","Central Support Services - COF","Information Technology","ICT Schools","Computer Software Maintenance",25/09/2018 00:00:00,"6669016",1827,"TEAMVIEWER GMBH"
"Bracknell Forest Council","http://opendatacommunities.org/id/unitary-authority/bracknell-forest","","","Central Support Services - COF","Information Technology","Departmental ICT","Computer Software Maintenance",24/07/2018 00:00:00,"6666796",37595,"IMOSPHERE LTD"
"Bracknell Forest Council","http://opendatacommunities.org/id/unitary-authority/bracknell-forest","","","Central Support Services - COF","Information Technology","Departmental ICT","Computer Software Maintenance",22/08/2018 00:00:00,"6667269",3927,"KEYSOFT SOLUTIONS LTD"
"Bracknell Forest Council","http://opendatacommunities.org/id/unitary-authority/bracknell-forest","","","Central Support Services - COF","Information Technology","Departmental ICT","Computer Maintenance",13/06/2018 00:00:00,"6667276",622.33,"TWOFOLD LIMITED"
"Bracknell Forest Council","http://opendatacommunities.org/id/unitary-authority/bracknell-forest","","","Central Support Services - COF","Information Technology","Departmental ICT","Computer Software",07/08/2018 00:00:00,"6667421",594,"CIVICA UK LTD"
"Bracknell Forest Council","http://opendatacommunities.org/id/unitary-authority/bracknell-forest","","","Central Support Services - COF","Information Technology","Departmental ICT","Computer Software",10/08/2018 00:00:00,"6667435",2454.41,"CIVICA UK LTD"
"Bracknell Forest Council","http://opendatacommunities.org/id/unitary-authority/bracknell-forest","","","Central Support Services - COF","Information Technology","Departmental ICT","Computer Software Maintenance",30/08/2018 00:00:00,"6668142",1500,"ELMHURST ENERGY SYSTEMS LTD"
"Bracknell Forest Council","http://opendatacommunities.org/id/unitary-authority/bracknell-forest","","","Central Support Services - COF","Information Technology","Departmental ICT","Computer Maintenance",14/09/2018 00:00:00,"6668610",527.5,"TWOFOLD LIMITED"
"Bracknell Forest Council","http://opendatacommunities.org/id/unitary-authority/bracknell-forest","","","Central Support Services - COF","Information Technology","Departmental ICT","Computer Software Maintenance",18/09/2018 00:00:00,"6668681",2935.9,"EDENHOUSE SOLUTIONS LIMITED"
"Bracknell Forest Council","http://opendatacommunities.org/id/unitary-authority/bracknell-forest","","","Central Support Services - COF","Information Technology","Departmental ICT","Computer Software Maintenance",24/09/2018 00:00:00,"6668995",31543.92,"PITNEY BOWES SOFTWARE EUROPE LTD"
"Bracknell Forest Council","http://opendatacommunities.org/id/unitary-authority/bracknell-forest","","","Central Support Services - COF","Information Technology","Departmental ICT","Computer Software",31/10/2018 00:00:00,"6671146",2850,"IDOX SOFTWARE LTD"
"Bracknell Forest Council","http://opendatacommunities.org/id/unitary-authority/bracknell-forest","","","Central Support Services - COF","Legal","Legal Services","Legal Fees",31/07/2018 00:00:00,"6666141",1500,"SHOOSMITHS"
"Bracknell Forest Council","http://opendatacommunities.org/id/unitary-authority/bracknell-forest","","","Central Support Services - COF","Legal","Legal Services","Licences",04/10/2018 00:00:00,"6669837",9510.89,"THE COPYRIGHT LICENSING AGENCY LTD"
"Bracknell Forest Council","http://opendatacommunities.org/id/unitary-authority/bracknell-forest","","","Central Support Services - COF","Legal","Legal Services","Licences",01/10/2018 00:00:00,"6670929",3859.54,"IKEN BUSINESS LTD"
"Bracknell Forest Council","http://opendatacommunities.org/id/unitary-authority/bracknell-forest","","","Central Support Services - COF","Legal","Legal Services","Professional Subscriptions & Legal Practising Cert",30/10/2018 00:00:00,"6670963",3312,"PAYMENT WITHOUT INVOICES"
"Bracknell Forest Council","http://opendatacommunities.org/id/unitary-authority/bracknell-forest","","","Central Support Services - COF","Legal","Legal Services","Agency",08/08/2018 00:00:00,"30340454",1107.92,"MATRIX SCM LTD"
"Bracknell Forest Council","http://opendatacommunities.org/id/unitary-authority/bracknell-forest","","","Central Support Services - COF","Legal","Legal Services","Agency",15/08/2018 00:00:00,"30340751",1083.83,"MATRIX SCM LTD"
"Bracknell Forest Council","http://opendatacommunities.org/id/unitary-authority/bracknell-forest","","","Central Support Services - COF","Legal","Legal Services","Agency",29/08/2018 00:00:00,"30341359",1252.43,"MATRIX SCM LTD"
"Bracknell Forest Council","http://opendatacommunities.org/id/unitary-authority/bracknell-forest","","","Central Support Services - COF","Legal","Legal Services","Office Stationery",22/08/2018 00:00:00,"30341721",13.18,"COMMERCIAL LTD"
"Bracknell Forest Council","http://opendatacommunities.org/id/unitary-authority/bracknell-forest","","","Central Support Services - COF","Legal","Legal Services","Office Stationery",22/08/2018 00:00:00,"30341721",47.4,"COMMERCIAL LTD"
"Bracknell Forest Council","http://opendatacommunities.org/id/unitary-authority/bracknell-forest","","","Central Support Services - COF","Legal","Legal Services","Office Stationery",22/08/2018 00:00:00,"30341721",19.38,"COMMERCIAL LTD"
"Bracknell Forest Council","http://opendatacommunities.org/id/unitary-authority/bracknell-forest","","","Central Support Services - COF","Legal","Legal Services","Office Stationery",22/08/2018 00:00:00,"30341721",22.75,"COMMERCIAL LTD"
"Bracknell Forest Council","http://opendatacommunities.org/id/unitary-authority/bracknell-forest","","","Central Support Services - COF","Legal","Legal Services","Office Stationery",22/08/2018 00:00:00,"30341721",38.76,"COMMERCIAL LTD"
"Bracknell Forest Council","http://opendatacommunities.org/id/unitary-authority/bracknell-forest","","","Central Support Services - COF","Legal","Legal Services","Office Stationery",22/08/2018 00:00:00,"30341721",22.17,"COMMERCIAL LTD"
"Bracknell Forest Council","http://opendatacommunities.org/id/unitary-authority/bracknell-forest","","","Central Support Services - COF","Legal","Legal Services","Office Stationery",22/08/2018 00:00:00,"30341721",3.79,"COMMERCIAL LTD"
"Bracknell Forest Council","http://opendatacommunities.org/id/unitary-authority/bracknell-forest","","","Central Support Services - COF","Legal","Legal Services","Office Stationery",22/08/2018 00:00:00,"30341721",5.83,"COMMERCIAL LTD"
"Bracknell Forest Council","http://opendatacommunities.org/id/unitary-authority/bracknell-forest","","","Central Support Services - COF","Legal","Legal Services","Office Stationery",22/08/2018 00:00:00,"30341721",39.54,"COMMERCIAL LTD"
"Bracknell Forest Council","http://opendatacommunities.org/id/unitary-authority/bracknell-forest","","","Central Support Services - COF","Legal","Legal Services","Agency",05/09/2018 00:00:00,"30341842",1083.83,"MATRIX SCM LTD"
"Bracknell Forest Council","http://opendatacommunities.org/id/unitary-authority/bracknell-forest","","","Central Support Services - COF","Legal","Legal Services","Agency",12/09/2018 00:00:00,"30342185",1156.08,"MATRIX SCM LTD"
"Bracknell Forest Council","http://opendatacommunities.org/id/unitary-authority/bracknell-forest","","","Central Support Services - COF","Legal","Legal Services","Agency",19/09/2018 00:00:00,"30342468",1192.22,"MATRIX SCM LTD"
"Bracknell Forest Council","http://opendatacommunities.org/id/unitary-authority/bracknell-forest","","","Central Support Services - COF","Legal","Legal Services","Agency",26/09/2018 00:00:00,"30342856",1408.98,"MATRIX SCM LTD"
"Bracknell Forest Council","http://opendatacommunities.org/id/unitary-authority/bracknell-forest","","","Central Support Services - COF","Legal","Legal Services","Office Stationery",24/09/2018 00:00:00,"30343350",8.36,"COMMERCIAL LTD"
"Bracknell Forest Council","http://opendatacommunities.org/id/unitary-authority/bracknell-forest","","","Central Support Services - COF","Legal","Legal Services","Office Stationery",24/09/2018 00:00:00,"30343350",6.18,"COMMERCIAL LTD"
"Bracknell Forest Council","http://opendatacommunities.org/id/unitary-authority/bracknell-forest","","","Central Support Services - COF","Legal","Legal Services","Office Stationery",24/09/2018 00:00:00,"30343350",0.5,"COMMERCIAL LTD"
"Bracknell Forest Council","http://opendatacommunities.org/id/unitary-authority/bracknell-forest","","","Central Support Services - COF","Legal","Legal Services","Office Stationery",24/09/2018 00:00:00,"30343350",12.32,"COMMERCIAL LTD"
"Bracknell Forest Council","http://opendatacommunities.org/id/unitary-authority/bracknell-forest","","","Central Support Services - COF","Legal","Legal Services","Office Stationery",24/09/2018 00:00:00,"30343350",47.4,"COMMERCIAL LTD"
"Bracknell Forest Council","http://opendatacommunities.org/id/unitary-authority/bracknell-forest","","","Central Support Services - COF","Legal","Legal Services","Office Stationery",24/09/2018 00:00:00,"30343350",28.68,"COMMERCIAL LTD"
"Bracknell Forest Council","http://opendatacommunities.org/id/unitary-authority/bracknell-forest","","","Central Support Services - COF","Legal","Legal Services","Office Stationery",24/09/2018 00:00:00,"30343350",1.4,"COMMERCIAL LTD"
"Bracknell Forest Council","http://opendatacommunities.org/id/unitary-authority/bracknell-forest","","","Central Support Services - COF","Legal","Legal Services","Office Stationery",24/09/2018 00:00:00,"30343350",38.76,"COMMERCIAL LTD"
"Bracknell Forest Council","http://opendatacommunities.org/id/unitary-authority/bracknell-forest","","","Central Support Services - COF","Legal","Legal Services","Office Stationery",24/09/2018 00:00:00,"30343350",1.96,"COMMERCIAL LTD"
"Bracknell Forest Council","http://opendatacommunities.org/id/unitary-authority/bracknell-forest","","","Central Support Services - COF","Legal","Legal Services","Agency",03/10/2018 00:00:00,"30343494",1312.64,"MATRIX SCM LTD"
"Bracknell Forest Council","http://opendatacommunities.org/id/unitary-authority/bracknell-forest","","","Central Support Services - COF","Legal","Legal Services","Agency",10/10/2018 00:00:00,"30343867",1213.26,"MATRIX SCM LTD"
"Bracknell Forest Council","http://opendatacommunities.org/id/unitary-authority/bracknell-forest","","","Central Support Services - COF","Legal","Legal Services","Agency",17/10/2018 00:00:00,"30344165",1322.45,"MATRIX SCM LTD"
"Bracknell Forest Council","http://opendatacommunities.org/id/unitary-authority/bracknell-forest","","","Central Support Services - COF","Legal","Legal Services","Agency",24/10/2018 00:00:00,"30344487",1286.06,"MATRIX SCM LTD"
"Bracknell Forest Council","http://opendatacommunities.org/id/unitary-authority/bracknell-forest","","","Central Support Services - COF","Legal","Legal Services","Agency",07/11/2018 00:00:00,"30345330",1164.72,"MATRIX SCM LTD"
"Bracknell Forest Council","http://opendatacommunities.org/id/unitary-authority/bracknell-forest","","","Central Support Services - COF","Legal","Legal Services","Office Stationery",22/10/2018 00:00:00,"30345767",29.88,"COMMERCIAL LTD"
"Bracknell Forest Council","http://opendatacommunities.org/id/unitary-authority/bracknell-forest","","","Central Support Services - COF","Legal","Legal Services","Office Stationery",22/10/2018 00:00:00,"30345767",54.6,"COMMERCIAL LTD"
"Bracknell Forest Council","http://opendatacommunities.org/id/unitary-authority/bracknell-forest","","","Central Support Services - COF","Legal","Legal Services","Office Stationery",22/10/2018 00:00:00,"30345767",68.15,"COMMERCIAL LTD"
"Bracknell Forest Council","http://opendatacommunities.org/id/unitary-authority/bracknell-forest","","","Central Support Services - COF","Legal","Legal Services","Office Stationery",22/10/2018 00:00:00,"30345767",21.07,"COMMERCIAL LTD"
"Bracknell Forest Council","http://opendatacommunities.org/id/unitary-authority/bracknell-forest","","","Central Support Services - COF","Legal","Legal Services","Agency",21/11/2018 00:00:00,"30346002",1164.72,"MATRIX SCM LTD"
"Bracknell Forest Council","http://opendatacommunities.org/id/unitary-authority/bracknell-forest","","","Central Support Services - COF","Legal","Legal Services","Agency",21/11/2018 00:00:00,"30346002",1310.31,"MATRIX SCM LTD"
"Bracknell Forest Council","http://opendatacommunities.org/id/unitary-authority/bracknell-forest","","","Central Support Services - COF","Legal","Legal Services","Agency",28/11/2018 00:00:00,"30346353",1188.98,"MATRIX SCM LTD"
"Bracknell Forest Council","http://opendatacommunities.org/id/unitary-authority/bracknell-forest","","","Central Support Services - COF","Legal","Legal Services","Office Stationery",22/11/2018 00:00:00,"30346366",94.12,"COMMERCIAL LTD"
"Bracknell Forest Council","http://opendatacommunities.org/id/unitary-authority/bracknell-forest","","","Central Support Services - COF","Legal","Legal Services","Office Stationery",22/11/2018 00:00:00,"30346366",94.12,"COMMERCIAL LTD"
"Bracknell Forest Council","http://opendatacommunities.org/id/unitary-authority/bracknell-forest","","","Central Support Services - COF","Personnel","Personnel Services","Other Fees for Bought-in Services",26/07/2018 00:00:00,"6667741",1250,"HAYS SPECIALIST RECRUITMENT"
"Bracknell Forest Council","http://opendatacommunities.org/id/unitary-authority/bracknell-forest","","","Central Support Services - COF","Personnel","Personnel Services","Consultants Fees",11/09/2018 00:00:00,"6668286",1250,"HAYS SPECIALIST RECRUITMENT"
"Bracknell Forest Council","http://opendatacommunities.org/id/unitary-authority/bracknell-forest","","","Central Support Services - COF","Personnel","Personnel Services","Licences",02/08/2018 00:00:00,"6668603",1929,"MHR / MIDLAND SOFTWARE"
"Bracknell Forest Council","http://opendatacommunities.org/id/unitary-authority/bracknell-forest","","","Central Support Services - COF","Personnel","Personnel Services","Licences",22/05/2018 00:00:00,"6668604",1309.69,"MHR / MIDLAND SOFTWARE"
"Bracknell Forest Council","http://opendatacommunities.org/id/unitary-authority/bracknell-forest","","","Central Support Services - COF","Personnel","Personnel Services","Licences",22/08/2018 00:00:00,"6668605",3758.24,"MHR / MIDLAND SOFTWARE"
"Bracknell Forest Council","http://opendatacommunities.org/id/unitary-authority/bracknell-forest","","","Central Support Services - COF","Personnel","Personnel Services","Licences",24/08/2018 00:00:00,"6669206",3844.68,"MHR / MIDLAND SOFTWARE"
"Bracknell Forest Council","http://opendatacommunities.org/id/unitary-authority/bracknell-forest","","","Central Support Services - COF","Personnel","Personnel Services","Licences",24/08/2018 00:00:00,"6669208",1309.69,"MHR / MIDLAND SOFTWARE"
"Bracknell Forest Council","http://opendatacommunities.org/id/unitary-authority/bracknell-forest","","","Central Support Services - COF","Personnel","Personnel Services","Long Service Awards",03/10/2018 00:00:00,"6669710",10520,"EDENRED (INCENTIVES & MOTIVATION) LTD"
"Bracknell Forest Council","http://opendatacommunities.org/id/unitary-authority/bracknell-forest","","","Central Support Services - COF","Personnel","Personnel Services","Consultants Fees",01/11/2018 00:00:00,"6671653",1000,"STEVE VALE - HR CONSULTANT"
"Bracknell Forest Council","http://opendatacommunities.org/id/unitary-authority/bracknell-forest","","","Central Support Services - COF","Personnel","Personnel Services","Licences",22/11/2018 00:00:00,"6672557",3844.68,"MHR / MIDLAND SOFTWARE"
"Bracknell Forest Council","http://opendatacommunities.org/id/unitary-authority/bracknell-forest","","","Central Support Services - COF","Personnel","Personnel Services","Licences",22/11/2018 00:00:00,"6672558",1309.69,"MHR / MIDLAND SOFTWARE"
"Bracknell Forest Council","http://opendatacommunities.org/id/unitary-authority/bracknell-forest","","","Central Support Services - COF","Personnel","Personnel Services","Office Stationery",22/08/2018 00:00:00,"30341721",2.38,"COMMERCIAL LTD"
"Bracknell Forest Council","http://opendatacommunities.org/id/unitary-authority/bracknell-forest","","","Central Support Services - COF","Personnel","Personnel Services","Office Stationery",22/08/2018 00:00:00,"30341721",21.57,"COMMERCIAL LTD"
"Bracknell Forest Council","http://opendatacommunities.org/id/unitary-authority/bracknell-forest","","","Central Support Services - COF","Personnel","Personnel Services","Office Stationery",22/08/2018 00:00:00,"30341721",2.95,"COMMERCIAL LTD"
"Bracknell Forest Council","http://opendatacommunities.org/id/unitary-authority/bracknell-forest","","","Central Support Services - COF","Personnel","Personnel Services","Office Stationery",22/08/2018 00:00:00,"30341721",4.32,"COMMERCIAL LTD"
"Bracknell Forest Council","http://opendatacommunities.org/id/unitary-authority/bracknell-forest","","","Central Support Services - COF","Personnel","Personnel Services","Office Stationery",22/08/2018 00:00:00,"30341721",0.32,"COMMERCIAL LTD"
"Bracknell Forest Council","http://opendatacommunities.org/id/unitary-authority/bracknell-forest","","","Central Support Services - COF","Personnel","Personnel Services - Occupational Health","Other Fees for Bought-in Services",31/07/2018 00:00:00,"6666792",5283.94,"HEALES MEDICAL LTD"
"Bracknell Forest Council","http://opendatacommunities.org/id/unitary-authority/bracknell-forest","","","Central Support Services - COF","Personnel","Personnel Services - Occupational Health","Other Fees for Bought-in Services",25/08/2018 00:00:00,"6667423",5283.94,"HEALES MEDICAL LTD"
"Bracknell Forest Council","http://opendatacommunities.org/id/unitary-authority/bracknell-forest","","","Central Support Services - COF","Personnel","Personnel Services - Occupational Health","Counselling Costs",31/08/2018 00:00:00,"6669138",864,"HARMONY COUNSELLING SERVICE"
"Bracknell Forest Council","http://opendatacommunities.org/id/unitary-authority/bracknell-forest","","","Central Support Services - COF","Personnel","Personnel Services - Occupational Health","Other Fees for Bought-in Services",25/09/2018 00:00:00,"6669300",5283.94,"HEALES MEDICAL LTD"
"Bracknell Forest Council","http://opendatacommunities.org/id/unitary-authority/bracknell-forest","","","Central Support Services - COF","Personnel","Personnel Services - Occupational Health","Other Fees for Bought-in Services",25/10/2018 00:00:00,"6671155",5283.94,"HEALES MEDICAL LTD"
"Bracknell Forest Council","http://opendatacommunities.org/id/unitary-authority/bracknell-forest","","","Central Support Services - COF","Personnel","Personnel Services - Occupational Health","Other Fees for Bought-in Services",31/10/2018 00:00:00,"6671577",1258,"HEALES MEDICAL LTD"
"Bracknell Forest Council","http://opendatacommunities.org/id/unitary-authority/bracknell-forest","","","Central Support Services - COF","Personnel","Personnel Services","Consultants Fees",30/07/2018 00:00:00,"6665807",550,"KORN FERRY HAY GROUP"
"Bracknell Forest Council","http://opendatacommunities.org/id/unitary-authority/bracknell-forest","","","Central Support Services - COF","Personnel","Step Up Cohort 5","Other Fees for Bought-in Services",23/08/2018 00:00:00,"30340569",1322.2,"Redact Personal Info"
"Bracknell Forest Council","http://opendatacommunities.org/id/unitary-authority/bracknell-forest","","","Central Support Services - COF","Personnel","Step Up Cohort 5","Other Fees for Bought-in Services",23/08/2018 00:00:00,"30340569",1322.2,"Redact Personal Info"
"Bracknell Forest Council","http://opendatacommunities.org/id/unitary-authority/bracknell-forest","","","Central Support Services - COF","Personnel","Step Up Cohort 5","Other Fees for Bought-in Services",23/08/2018 00:00:00,"30340569",1322.2,"Redact Personal Info"
"Bracknell Forest Council","http://opendatacommunities.org/id/unitary-authority/bracknell-forest","","","Central Support Services - COF","Personnel","Step Up Cohort 5","Other Fees for Bought-in Services",23/08/2018 00:00:00,"30340569",1322.2,"Redact Personal Info"
"Bracknell Forest Council","http://opendatacommunities.org/id/unitary-authority/bracknell-forest","","","Central Support Services - COF","Personnel","Step Up Cohort 5","Other Fees for Bought-in Services",23/08/2018 00:00:00,"30340569",1322.2,"Redact Personal Info"
"Bracknell Forest Council","http://opendatacommunities.org/id/unitary-authority/bracknell-forest","","","Central Support Services - COF","Personnel","Step Up Cohort 5","Other Fees for Bought-in Services",23/08/2018 00:00:00,"30340569",1322.2,"Redact Personal Info"
"Bracknell Forest Council","http://opendatacommunities.org/id/unitary-authority/bracknell-forest","","","Central Support Services - COF","Personnel","Step Up Cohort 5","Other Fees for Bought-in Services",23/08/2018 00:00:00,"30340569",1322.2,"Redact Personal Info"
"Bracknell Forest Council","http://opendatacommunities.org/id/unitary-authority/bracknell-forest","","","Central Support Services - COF","Personnel","Step Up Cohort 5","Other Fees for Bought-in Services",23/08/2018 00:00:00,"30340569",1322.2,"Redact Personal Info"
"Bracknell Forest Council","http://opendatacommunities.org/id/unitary-authority/bracknell-forest","","","Central Support Services - COF","Personnel","Step Up Cohort 5","Other Fees for Bought-in Services",23/08/2018 00:00:00,"30340569",1322.2,"Redact Personal Info"
"Bracknell Forest Council","http://opendatacommunities.org/id/unitary-authority/bracknell-forest","","","Central Support Services - COF","Personnel","Step Up Cohort 5","Other Fees for Bought-in Services",23/08/2018 00:00:00,"30340569",1322.2,"Redact Personal Info"
"Bracknell Forest Council","http://opendatacommunities.org/id/unitary-authority/bracknell-forest","","","Central Support Services - COF","Personnel","Step Up Cohort 5","Other Fees for Bought-in Services",23/08/2018 00:00:00,"30340569",1322.2,"Redact Personal Info"
"Bracknell Forest Council","http://opendatacommunities.org/id/unitary-authority/bracknell-forest","","","Central Support Services - COF","Personnel","Step Up Cohort 5","Other Fees for Bought-in Services",23/08/2018 00:00:00,"30340569",1322.2,"Redact Personal Info"
"Bracknell Forest Council","http://opendatacommunities.org/id/unitary-authority/bracknell-forest","","","Central Support Services - COF","Personnel","Step Up Cohort 5","Other Fees for Bought-in Services",23/08/2018 00:00:00,"30340569",1322.2,"Redact Personal Info"
"Bracknell Forest Council","http://opendatacommunities.org/id/unitary-authority/bracknell-forest","","","Central Support Services - COF","Personnel","Step Up Cohort 5","Other Fees for Bought-in Services",20/09/2018 00:00:00,"30342388",1322.2,"Redact Personal Info"
"Bracknell Forest Council","http://opendatacommunities.org/id/unitary-authority/bracknell-forest","","","Central Support Services - COF","Personnel","Step Up Cohort 5","Other Fees for Bought-in Services",20/09/2018 00:00:00,"30342388",1322.2,"Redact Personal Info"
"Bracknell Forest Council","http://opendatacommunities.org/id/unitary-authority/bracknell-forest","","","Central Support Services - COF","Personnel","Step Up Cohort 5","Other Fees for Bought-in Services",20/09/2018 00:00:00,"30342388",1322.2,"Redact Personal Info"
"Bracknell Forest Council","http://opendatacommunities.org/id/unitary-authority/bracknell-forest","","","Central Support Services - COF","Personnel","Step Up Cohort 5","Other Fees for Bought-in Services",20/09/2018 00:00:00,"30342388",1322.2,"Redact Personal Info"
"Bracknell Forest Council","http://opendatacommunities.org/id/unitary-authority/bracknell-forest","","","Central Support Services - COF","Personnel","Step Up Cohort 5","Other Fees for Bought-in Services",20/09/2018 00:00:00,"30342388",1322.2,"Redact Personal Info"
"Bracknell Forest Council","http://opendatacommunities.org/id/unitary-authority/bracknell-forest","","","Central Support Services - COF","Personnel","Step Up Cohort 5","Other Fees for Bought-in Services",20/09/2018 00:00:00,"30342388",1322.2,"Redact Personal Info"
"Bracknell Forest Council","http://opendatacommunities.org/id/unitary-authority/bracknell-forest","","","Central Support Services - COF","Personnel","Step Up Cohort 5","Other Fees for Bought-in Services",20/09/2018 00:00:00,"30342388",1322.2,"Redact Personal Info"
"Bracknell Forest Council","http://opendatacommunities.org/id/unitary-authority/bracknell-forest","","","Central Support Services - COF","Personnel","Step Up Cohort 5","Other Fees for Bought-in Services",20/09/2018 00:00:00,"30342388",1322.2,"Redact Personal Info"
"Bracknell Forest Council","http://opendatacommunities.org/id/unitary-authority/bracknell-forest","","","Central Support Services - COF","Personnel","Step Up Cohort 5","Other Fees for Bought-in Services",20/09/2018 00:00:00,"30342388",1322.2,"Redact Personal Info"
"Bracknell Forest Council","http://opendatacommunities.org/id/unitary-authority/bracknell-forest","","","Central Support Services - COF","Personnel","Step Up Cohort 5","Other Fees for Bought-in Services",20/09/2018 00:00:00,"30342388",1322.2,"Redact Personal Info"
"Bracknell Forest Council","http://opendatacommunities.org/id/unitary-authority/bracknell-forest","","","Central Support Services - COF","Personnel","Step Up Cohort 5","Other Fees for Bought-in Services",20/09/2018 00:00:00,"30342388",1322.2,"Redact Personal Info"
"Bracknell Forest Council","http://opendatacommunities.org/id/unitary-authority/bracknell-forest","","","Central Support Services - COF","Personnel","Step Up Cohort 5","Other Fees for Bought-in Services",20/09/2018 00:00:00,"30342388",1322.2,"Redact Personal Info"
"Bracknell Forest Council","http://opendatacommunities.org/id/unitary-authority/bracknell-forest","","","Central Support Services - COF","Personnel","Step Up Cohort 5","Other Fees for Bought-in Services",20/09/2018 00:00:00,"30342388",1322.2,"Redact Personal Info"
"Bracknell Forest Council","http://opendatacommunities.org/id/unitary-authority/bracknell-forest","","","Central Support Services - COF","Personnel","Step Up Cohort 5","Other Fees for Bought-in Services",25/10/2018 00:00:00,"30344168",1322.2,"Redact Personal Info"
"Bracknell Forest Council","http://opendatacommunities.org/id/unitary-authority/bracknell-forest","","","Central Support Services - COF","Personnel","Step Up Cohort 5","Other Fees for Bought-in Services",25/10/2018 00:00:00,"30344168",1322.2,"Redact Personal Info"
"Bracknell Forest Council","http://opendatacommunities.org/id/unitary-authority/bracknell-forest","","","Central Support Services - COF","Personnel","Step Up Cohort 5","Other Fees for Bought-in Services",25/10/2018 00:00:00,"30344168",1322.2,"Redact Personal Info"
"Bracknell Forest Council","http://opendatacommunities.org/id/unitary-authority/bracknell-forest","","","Central Support Services - COF","Personnel","Step Up Cohort 5","Other Fees for Bought-in Services",25/10/2018 00:00:00,"30344168",1322.2,"Redact Personal Info"
"Bracknell Forest Council","http://opendatacommunities.org/id/unitary-authority/bracknell-forest","","","Central Support Services - COF","Personnel","Step Up Cohort 5","Other Fees for Bought-in Services",25/10/2018 00:00:00,"30344168",1322.2,"Redact Personal Info"
"Bracknell Forest Council","http://opendatacommunities.org/id/unitary-authority/bracknell-forest","","","Central Support Services - COF","Personnel","Step Up Cohort 5","Other Fees for Bought-in Services",25/10/2018 00:00:00,"30344168",1322.2,"Redact Personal Info"
"Bracknell Forest Council","http://opendatacommunities.org/id/unitary-authority/bracknell-forest","","","Central Support Services - COF","Personnel","Step Up Cohort 5","Other Fees for Bought-in Services",25/10/2018 00:00:00,"30344168",1322.2,"Redact Personal Info"
"Bracknell Forest Council","http://opendatacommunities.org/id/unitary-authority/bracknell-forest","","","Central Support Services - COF","Personnel","Step Up Cohort 5","Other Fees for Bought-in Services",25/10/2018 00:00:00,"30344168",1322.2,"Redact Personal Info"
"Bracknell Forest Council","http://opendatacommunities.org/id/unitary-authority/bracknell-forest","","","Central Support Services - COF","Personnel","Step Up Cohort 5","Other Fees for Bought-in Services",25/10/2018 00:00:00,"30344168",1322.2,"Redact Personal Info"
"Bracknell Forest Council","http://opendatacommunities.org/id/unitary-authority/bracknell-forest","","","Central Support Services - COF","Personnel","Step Up Cohort 5","Other Fees for Bought-in Services",25/10/2018 00:00:00,"30344168",1322.2,"Redact Personal Info"
"Bracknell Forest Council","http://opendatacommunities.org/id/unitary-authority/bracknell-forest","","","Central Support Services - COF","Personnel","Step Up Cohort 5","Other Fees for Bought-in Services",25/10/2018 00:00:00,"30344168",1322.2,"Redact Personal Info"
"Bracknell Forest Council","http://opendatacommunities.org/id/unitary-authority/bracknell-forest","","","Central Support Services - COF","Personnel","Step Up Cohort 5","Other Fees for Bought-in Services",25/10/2018 00:00:00,"30344168",1322.2,"Redact Personal Info"
"Bracknell Forest Council","http://opendatacommunities.org/id/unitary-authority/bracknell-forest","","","Central Support Services - COF","Personnel","Step Up Cohort 5","Other Fees for Bought-in Services",25/10/2018 00:00:00,"30344168",1322.2,"Redact Personal Info"
"Bracknell Forest Council","http://opendatacommunities.org/id/unitary-authority/bracknell-forest","","","Central Support Services - COF","Personnel","Step Up Cohort 5","Other Fees for Bought-in Services",22/11/2018 00:00:00,"30345523",1322.2,"Redact Personal Info"
"Bracknell Forest Council","http://opendatacommunities.org/id/unitary-authority/bracknell-forest","","","Central Support Services - COF","Personnel","Step Up Cohort 5","Other Fees for Bought-in Services",22/11/2018 00:00:00,"30345523",1322.2,"Redact Personal Info"
"Bracknell Forest Council","http://opendatacommunities.org/id/unitary-authority/bracknell-forest","","","Central Support Services - COF","Personnel","Step Up Cohort 5","Other Fees for Bought-in Services",22/11/2018 00:00:00,"30345523",1322.2,"Redact Personal Info"
"Bracknell Forest Council","http://opendatacommunities.org/id/unitary-authority/bracknell-forest","","","Central Support Services - COF","Personnel","Step Up Cohort 5","Other Fees for Bought-in Services",22/11/2018 00:00:00,"30345523",1322.2,"Redact Personal Info"
"Bracknell Forest Council","http://opendatacommunities.org/id/unitary-authority/bracknell-forest","","","Central Support Services - COF","Personnel","Step Up Cohort 5","Other Fees for Bought-in Services",22/11/2018 00:00:00,"30345523",1322.2,"Redact Personal Info"
"Bracknell Forest Council","http://opendatacommunities.org/id/unitary-authority/bracknell-forest","","","Central Support Services - COF","Personnel","Step Up Cohort 5","Other Fees for Bought-in Services",22/11/2018 00:00:00,"30345523",1322.2,"Redact Personal Info"
"Bracknell Forest Council","http://opendatacommunities.org/id/unitary-authority/bracknell-forest","","","Central Support Services - COF","Personnel","Step Up Cohort 5","Other Fees for Bought-in Services",22/11/2018 00:00:00,"30345523",1322.2,"Redact Personal Info"
"Bracknell Forest Council","http://opendatacommunities.org/id/unitary-authority/bracknell-forest","","","Central Support Services - COF","Personnel","Step Up Cohort 5","Other Fees for Bought-in Services",22/11/2018 00:00:00,"30345523",1322.2,"Redact Personal Info"
"Bracknell Forest Council","http://opendatacommunities.org/id/unitary-authority/bracknell-forest","","","Central Support Services - COF","Personnel","Step Up Cohort 5","Other Fees for Bought-in Services",22/11/2018 00:00:00,"30345523",1322.2,"Redact Personal Info"
"Bracknell Forest Council","http://opendatacommunities.org/id/unitary-authority/bracknell-forest","","","Central Support Services - COF","Personnel","Step Up Cohort 5","Other Fees for Bought-in Services",22/11/2018 00:00:00,"30345523",1322.2,"Redact Personal Info"
"Bracknell Forest Council","http://opendatacommunities.org/id/unitary-authority/bracknell-forest","","","Central Support Services - COF","Personnel","Step Up Cohort 5","Other Fees for Bought-in Services",22/11/2018 00:00:00,"30345523",1322.2,"Redact Personal Info"
"Bracknell Forest Council","http://opendatacommunities.org/id/unitary-authority/bracknell-forest","","","Central Support Services - COF","Personnel","Step Up Cohort 5","Other Fees for Bought-in Services",22/11/2018 00:00:00,"30345523",1322.2,"Redact Personal Info"
"Bracknell Forest Council","http://opendatacommunities.org/id/unitary-authority/bracknell-forest","","","Central Support Services - COF","Personnel","Step Up Cohort 5","Other Fees for Bought-in Services",22/11/2018 00:00:00,"30345523",1322.2,"Redact Personal Info"
"Bracknell Forest Council","http://opendatacommunities.org/id/unitary-authority/bracknell-forest","","","Central Support Services - COF","Finance","Finance Departmental Administration","Licences",02/08/2018 00:00:00,"6666324",5754.62,"MOTION PICTURE LICENSING COMPANY"
"Bracknell Forest Council","http://opendatacommunities.org/id/unitary-authority/bracknell-forest","","","Central Support Services - COF","Finance","Finance Departmental Administration","Licences",02/08/2018 00:00:00,"6668603",1929,"MHR / MIDLAND SOFTWARE"
"Bracknell Forest Council","http://opendatacommunities.org/id/unitary-authority/bracknell-forest","","","Central Support Services - COF","Finance","Finance Departmental Administration","Licences",22/05/2018 00:00:00,"6668604",1309.69,"MHR / MIDLAND SOFTWARE"
"Bracknell Forest Council","http://opendatacommunities.org/id/unitary-authority/bracknell-forest","","","Central Support Services - COF","Finance","Finance Departmental Administration","Licences",22/08/2018 00:00:00,"6668605",3758.24,"MHR / MIDLAND SOFTWARE"
"Bracknell Forest Council","http://opendatacommunities.org/id/unitary-authority/bracknell-forest","","","Central Support Services - COF","Finance","Finance Departmental Administration","Consultants Fees",13/09/2018 00:00:00,"6668917",4000,"DELOITTE"
"Bracknell Forest Council","http://opendatacommunities.org/id/unitary-authority/bracknell-forest","","","Central Support Services - COF","Finance","Finance Departmental Administration","Licences",24/08/2018 00:00:00,"6669206",3844.68,"MHR / MIDLAND SOFTWARE"
"Bracknell Forest Council","http://opendatacommunities.org/id/unitary-authority/bracknell-forest","","","Central Support Services - COF","Finance","Finance Departmental Administration","Licences",24/08/2018 00:00:00,"6669208",1309.69,"MHR / MIDLAND SOFTWARE"
"Bracknell Forest Council","http://opendatacommunities.org/id/unitary-authority/bracknell-forest","","","Central Support Services - COF","Finance","Finance Departmental Administration","Licences",22/11/2018 00:00:00,"6672557",3844.68,"MHR / MIDLAND SOFTWARE"
"Bracknell Forest Council","http://opendatacommunities.org/id/unitary-authority/bracknell-forest","","","Central Support Services - COF","Finance","Finance Departmental Administration","Licences",22/11/2018 00:00:00,"6672558",1309.69,"MHR / MIDLAND SOFTWARE"
"Bracknell Forest Council","http://opendatacommunities.org/id/unitary-authority/bracknell-forest","","","Central Support Services - COF","Finance","Finance Departmental Administration","Agency",08/08/2018 00:00:00,"30340454",763.46,"MATRIX SCM LTD"
"Bracknell Forest Council","http://opendatacommunities.org/id/unitary-authority/bracknell-forest","","","Central Support Services - COF","Finance","Finance Departmental Administration","Agency",15/08/2018 00:00:00,"30340751",694.05,"MATRIX SCM LTD"
"Bracknell Forest Council","http://opendatacommunities.org/id/unitary-authority/bracknell-forest","","","Central Support Services - COF","Finance","Finance Departmental Administration","Agency",22/08/2018 00:00:00,"30341080",758.5,"MATRIX SCM LTD"
"Bracknell Forest Council","http://opendatacommunities.org/id/unitary-authority/bracknell-forest","","","Central Support Services - COF","Finance","Finance Departmental Administration","Agency",29/08/2018 00:00:00,"30341359",649.43,"MATRIX SCM LTD"
"Bracknell Forest Council","http://opendatacommunities.org/id/unitary-authority/bracknell-forest","","","Central Support Services - COF","Finance","Finance Departmental Administration","Office Stationery",22/08/2018 00:00:00,"30341721",1.49,"COMMERCIAL LTD"
"Bracknell Forest Council","http://opendatacommunities.org/id/unitary-authority/bracknell-forest","","","Central Support Services - COF","Finance","Finance Departmental Administration","Office Stationery",22/08/2018 00:00:00,"30341721",0.81,"COMMERCIAL LTD"
"Bracknell Forest Council","http://opendatacommunities.org/id/unitary-authority/bracknell-forest","","","Central Support Services - COF","Finance","Finance Departmental Administration","Office Stationery",22/08/2018 00:00:00,"30341721",1.19,"COMMERCIAL LTD"
"Bracknell Forest Council","http://opendatacommunities.org/id/unitary-authority/bracknell-forest","","","Central Support Services - COF","Finance","Finance Departmental Administration","Office Stationery",22/08/2018 00:00:00,"30341721",8.14,"COMMERCIAL LTD"
"Bracknell Forest Council","http://opendatacommunities.org/id/unitary-authority/bracknell-forest","","","Central Support Services - COF","Finance","Finance Departmental Administration","Office Stationery",22/08/2018 00:00:00,"30341721",33,"COMMERCIAL LTD"
"Bracknell Forest Council","http://opendatacommunities.org/id/unitary-authority/bracknell-forest","","","Central Support Services - COF","Finance","Finance Departmental Administration","Office Stationery",22/08/2018 00:00:00,"30341721",44,"COMMERCIAL LTD"
"Bracknell Forest Council","http://opendatacommunities.org/id/unitary-authority/bracknell-forest","","","Central Support Services - COF","Finance","Finance Departmental Administration","Office Stationery",22/08/2018 00:00:00,"30341721",8.14,"COMMERCIAL LTD"
"Bracknell Forest Council","http://opendatacommunities.org/id/unitary-authority/bracknell-forest","","","Central Support Services - COF","Finance","Finance Departmental Administration","Office Stationery",22/08/2018 00:00:00,"30341721",7.98,"COMMERCIAL LTD"
"Bracknell Forest Council","http://opendatacommunities.org/id/unitary-authority/bracknell-forest","","","Central Support Services - COF","Finance","Finance Departmental Administration","Office Stationery",22/08/2018 00:00:00,"30341721",0.3,"COMMERCIAL LTD"
"Bracknell Forest Council","http://opendatacommunities.org/id/unitary-authority/bracknell-forest","","","Central Support Services - COF","Finance","Finance Departmental Administration","Office Stationery",22/08/2018 00:00:00,"30341721",0.93,"COMMERCIAL LTD"
"Bracknell Forest Council","http://opendatacommunities.org/id/unitary-authority/bracknell-forest","","","Central Support Services - COF","Finance","Finance Departmental Administration","Office Stationery",22/08/2018 00:00:00,"30341721",2.18,"COMMERCIAL LTD"
"Bracknell Forest Council","http://opendatacommunities.org/id/unitary-authority/bracknell-forest","","","Central Support Services - COF","Finance","Finance Departmental Administration","Office Stationery",22/08/2018 00:00:00,"30341721",0.44,"COMMERCIAL LTD"
"Bracknell Forest Council","http://opendatacommunities.org/id/unitary-authority/bracknell-forest","","","Central Support Services - COF","Finance","Finance Departmental Administration","Office Stationery",22/08/2018 00:00:00,"30341721",0.43,"COMMERCIAL LTD"
"Bracknell Forest Council","http://opendatacommunities.org/id/unitary-authority/bracknell-forest","","","Central Support Services - COF","Finance","Finance Departmental Administration","Agency",05/09/2018 00:00:00,"30341842",679.19,"MATRIX SCM LTD"
"Bracknell Forest Council","http://opendatacommunities.org/id/unitary-authority/bracknell-forest","","","Central Support Services - COF","Finance","Finance Departmental Administration","Agency",12/09/2018 00:00:00,"30342185",792,"MATRIX SCM LTD"
"Bracknell Forest Council","http://opendatacommunities.org/id/unitary-authority/bracknell-forest","","","Central Support Services - COF","Finance","Finance Departmental Administration","Agency",19/09/2018 00:00:00,"30342468",791.98,"MATRIX SCM LTD"
"Bracknell Forest Council","http://opendatacommunities.org/id/unitary-authority/bracknell-forest","","","Central Support Services - COF","Finance","Finance Departmental Administration","Agency",26/09/2018 00:00:00,"30342856",706.76,"MATRIX SCM LTD"
"Bracknell Forest Council","http://opendatacommunities.org/id/unitary-authority/bracknell-forest","","","Central Support Services - COF","Finance","Finance Departmental Administration","Office Stationery",24/09/2018 00:00:00,"30343350",0.32,"COMMERCIAL LTD"
"Bracknell Forest Council","http://opendatacommunities.org/id/unitary-authority/bracknell-forest","","","Central Support Services - COF","Finance","Finance Departmental Administration","Office Stationery",24/09/2018 00:00:00,"30343350",110,"COMMERCIAL LTD"
"Bracknell Forest Council","http://opendatacommunities.org/id/unitary-authority/bracknell-forest","","","Central Support Services - COF","Finance","Finance Departmental Administration","Office Stationery",24/09/2018 00:00:00,"30343350",2.98,"COMMERCIAL LTD"
"Bracknell Forest Council","http://opendatacommunities.org/id/unitary-authority/bracknell-forest","","","Central Support Services - COF","Finance","Finance Departmental Administration","Office Stationery",24/09/2018 00:00:00,"30343350",0.93,"COMMERCIAL LTD"
"Bracknell Forest Council","http://opendatacommunities.org/id/unitary-authority/bracknell-forest","","","Central Support Services - COF","Finance","Finance Departmental Administration","Office Stationery",24/09/2018 00:00:00,"30343350",0.44,"COMMERCIAL LTD"
"Bracknell Forest Council","http://opendatacommunities.org/id/unitary-authority/bracknell-forest","","","Central Support Services - COF","Finance","Finance Departmental Administration","Office Stationery",24/09/2018 00:00:00,"30343350",0.23,"COMMERCIAL LTD"
"Bracknell Forest Council","http://opendatacommunities.org/id/unitary-authority/bracknell-forest","","","Central Support Services - COF","Finance","Finance Departmental Administration","Office Stationery",24/09/2018 00:00:00,"30343350",0.99,"COMMERCIAL LTD"
"Bracknell Forest Council","http://opendatacommunities.org/id/unitary-authority/bracknell-forest","","","Central Support Services - COF","Finance","Finance Departmental Administration","Office Stationery",24/09/2018 00:00:00,"30343350",0.47,"COMMERCIAL LTD"
"Bracknell Forest Council","http://opendatacommunities.org/id/unitary-authority/bracknell-forest","","","Central Support Services - COF","Finance","Finance Departmental Administration","Office Stationery",24/09/2018 00:00:00,"30343350",6.52,"COMMERCIAL LTD"
"Bracknell Forest Council","http://opendatacommunities.org/id/unitary-authority/bracknell-forest","","","Central Support Services - COF","Finance","Finance Departmental Administration","Office Stationery",24/09/2018 00:00:00,"30343350",0.72,"COMMERCIAL LTD"
"Bracknell Forest Council","http://opendatacommunities.org/id/unitary-authority/bracknell-forest","","","Central Support Services - COF","Finance","Finance Departmental Administration","Agency",03/10/2018 00:00:00,"30343494",786.97,"MATRIX SCM LTD"
"Bracknell Forest Council","http://opendatacommunities.org/id/unitary-authority/bracknell-forest","","","Central Support Services - COF","Finance","Finance Departmental Administration","Agency",10/10/2018 00:00:00,"30343867",797.9,"MATRIX SCM LTD"
"Bracknell Forest Council","http://opendatacommunities.org/id/unitary-authority/bracknell-forest","","","Central Support Services - COF","Finance","Finance Departmental Administration","Agency",17/10/2018 00:00:00,"30344165",752.45,"MATRIX SCM LTD"
"Bracknell Forest Council","http://opendatacommunities.org/id/unitary-authority/bracknell-forest","","","Central Support Services - COF","Finance","Finance Departmental Administration","Agency",24/10/2018 00:00:00,"30344487",818.1,"MATRIX SCM LTD"
"Bracknell Forest Council","http://opendatacommunities.org/id/unitary-authority/bracknell-forest","","","Central Support Services - COF","Finance","Finance Departmental Administration","Agency",31/10/2018 00:00:00,"30344810",787.8,"MATRIX SCM LTD"
"Bracknell Forest Council","http://opendatacommunities.org/id/unitary-authority/bracknell-forest","","","Central Support Services - COF","Finance","Finance Departmental Administration","Agency",07/11/2018 00:00:00,"30345330",772.65,"MATRIX SCM LTD"
"Bracknell Forest Council","http://opendatacommunities.org/id/unitary-authority/bracknell-forest","","","Central Support Services - COF","Finance","Finance Departmental Administration","Agency",14/11/2018 00:00:00,"30345674",782.75,"MATRIX SCM LTD"
"Bracknell Forest Council","http://opendatacommunities.org/id/unitary-authority/bracknell-forest","","","Central Support Services - COF","Finance","Finance Departmental Administration","Office Stationery",22/10/2018 00:00:00,"30345767",7.98,"COMMERCIAL LTD"
"Bracknell Forest Council","http://opendatacommunities.org/id/unitary-authority/bracknell-forest","","","Central Support Services - COF","Finance","Finance Departmental Administration","Office Stationery",22/10/2018 00:00:00,"30345767",55,"COMMERCIAL LTD"
"Bracknell Forest Council","http://opendatacommunities.org/id/unitary-authority/bracknell-forest","","","Central Support Services - COF","Finance","Finance Departmental Administration","Office Stationery",22/10/2018 00:00:00,"30345767",19.1,"COMMERCIAL LTD"
"Bracknell Forest Council","http://opendatacommunities.org/id/unitary-authority/bracknell-forest","","","Central Support Services - COF","Finance","Finance Departmental Administration","Office Stationery",22/10/2018 00:00:00,"30345767",2.16,"COMMERCIAL LTD"
"Bracknell Forest Council","http://opendatacommunities.org/id/unitary-authority/bracknell-forest","","","Central Support Services - COF","Finance","Finance Departmental Administration","Office Stationery",22/10/2018 00:00:00,"30345767",45.4,"COMMERCIAL LTD"
"Bracknell Forest Council","http://opendatacommunities.org/id/unitary-authority/bracknell-forest","","","Central Support Services - COF","Finance","Finance Departmental Administration","Office Stationery",22/10/2018 00:00:00,"30345767",3.26,"COMMERCIAL LTD"
"Bracknell Forest Council","http://opendatacommunities.org/id/unitary-authority/bracknell-forest","","","Central Support Services - COF","Finance","Finance Departmental Administration","Agency",21/11/2018 00:00:00,"30346002",782.75,"MATRIX SCM LTD"
"Bracknell Forest Council","http://opendatacommunities.org/id/unitary-authority/bracknell-forest","","","Central Support Services - COF","Finance","Finance Departmental Administration","Agency",28/11/2018 00:00:00,"30346353",767.6,"MATRIX SCM LTD"
"Bracknell Forest Council","http://opendatacommunities.org/id/unitary-authority/bracknell-forest","","","Central Support Services - COF","Finance","Finance Departmental Administration","Office Stationery",22/11/2018 00:00:00,"30346366",2.14,"COMMERCIAL LTD"
"Bracknell Forest Council","http://opendatacommunities.org/id/unitary-authority/bracknell-forest","","","Central Support Services - COF","Finance","Finance Departmental Administration","Office Stationery",22/11/2018 00:00:00,"30346366",1.86,"COMMERCIAL LTD"
"Bracknell Forest Council","http://opendatacommunities.org/id/unitary-authority/bracknell-forest","","","Central Support Services - COF","Finance","Finance Departmental Administration","Office Stationery",22/11/2018 00:00:00,"30346366",34.05,"COMMERCIAL LTD"
"Bracknell Forest Council","http://opendatacommunities.org/id/unitary-authority/bracknell-forest","","","Central Support Services - COF","Finance","Finance Departmental Administration","Office Stationery",22/11/2018 00:00:00,"30346366",1.19,"COMMERCIAL LTD"
"Bracknell Forest Council","http://opendatacommunities.org/id/unitary-authority/bracknell-forest","","","Central Support Services - COF","Finance","Finance Departmental Administration","Office Stationery",22/11/2018 00:00:00,"30346366",2.98,"COMMERCIAL LTD"
"Bracknell Forest Council","http://opendatacommunities.org/id/unitary-authority/bracknell-forest","","","Central Support Services - COF","Finance","Finance Departmental Administration","Office Stationery",22/11/2018 00:00:00,"30346366",5.4,"COMMERCIAL LTD"
"Bracknell Forest Council","http://opendatacommunities.org/id/unitary-authority/bracknell-forest","","","Central Support Services - COF","Finance","Finance Departmental Administration","Office Stationery",22/11/2018 00:00:00,"30346366",90.8,"COMMERCIAL LTD"
"Bracknell Forest Council","http://opendatacommunities.org/id/unitary-authority/bracknell-forest","","","Central Support Services - COF","Finance","Finance - Schools SLA","Computer Software",15/10/2018 00:00:00,"6670715",1000,"THE HEADTEACHER'S REPORT LTD"
"Bracknell Forest Council","http://opendatacommunities.org/id/unitary-authority/bracknell-forest","","","Central Support Services - COF","Finance","Internal Audit","Contracted Services",11/09/2018 00:00:00,"6668600",12022.5,"CROYDON COUNCIL"
"Bracknell Forest Council","http://opendatacommunities.org/id/unitary-authority/bracknell-forest","","","Central Support Services - COF","Finance","Internal Audit","Contracted Services",09/11/2018 00:00:00,"6672450",16144.5,"CROYDON COUNCIL"
"Bracknell Forest Council","http://opendatacommunities.org/id/unitary-authority/bracknell-forest","","","Central Support Services - COF","Finance","Insurance Management","Computer Software",16/10/2018 00:00:00,"6670766",5636.42,"NTT DATA FIGTREE SYSTEMS (EUROPE) LTD"
"Bracknell Forest Council","http://opendatacommunities.org/id/unitary-authority/bracknell-forest","","","Central Support Services - COF","Finance","Insurance Management","Consultants Fees",12/10/2018 00:00:00,"6671087",5880,"JLT SPECIALITY LIMITED"
"Bracknell Forest Council","http://opendatacommunities.org/id/unitary-authority/bracknell-forest","","","Central Support Services - COF","Finance","Insurance Premiums Holding Account","Insurance Premiums",31/07/2018 00:00:00,"6666644",9655.1,"OCASO"
"Bracknell Forest Council","http://opendatacommunities.org/id/unitary-authority/bracknell-forest","","","Central Support Services - COF","Finance","Insurance Premiums Holding Account","Insurance Premiums",16/08/2018 00:00:00,"6667801",10063.2,"ARTHUR J GALLAGHER (UK) LIMITED"
"Bracknell Forest Council","http://opendatacommunities.org/id/unitary-authority/bracknell-forest","","","Central Support Services - COF","Finance","Insurance Premiums Holding Account","Insurance Premiums",29/10/2018 00:00:00,"6671226",5606.86,"MAVEN PUBLIC SECTOR"
"Bracknell Forest Council","http://opendatacommunities.org/id/unitary-authority/bracknell-forest","","","Central Support Services - COF","Finance","Technical Accountancy","Other Fees for Bought-in Services",02/10/2018 00:00:00,"6669282",593.02,"HMRC SHIPLEY"
"Bracknell Forest Council","http://opendatacommunities.org/id/unitary-authority/bracknell-forest","","","Central Support Services - COF","Finance","Technical Accountancy","Computer Software Maintenance",01/10/2018 00:00:00,"6669564",540,"LE&AS  LEGAL ESCROW & ARBITRATION SERVICES LTD"
"Bracknell Forest Council","http://opendatacommunities.org/id/unitary-authority/bracknell-forest","","","Central Support Services - COF","Finance","Technical Accountancy","Consultants Fees",01/10/2018 00:00:00,"6670534",2887.5,"AGILE BUSINESS SYSTEMS SOLUTIONS"
"Bracknell Forest Council","http://opendatacommunities.org/id/unitary-authority/bracknell-forest","","","Central Support Services - COF","Finance","Technical Accountancy","Consultants Fees",24/10/2018 00:00:00,"6670932",3500,"SIMPSON JUDGE LTD"
"Bracknell Forest Council","http://opendatacommunities.org/id/unitary-authority/bracknell-forest","","","Central Support Services - COF","Finance","Technical Accountancy","Computer Software Maintenance",31/10/2018 00:00:00,"6671407",694.83,"BOTTOMLINE TECHNOLOGIES LIMITED"
"Bracknell Forest Council","http://opendatacommunities.org/id/unitary-authority/bracknell-forest","","","Central Support Services - COF","Finance","Technical Accountancy","Computer Software Maintenance",31/10/2018 00:00:00,"6671408",1262.22,"BOTTOMLINE TECHNOLOGIES LIMITED"
"Bracknell Forest Council","http://opendatacommunities.org/id/unitary-authority/bracknell-forest","","","Central Support Services - COF","Finance","Technical Accountancy","Consultants Fees",16/10/2018 00:00:00,"6672679",1200,"IT WORKS RECRUITMENT LTD"
"Bracknell Forest Council","http://opendatacommunities.org/id/unitary-authority/bracknell-forest","","","Central Support Services - COF","Finance","Procurement","Agency",06/09/2018 00:00:00,"6668025",1910.4,"HAYS SPECIALIST RECRUITMENT"
"Bracknell Forest Council","http://opendatacommunities.org/id/unitary-authority/bracknell-forest","","","Central Support Services - COF","Customer Service Centre","Cashiers Services","Banking Charges",06/08/2018 00:00:00,"6666831",4017.7,"CAPITA BUSINESS SERVICES LTD"
"Bracknell Forest Council","http://opendatacommunities.org/id/unitary-authority/bracknell-forest","","","Central Support Services - COF","Customer Service Centre","Cashiers Services","Banking Charges",07/09/2018 00:00:00,"6668479",3739.31,"CAPITA BUSINESS SERVICES LTD"
"Bracknell Forest Council","http://opendatacommunities.org/id/unitary-authority/bracknell-forest","","","Central Support Services - COF","Customer Service Centre","Cashiers Services","Banking Charges",08/10/2018 00:00:00,"6670257",3779.57,"CAPITA BUSINESS SERVICES LTD"
"Bracknell Forest Council","http://opendatacommunities.org/id/unitary-authority/bracknell-forest","","","Central Support Services - COF","Customer Service Centre","Cashiers Services","Office Stationery",24/09/2018 00:00:00,"30343350",44,"COMMERCIAL LTD"
"Bracknell Forest Council","http://opendatacommunities.org/id/unitary-authority/bracknell-forest","","","Central Support Services - COF","Customer Service Centre","Customer Services","Licences",30/07/2018 00:00:00,"6667136",14587,"FIRMSTEP"
"Bracknell Forest Council","http://opendatacommunities.org/id/unitary-authority/bracknell-forest","","","Central Support Services - COF","Customer Service Centre","Customer Services","Licences",30/07/2018 00:00:00,"6667136",4375,"FIRMSTEP"
"Bracknell Forest Council","http://opendatacommunities.org/id/unitary-authority/bracknell-forest","","","Central Support Services - COF","Customer Service Centre","Customer Services","Licences",20/11/2018 00:00:00,"6672466",5000,"NETCALL TELECOM LIMITED"
"Bracknell Forest Council","http://opendatacommunities.org/id/unitary-authority/bracknell-forest","","","Central Support Services - COF","Customer Service Centre","Customer Services","Office Stationery",22/08/2018 00:00:00,"30341721",62.64,"COMMERCIAL LTD"
"Bracknell Forest Council","http://opendatacommunities.org/id/unitary-authority/bracknell-forest","","","Central Support Services - COF","Customer Service Centre","Customer Services","Office Stationery",22/10/2018 00:00:00,"30345767",34.95,"COMMERCIAL LTD"
"Bracknell Forest Council","http://opendatacommunities.org/id/unitary-authority/bracknell-forest","","","Central Support Services - COF","Customer Service Centre","Customer Services","Office Stationery",22/11/2018 00:00:00,"30346366",6.6,"COMMERCIAL LTD"
"Bracknell Forest Council","http://opendatacommunities.org/id/unitary-authority/bracknell-forest","","","Central Support Services - COF","Customer Service Centre","Customer Services","Office Stationery",22/11/2018 00:00:00,"30346366",30.1,"COMMERCIAL LTD"
"Bracknell Forest Council","http://opendatacommunities.org/id/unitary-authority/bracknell-forest","","","Central Support Services - COF","Customer Service Centre","Customer Services","Office Stationery",22/11/2018 00:00:00,"30346366",0.36,"COMMERCIAL LTD"
"Bracknell Forest Council","http://opendatacommunities.org/id/unitary-authority/bracknell-forest","","","Secondary Schools","Delegated Primary School Budgets","Ascot Heath - Infant","Gas",10/08/2018 00:00:00,"30341042",104.91,"CORONA GAS"
"Bracknell Forest Council","http://opendatacommunities.org/id/unitary-authority/bracknell-forest","","","Secondary Schools","Delegated Primary School Budgets","Ascot Heath - Infant","Gas",10/09/2018 00:00:00,"30342800",109.7,"CORONA GAS"
"Bracknell Forest Council","http://opendatacommunities.org/id/unitary-authority/bracknell-forest","","","Secondary Schools","Delegated Primary School Budgets","Ascot Heath - Infant","Gas",10/10/2018 00:00:00,"30344300",147.71,"CORONA GAS"
"Bracknell Forest Council","http://opendatacommunities.org/id/unitary-authority/bracknell-forest","","","Secondary Schools","Delegated Primary School Budgets","Ascot Heath - Junior","R&M - Reactive",12/11/2018 00:00:00,"6672608",743,"DIRECT BOILER SERVICES"
"Bracknell Forest Council","http://opendatacommunities.org/id/unitary-authority/bracknell-forest","","","Secondary Schools","Delegated Primary School Budgets","Ascot Heath - Junior","Electricity",10/08/2018 00:00:00,"30340683",7.99,"BRITISH GAS TRADING"
"Bracknell Forest Council","http://opendatacommunities.org/id/unitary-authority/bracknell-forest","","","Secondary Schools","Delegated Primary School Budgets","Ascot Heath - Junior","Gas",10/08/2018 00:00:00,"30341042",16.43,"CORONA GAS"
"Bracknell Forest Council","http://opendatacommunities.org/id/unitary-authority/bracknell-forest","","","Secondary Schools","Delegated Primary School Budgets","Ascot Heath - Junior","Electricity",06/08/2018 00:00:00,"30341689",1061.19,"EDF ENERY"
"Bracknell Forest Council","http://opendatacommunities.org/id/unitary-authority/bracknell-forest","","","Secondary Schools","Delegated Primary School Budgets","Ascot Heath - Junior","Electricity",10/09/2018 00:00:00,"30342617",7.99,"BRITISH GAS TRADING"
"Bracknell Forest Council","http://opendatacommunities.org/id/unitary-authority/bracknell-forest","","","Secondary Schools","Delegated Primary School Budgets","Ascot Heath - Junior","Gas",10/09/2018 00:00:00,"30342800",16.43,"CORONA GAS"
"Bracknell Forest Council","http://opendatacommunities.org/id/unitary-authority/bracknell-forest","","","Secondary Schools","Delegated Primary School Budgets","Ascot Heath - Junior","Electricity",05/09/2018 00:00:00,"30342945",633.59,"EDF ENERY"
"Bracknell Forest Council","http://opendatacommunities.org/id/unitary-authority/bracknell-forest","","","Secondary Schools","Delegated Primary School Budgets","Ascot Heath - Junior","Electricity",10/10/2018 00:00:00,"30344074",1140.59,"BRITISH GAS TRADING"
"Bracknell Forest Council","http://opendatacommunities.org/id/unitary-authority/bracknell-forest","","","Secondary Schools","Delegated Primary School Budgets","Ascot Heath - Junior","Gas",10/10/2018 00:00:00,"30344300",15.9,"CORONA GAS"
"Bracknell Forest Council","http://opendatacommunities.org/id/unitary-authority/bracknell-forest","","","Secondary Schools","Delegated Primary School Budgets","Ascot Heath - Junior","Electricity",08/10/2018 00:00:00,"30344789",1167.32,"EDF ENERY"
"Bracknell Forest Council","http://opendatacommunities.org/id/unitary-authority/bracknell-forest","","","Secondary Schools","Delegated Primary School Budgets","Ascot Heath - Junior","Electricity",12/11/2018 00:00:00,"30346303",351.58,"BRITISH GAS TRADING"
"Bracknell Forest Council","http://opendatacommunities.org/id/unitary-authority/bracknell-forest","","","Secondary Schools","Delegated Primary School Budgets","Ascot Heath - Junior","Electricity",05/11/2018 00:00:00,"30346317",1287.32,"EDF ENERY"
"Bracknell Forest Council","http://opendatacommunities.org/id/unitary-authority/bracknell-forest","","","Secondary Schools","Delegated Primary School Budgets","Binfield CE - Primary","Gas",10/08/2018 00:00:00,"30341042",206.56,"CORONA GAS"
"Bracknell Forest Council","http://opendatacommunities.org/id/unitary-authority/bracknell-forest","","","Secondary Schools","Delegated Primary School Budgets","Binfield CE - Primary","Gas",10/09/2018 00:00:00,"30342800",262.92,"CORONA GAS"
"Bracknell Forest Council","http://opendatacommunities.org/id/unitary-authority/bracknell-forest","","","Secondary Schools","Delegated Primary School Budgets","Binfield CE - Primary","Electricity",05/09/2018 00:00:00,"30342945",-1303.19,"EDF ENERY"
"Bracknell Forest Council","http://opendatacommunities.org/id/unitary-authority/bracknell-forest","","","Secondary Schools","Delegated Primary School Budgets","Binfield CE - Primary","Electricity",05/09/2018 00:00:00,"30342945",1244.42,"EDF ENERY"
"Bracknell Forest Council","http://opendatacommunities.org/id/unitary-authority/bracknell-forest","","","Secondary Schools","Delegated Primary School Budgets","Binfield CE - Primary","Electricity",05/09/2018 00:00:00,"30342945",-1314.25,"EDF ENERY"
"Bracknell Forest Council","http://opendatacommunities.org/id/unitary-authority/bracknell-forest","","","Secondary Schools","Delegated Primary School Budgets","Binfield CE - Primary","Electricity",05/09/2018 00:00:00,"30342945",753.86,"EDF ENERY"
"Bracknell Forest Council","http://opendatacommunities.org/id/unitary-authority/bracknell-forest","","","Secondary Schools","Delegated Primary School Budgets","Binfield CE - Primary","Electricity",05/09/2018 00:00:00,"30342945",1250.4,"EDF ENERY"
"Bracknell Forest Council","http://opendatacommunities.org/id/unitary-authority/bracknell-forest","","","Secondary Schools","Delegated Primary School Budgets","Binfield CE - Primary","Electricity",05/09/2018 00:00:00,"30342945",1254.97,"EDF ENERY"
"Bracknell Forest Council","http://opendatacommunities.org/id/unitary-authority/bracknell-forest","","","Secondary Schools","Delegated Primary School Budgets","Binfield CE - Primary","Electricity",05/09/2018 00:00:00,"30342945",-789.01,"EDF ENERY"
"Bracknell Forest Council","http://opendatacommunities.org/id/unitary-authority/bracknell-forest","","","Secondary Schools","Delegated Primary School Budgets","Binfield CE - Primary","Gas",10/10/2018 00:00:00,"30344300",368.26,"CORONA GAS"
"Bracknell Forest Council","http://opendatacommunities.org/id/unitary-authority/bracknell-forest","","","Secondary Schools","Delegated Primary School Budgets","Binfield CE - Primary","Electricity",08/10/2018 00:00:00,"30344789",1141.74,"EDF ENERY"
"Bracknell Forest Council","http://opendatacommunities.org/id/unitary-authority/bracknell-forest","","","Secondary Schools","Delegated Primary School Budgets","Binfield CE - Primary","Electricity",08/10/2018 00:00:00,"30344789",30.19,"EDF ENERY"
"Bracknell Forest Council","http://opendatacommunities.org/id/unitary-authority/bracknell-forest","","","Secondary Schools","Delegated Primary School Budgets","Birch Hill - Primary","Gas",10/08/2018 00:00:00,"30341042",295.4,"CORONA GAS"
"Bracknell Forest Council","http://opendatacommunities.org/id/unitary-authority/bracknell-forest","","","Secondary Schools","Delegated Primary School Budgets","Birch Hill - Primary","Gas",10/08/2018 00:00:00,"30341042",30.5,"CORONA GAS"
"Bracknell Forest Council","http://opendatacommunities.org/id/unitary-authority/bracknell-forest","","","Secondary Schools","Delegated Primary School Budgets","Birch Hill - Primary","Electricity",06/08/2018 00:00:00,"30341689",1473.23,"EDF ENERY"
"Bracknell Forest Council","http://opendatacommunities.org/id/unitary-authority/bracknell-forest","","","Secondary Schools","Delegated Primary School Budgets","Birch Hill - Primary","Electricity",06/08/2018 00:00:00,"30341689",1543.73,"EDF ENERY"
"Bracknell Forest Council","http://opendatacommunities.org/id/unitary-authority/bracknell-forest","","","Secondary Schools","Delegated Primary School Budgets","Birch Hill - Primary","Electricity",06/08/2018 00:00:00,"30341689",1519.7,"EDF ENERY"
"Bracknell Forest Council","http://opendatacommunities.org/id/unitary-authority/bracknell-forest","","","Secondary Schools","Delegated Primary School Budgets","Birch Hill - Primary","Electricity",06/08/2018 00:00:00,"30341689",1588.06,"EDF ENERY"
"Bracknell Forest Council","http://opendatacommunities.org/id/unitary-authority/bracknell-forest","","","Secondary Schools","Delegated Primary School Budgets","Birch Hill - Primary","Gas",10/09/2018 00:00:00,"30342800",1199.37,"CORONA GAS"
"Bracknell Forest Council","http://opendatacommunities.org/id/unitary-authority/bracknell-forest","","","Secondary Schools","Delegated Primary School Budgets","Birch Hill - Primary","Gas",10/09/2018 00:00:00,"30342800",30.29,"CORONA GAS"
"Bracknell Forest Council","http://opendatacommunities.org/id/unitary-authority/bracknell-forest","","","Secondary Schools","Delegated Primary School Budgets","Birch Hill - Primary","Electricity",05/09/2018 00:00:00,"30342945",640.04,"EDF ENERY"
"Bracknell Forest Council","http://opendatacommunities.org/id/unitary-authority/bracknell-forest","","","Secondary Schools","Delegated Primary School Budgets","Birch Hill - Primary","Gas",10/10/2018 00:00:00,"30344300",320.49,"CORONA GAS"
"Bracknell Forest Council","http://opendatacommunities.org/id/unitary-authority/bracknell-forest","","","Secondary Schools","Delegated Primary School Budgets","Birch Hill - Primary","Gas",10/10/2018 00:00:00,"30344300",31.17,"CORONA GAS"
"Bracknell Forest Council","http://opendatacommunities.org/id/unitary-authority/bracknell-forest","","","Management and Support Services - CYPL","Holding Codes - net nil","Wildmoor Heath Acadamy","Electricity",10/08/2018 00:00:00,"30340683",540.6,"BRITISH GAS TRADING"
"Bracknell Forest Council","http://opendatacommunities.org/id/unitary-authority/bracknell-forest","","","Management and Support Services - CYPL","Holding Codes - net nil","Wildmoor Heath Acadamy","Gas",10/08/2018 00:00:00,"30341042",44.29,"CORONA GAS"
"Bracknell Forest Council","http://opendatacommunities.org/id/unitary-authority/bracknell-forest","","","Management and Support Services - CYPL","Holding Codes - net nil","Wildmoor Heath Acadamy","Gas",10/08/2018 00:00:00,"30341042",111.41,"CORONA GAS"
"Bracknell Forest Council","http://opendatacommunities.org/id/unitary-authority/bracknell-forest","","","Management and Support Services - CYPL","Holding Codes - net nil","Wildmoor Heath Acadamy","Electricity",10/09/2018 00:00:00,"30342617",349.02,"BRITISH GAS TRADING"
"Bracknell Forest Council","http://opendatacommunities.org/id/unitary-authority/bracknell-forest","","","Management and Support Services - CYPL","Holding Codes - net nil","Wildmoor Heath Acadamy","Gas",10/09/2018 00:00:00,"30342800",43.69,"CORONA GAS"
"Bracknell Forest Council","http://opendatacommunities.org/id/unitary-authority/bracknell-forest","","","Management and Support Services - CYPL","Holding Codes - net nil","Wildmoor Heath Acadamy","Gas",10/09/2018 00:00:00,"30342800",101.37,"CORONA GAS"
"Bracknell Forest Council","http://opendatacommunities.org/id/unitary-authority/bracknell-forest","","","Management and Support Services - CYPL","Holding Codes - net nil","Wildmoor Heath Acadamy","Electricity",10/10/2018 00:00:00,"30344074",669.97,"BRITISH GAS TRADING"
"Bracknell Forest Council","http://opendatacommunities.org/id/unitary-authority/bracknell-forest","","","Management and Support Services - CYPL","Holding Codes - net nil","Wildmoor Heath Acadamy","Gas",10/10/2018 00:00:00,"30344300",127.36,"CORONA GAS"
"Bracknell Forest Council","http://opendatacommunities.org/id/unitary-authority/bracknell-forest","","","Management and Support Services - CYPL","Holding Codes - net nil","Wildmoor Heath Acadamy","Gas",10/10/2018 00:00:00,"30344300",46.27,"CORONA GAS"
"Bracknell Forest Council","http://opendatacommunities.org/id/unitary-authority/bracknell-forest","","","Management and Support Services - CYPL","Holding Codes - net nil","Wildmoor Heath Acadamy","Electricity",12/11/2018 00:00:00,"30346303",710.42,"BRITISH GAS TRADING"
"Bracknell Forest Council","http://opendatacommunities.org/id/unitary-authority/bracknell-forest","","","Secondary Schools","Delegated Primary School Budgets","College Town Primary School","Electricity",10/08/2018 00:00:00,"30340683",367.06,"BRITISH GAS TRADING"
"Bracknell Forest Council","http://opendatacommunities.org/id/unitary-authority/bracknell-forest","","","Secondary Schools","Delegated Primary School Budgets","College Town Primary School","Electricity",10/08/2018 00:00:00,"30340683",173.96,"BRITISH GAS TRADING"
"Bracknell Forest Council","http://opendatacommunities.org/id/unitary-authority/bracknell-forest","","","Secondary Schools","Delegated Primary School Budgets","College Town Primary School","Gas",10/08/2018 00:00:00,"30341042",164.83,"CORONA GAS"
"Bracknell Forest Council","http://opendatacommunities.org/id/unitary-authority/bracknell-forest","","","Secondary Schools","Delegated Primary School Budgets","College Town Primary School","Electricity",10/09/2018 00:00:00,"30342617",272.5,"BRITISH GAS TRADING"
"Bracknell Forest Council","http://opendatacommunities.org/id/unitary-authority/bracknell-forest","","","Secondary Schools","Delegated Primary School Budgets","College Town Primary School","Electricity",10/09/2018 00:00:00,"30342617",118.89,"BRITISH GAS TRADING"
"Bracknell Forest Council","http://opendatacommunities.org/id/unitary-authority/bracknell-forest","","","Secondary Schools","Delegated Primary School Budgets","College Town Primary School","Gas",10/09/2018 00:00:00,"30342800",176.62,"CORONA GAS"
